Workbook

Sheet PF Funding
B3: Timeline | F3: Units | G3: Constant 1 | H3: Constant 2 | I3: Sum
D4: Period | J4: 1 | K4: 2 | L4: 3 | M4: 4 | N4: 5 | O4: 6 | P4: 7 | Q4: 8 | R4: 9 | S4: 10 | T4: 11 | U4: 12 | V4: 13 | W4: 14 | X4: 15 | Y4: 16 | Z4: 17 | AA4: 18 | AB4: 19 | AC4: 20 | AD4: 21 | AE4: 22 | AF4: 23 | AG4: 24 | AH4: 25 | AI4: 26 | AJ4: 27 | AK4: 28 | AL4: 29 | AM4: 30 | AN4: 31 | AO4: 32 | AP4: 33 | AQ4: 34 | AR4: 35 | AS4: 36 | AT4: 37 | AU4: 38 | AV4: 39 | AW4: 40 | AX4: 41 | AY4: 42 | AZ4: 43 | BA4: 44 | BB4: 45 | BC4: 46 | BD4: 47 | BE4: 48 | BF4: 49 | BG4: 50 | BH4: 51 | BI4: 52 | BJ4: 53 | BK4: 54 | BL4: 55 | BM4: 56 | BN4: 57 | BO4: 58 | BP4: 59 | BQ4: 60 | BR4: 61 | BS4: 62 | BT4: 63 | BU4: 64 | BV4: 65 | BW4: 66 | BX4: 67 | BY4: 68 | BZ4: 69 | CA4: 70 | CB4: 71 | CC4: 72 | CD4: 73 | CE4: 74 | CF4: 75 | CG4: 76 | CH4: 77 | CI4: 78 | CJ4: 79 | CK4: 80 | CL4: 81 | CM4: 82 | CN4: 83 | CO4: 84 | CP4: 85 | CQ4: 86 | CR4: 87 | CS4: 88 | CT4: 89 | CU4: 90 | CV4: 91 | CW4: 92 | CX4: 93 | CY4: 94 | CZ4: 95 | DA4: 96 | DB4: 97 | DC4: 98 | DD4: 99 | DE4: 100 | DF4: 101 | DG4: 102 | DH4: 103 | DI4: 104 | DJ4: 105 | DK4: 106 | DL4: 107 | DM4: 108 | DN4: 109 | DO4: 110 | DP4: 111 | DQ4: 112 | DR4: 113 | DS4: 114 | DT4: 115 | DU4: 116 | DV4: 117 | DW4: 118 | DX4: 119 | DY4: 120 | DZ4: 121 | EA4: 122 | EB4: 123 | EC4: 124 | ED4: 125 | EE4: 126 | EF4: 127 | EG4: 128 | EH4: 129 | EI4: 130 | EJ4: 131 | EK4: 132 | EL4: 133 | EM4: 134 | EN4: 135 | EO4: 136 | EP4: 137 | EQ4: 138 | ER4: 139 | ES4: 140 | ET4: 141 | EU4: 142 | EV4: 143 | EW4: 144 | EX4: 145 | EY4: 146 | EZ4: 147 | FA4: 148 | FB4: 149 | FC4: 150 | FD4: 151 | FE4: 152 | FF4: 153 | FG4: 154 | FH4: 155 | FI4: 156 | FJ4: 157 | FK4: 158 | FL4: 159 | FM4: 160 | FN4: 161 | FO4: 162 | FP4: 163 | FQ4: 164 | FR4: 165 | FS4: 166 | FT4: 167 | FU4: 168 | FV4: 169 | FW4: 170 | FX4: 171 | FY4: 172 | FZ4: 173 | GA4: 174 | GB4: 175 | GC4: 176 | GD4: 177 | GE4: 178 | GF4: 179 | GG4: 180 | GH4: 181 | GI4: 182 | GJ4: 183 | GK4: 184 | GL4: 185 | GM4: 186 | GN4: 187 | GO4: 188 | GP4: 189 | GQ4: 190 | GR4: 191 | GS4: 192 | GT4: 193 | GU4: 194 | GV4: 195 | GW4: 196 | GX4: 197 | GY4: 198 | GZ4: 199 | HA4: 200
D5: Construction | G5: =G14 -> 30 | J5: =J4<=$G$5 -> TRUE | K5: =K4<=$G$5 -> TRUE | L5: TRUE | M5: TRUE | N5: TRUE | O5: TRUE | P5: TRUE | Q5: TRUE | R5: TRUE | S5: TRUE | T5: TRUE | U5: TRUE | V5: TRUE | W5: TRUE | X5: TRUE | Y5: TRUE | Z5: TRUE | AA5: TRUE | AB5: TRUE | AC5: TRUE | AD5: TRUE | AE5: TRUE | AF5: TRUE | AG5: TRUE | AH5: TRUE | AI5: TRUE | AJ5: TRUE | AK5: TRUE | AL5: TRUE | AM5: TRUE | AN5: FALSE | AO5: FALSE | AP5: FALSE | AQ5: FALSE | AR5: FALSE | AS5: FALSE | AT5: FALSE | AU5: FALSE | AV5: FALSE | AW5: FALSE | AX5: FALSE | AY5: FALSE | AZ5: FALSE | BA5: FALSE | BB5: FALSE | BC5: FALSE | BD5: FALSE | BE5: FALSE | BF5: FALSE | BG5: FALSE | BH5: FALSE | BI5: FALSE | BJ5: FALSE | BK5: FALSE | BL5: FALSE | BM5: FALSE | BN5: FALSE | BO5: FALSE | BP5: FALSE | BQ5: FALSE | BR5: FALSE | BS5: FALSE | BT5: FALSE | BU5: FALSE | BV5: FALSE | BW5: =BW4<=$G$5 -> FALSE | BX5: FALSE | BY5: FALSE | BZ5: FALSE | CA5: FALSE | CB5: FALSE | CC5: FALSE | CD5: FALSE | CE5: FALSE | CF5: FALSE | CG5: FALSE | CH5: FALSE | CI5: FALSE | CJ5: FALSE | CK5: FALSE | CL5: FALSE | CM5: FALSE | CN5: FALSE | CO5: FALSE | CP5: FALSE | CQ5: FALSE | CR5: FALSE | CS5: FALSE | CT5: FALSE | CU5: FALSE | CV5: FALSE | CW5: FALSE | CX5: FALSE | CY5: FALSE | CZ5: FALSE | DA5: FALSE | DB5: FALSE | DC5: FALSE | DD5: FALSE | DE5: FALSE | DF5: FALSE | DG5: FALSE | DH5: FALSE | DI5: FALSE | DJ5: FALSE | DK5: FALSE | DL5: FALSE | DM5: FALSE | DN5: FALSE | DO5: FALSE | DP5: FALSE | DQ5: FALSE | DR5: FALSE | DS5: FALSE | DT5: FALSE | DU5: FALSE | DV5: FALSE | DW5: FALSE | DX5: FALSE | DY5: FALSE | DZ5: FALSE | EA5: FALSE | EB5: FALSE | EC5: FALSE | ED5: FALSE | EE5: FALSE | EF5: FALSE | EG5: FALSE | EH5: FALSE | EI5: =EI4<=$G$5 -> FALSE | EJ5: FALSE | EK5: FALSE | EL5: FALSE | EM5: FALSE | EN5: FALSE | EO5: FALSE | EP5: FALSE | EQ5: FALSE | ER5: FALSE | ES5: FALSE | ET5: FALSE | EU5: FALSE | EV5: FALSE | EW5: FALSE | EX5: FALSE | EY5: FALSE | EZ5: FALSE | FA5: FALSE | FB5: FALSE | FC5: FALSE | FD5: FALSE | FE5: FALSE | FF5: FALSE | FG5: FALSE | FH5: FALSE | FI5: FALSE | FJ5: FALSE | FK5: FALSE | FL5: FALSE | FM5: FALSE | FN5: FALSE | FO5: FALSE | FP5: FALSE | FQ5: FALSE | FR5: FALSE | FS5: FALSE | FT5: FALSE | FU5: FALSE | FV5: FALSE | FW5: FALSE | FX5: FALSE | FY5: FALSE | FZ5: FALSE | GA5: FALSE | GB5: FALSE | GC5: FALSE | GD5: FALSE | GE5: FALSE | GF5: FALSE | GG5: FALSE | GH5: FALSE | GI5: FALSE | GJ5: FALSE | GK5: FALSE | GL5: FALSE | GM5: FALSE | GN5: FALSE | GO5: FALSE | GP5: FALSE | GQ5: FALSE | GR5: FALSE | GS5: FALSE | GT5: FALSE | GU5: =GU4<=$G$5 -> FALSE | GV5: FALSE | GW5: FALSE | GX5: FALSE | GY5: FALSE | GZ5: FALSE | HA5: FALSE
D6: Post Construction | J6: =NOT(J5) -> FALSE | K6: =NOT(K5) -> FALSE | L6: FALSE | M6: FALSE | N6: FALSE | O6: FALSE | P6: FALSE | Q6: FALSE | R6: FALSE | S6: FALSE | T6: FALSE | U6: FALSE | V6: FALSE | W6: FALSE | X6: FALSE | Y6: FALSE | Z6: FALSE | AA6: FALSE | AB6: FALSE | AC6: FALSE | AD6: FALSE | AE6: FALSE | AF6: FALSE | AG6: FALSE | AH6: FALSE | AI6: FALSE | AJ6: FALSE | AK6: FALSE | AL6: FALSE | AM6: FALSE | AN6: TRUE | AO6: TRUE | AP6: TRUE | AQ6: TRUE | AR6: TRUE | AS6: TRUE | AT6: TRUE | AU6: TRUE | AV6: TRUE | AW6: TRUE | AX6: TRUE | AY6: TRUE | AZ6: TRUE | BA6: TRUE | BB6: TRUE | BC6: TRUE | BD6: TRUE | BE6: TRUE | BF6: TRUE | BG6: TRUE | BH6: TRUE | BI6: TRUE | BJ6: TRUE | BK6: TRUE | BL6: TRUE | BM6: TRUE | BN6: TRUE | BO6: TRUE | BP6: TRUE | BQ6: TRUE | BR6: TRUE | BS6: TRUE | BT6: TRUE | BU6: TRUE | BV6: TRUE | BW6: =NOT(BW5) -> TRUE | BX6: TRUE | BY6: TRUE | BZ6: TRUE | CA6: TRUE | CB6: TRUE | CC6: TRUE | CD6: TRUE | CE6: TRUE | CF6: TRUE | CG6: TRUE | CH6: TRUE | CI6: TRUE | CJ6: TRUE | CK6: TRUE | CL6: TRUE | CM6: TRUE | CN6: TRUE | CO6: TRUE | CP6: TRUE | CQ6: TRUE | CR6: TRUE | CS6: TRUE | CT6: TRUE | CU6: TRUE | CV6: TRUE | CW6: TRUE | CX6: TRUE | CY6: TRUE | CZ6: TRUE | DA6: TRUE | DB6: TRUE | DC6: TRUE | DD6: TRUE | DE6: TRUE | DF6: TRUE | DG6: TRUE | DH6: TRUE | DI6: TRUE | DJ6: TRUE | DK6: TRUE | DL6: TRUE | DM6: TRUE | DN6: TRUE | DO6: TRUE | DP6: TRUE | DQ6: TRUE | DR6: TRUE | DS6: TRUE | DT6: TRUE | DU6: TRUE | DV6: TRUE | DW6: TRUE | DX6: TRUE | DY6: TRUE | DZ6: TRUE | EA6: TRUE | EB6: TRUE | EC6: TRUE | ED6: TRUE | EE6: TRUE | EF6: TRUE | EG6: TRUE | EH6: TRUE | EI6: =NOT(EI5) -> TRUE | EJ6: TRUE | EK6: TRUE | EL6: TRUE | EM6: TRUE | EN6: TRUE | EO6: TRUE | EP6: TRUE | EQ6: TRUE | ER6: TRUE | ES6: TRUE | ET6: TRUE | EU6: TRUE | EV6: TRUE | EW6: TRUE | EX6: TRUE | EY6: TRUE | EZ6: TRUE | FA6: TRUE | FB6: TRUE | FC6: TRUE | FD6: TRUE | FE6: TRUE | FF6: TRUE | FG6: TRUE | FH6: TRUE | FI6: TRUE | FJ6: TRUE | FK6: TRUE | FL6: TRUE | FM6: TRUE | FN6: TRUE | FO6: TRUE | FP6: TRUE | FQ6: TRUE | FR6: TRUE | FS6: TRUE | FT6: TRUE | FU6: TRUE | FV6: TRUE | FW6: TRUE | FX6: TRUE | FY6: TRUE | FZ6: TRUE | GA6: TRUE | GB6: TRUE | GC6: TRUE | GD6: TRUE | GE6: TRUE | GF6: TRUE | GG6: TRUE | GH6: TRUE | GI6: TRUE | GJ6: TRUE | GK6: TRUE | GL6: TRUE | GM6: TRUE | GN6: TRUE | GO6: TRUE | GP6: TRUE | GQ6: TRUE | GR6: TRUE | GS6: TRUE | GT6: TRUE | GU6: =NOT(GU5) -> TRUE | GV6: TRUE | GW6: TRUE | GX6: TRUE | GY6: TRUE | GZ6: TRUE | HA6: TRUE
D7: Post Construction Period Counter | J7: =H7+J6 -> 0 | K7: =J7+K6 -> 0 | L7: 0 | M7: 0 | N7: 0 | O7: 0 | P7: 0 | Q7: 0 | R7: 0 | S7: 0 | T7: 0 | U7: 0 | V7: 0 | W7: 0 | X7: 0 | Y7: 0 | Z7: 0 | AA7: 0 | AB7: 0 | AC7: 0 | AD7: 0 | AE7: 0 | AF7: 0 | AG7: 0 | AH7: 0 | AI7: 0 | AJ7: 0 | AK7: 0 | AL7: 0 | AM7: 0 | AN7: 1 | AO7: 2 | AP7: 3 | AQ7: 4 | AR7: 5 | AS7: 6 | AT7: 7 | AU7: 8 | AV7: 9 | AW7: 10 | AX7: 11 | AY7: 12 | AZ7: 13 | BA7: 14 | BB7: 15 | BC7: 16 | BD7: 17 | BE7: 18 | BF7: 19 | BG7: 20 | BH7: 21 | BI7: 22 | BJ7: 23 | BK7: 24 | BL7: 25 | BM7: 26 | BN7: 27 | BO7: 28 | BP7: 29 | BQ7: 30 | BR7: 31 | BS7: 32 | BT7: 33 | BU7: 34 | BV7: 35 | BW7: =BV7+BW6 -> 36 | BX7: 37 | BY7: 38 | BZ7: 39 | CA7: 40 | CB7: 41 | CC7: 42 | CD7: 43 | CE7: 44 | CF7: 45 | CG7: 46 | CH7: 47 | CI7: 48 | CJ7: 49 | CK7: 50 | CL7: 51 | CM7: 52 | CN7: 53 | CO7: 54 | CP7: 55 | CQ7: 56 | CR7: 57 | CS7: 58 | CT7: 59 | CU7: 60 | CV7: 61 | CW7: 62 | CX7: 63 | CY7: 64 | CZ7: 65 | DA7: 66 | DB7: 67 | DC7: 68 | DD7: 69 | DE7: 70 | DF7: 71 | DG7: 72 | DH7: 73 | DI7: 74 | DJ7: 75 | DK7: 76 | DL7: 77 | DM7: 78 | DN7: 79 | DO7: 80 | DP7: 81 | DQ7: 82 | DR7: 83 | DS7: 84 | DT7: 85 | DU7: 86 | DV7: 87 | DW7: 88 | DX7: 89 | DY7: 90 | DZ7: 91 | EA7: 92 | EB7: 93 | EC7: 94 | ED7: 95 | EE7: 96 | EF7: 97 | EG7: 98 | EH7: 99 | EI7: =EH7+EI6 -> 100 | EJ7: 101 | EK7: 102 | EL7: 103 | EM7: 104 | EN7: 105 | EO7: 106 | EP7: 107 | EQ7: 108 | ER7: 109 | ES7: 110 | ET7: 111 | EU7: 112 | EV7: 113 | EW7: 114 | EX7: 115 | EY7: 116 | EZ7: 117 | FA7: 118 | FB7: 119 | FC7: 120 | FD7: 121 | FE7: 122 | FF7: 123 | FG7: 124 | FH7: 125 | FI7: 126 | FJ7: 127 | FK7: 128 | FL7: 129 | FM7: 130 | FN7: 131 | FO7: 132 | FP7: 133 | FQ7: 134 | FR7: 135 | FS7: 136 | FT7: 137 | FU7: 138 | FV7: 139 | FW7: 140 | FX7: 141 | FY7: 142 | FZ7: 143 | GA7: 144 | GB7: 145 | GC7: 146 | GD7: 147 | GE7: 148 | GF7: 149 | GG7: 150 | GH7: 151 | GI7: 152 | GJ7: 153 | GK7: 154 | GL7: 155 | GM7: 156 | GN7: 157 | GO7: 158 | GP7: 159 | GQ7: 160 | GR7: 161 | GS7: 162 | GT7: 163 | GU7: =GT7+GU6 -> 164 | GV7: 165 | GW7: 166 | GX7: 167 | GY7: 168 | GZ7: 169 | HA7: 170
D8: Months in Period | G8: 1 | H8: 12 | J8: =IF(J5,$G$8,$H$8) -> 1 | K8: =IF(K5,$G$8,$H$8) -> 1 | L8: 1 | M8: 1 | N8: 1 | O8: 1 | P8: 1 | Q8: 1 | R8: 1 | S8: 1 | T8: 1 | U8: 1 | V8: 1 | W8: 1 | X8: 1 | Y8: 1 | Z8: 1 | AA8: 1 | AB8: 1 | AC8: 1 | AD8: 1 | AE8: 1 | AF8: 1 | AG8: 1 | AH8: 1 | AI8: 1 | AJ8: 1 | AK8: 1 | AL8: 1 | AM8: 1 | AN8: 12 | AO8: 12 | AP8: 12 | AQ8: 12 | AR8: 12 | AS8: 12 | AT8: 12 | AU8: 12 | AV8: 12 | AW8: 12 | AX8: 12 | AY8: 12 | AZ8: 12 | BA8: 12 | BB8: 12 | BC8: 12 | BD8: 12 | BE8: 12 | BF8: 12 | BG8: 12 | BH8: 12 | BI8: 12 | BJ8: 12 | BK8: 12 | BL8: 12 | BM8: 12 | BN8: 12 | BO8: 12 | BP8: 12 | BQ8: 12 | BR8: 12 | BS8: 12 | BT8: 12 | BU8: 12 | BV8: 12 | BW8: =IF(BW5,$G$8,$H$8) -> 12 | BX8: 12 | BY8: 12 | BZ8: 12 | CA8: 12 | CB8: 12 | CC8: 12 | CD8: 12 | CE8: 12 | CF8: 12 | CG8: 12 | CH8: 12 | CI8: 12 | CJ8: 12 | CK8: 12 | CL8: 12 | CM8: 12 | CN8: 12 | CO8: 12 | CP8: 12 | CQ8: 12 | CR8: 12 | CS8: 12 | CT8: 12 | CU8: 12 | CV8: 12 | CW8: 12 | CX8: 12 | CY8: 12 | CZ8: 12 | DA8: 12 | DB8: 12 | DC8: 12 | DD8: 12 | DE8: 12 | DF8: 12 | DG8: 12 | DH8: 12 | DI8: 12 | DJ8: 12 | DK8: 12 | DL8: 12 | DM8: 12 | DN8: 12 | DO8: 12 | DP8: 12 | DQ8: 12 | DR8: 12 | DS8: 12 | DT8: 12 | DU8: 12 | DV8: 12 | DW8: 12 | DX8: 12 | DY8: 12 | DZ8: 12 | EA8: 12 | EB8: 12 | EC8: 12 | ED8: 12 | EE8: 12 | EF8: 12 | EG8: 12 | EH8: 12 | EI8: =IF(EI5,$G$8,$H$8) -> 12 | EJ8: 12 | EK8: 12 | EL8: 12 | EM8: 12 | EN8: 12 | EO8: 12 | EP8: 12 | EQ8: 12 | ER8: 12 | ES8: 12 | ET8: 12 | EU8: 12 | EV8: 12 | EW8: 12 | EX8: 12 | EY8: 12 | EZ8: 12 | FA8: 12 | FB8: 12 | FC8: 12 | FD8: 12 | FE8: 12 | FF8: 12 | FG8: 12 | FH8: 12 | FI8: 12 | FJ8: 12 | FK8: 12 | FL8: 12 | FM8: 12 | FN8: 12 | FO8: 12 | FP8: 12 | FQ8: 12 | FR8: 12 | FS8: 12 | FT8: 12 | FU8: 12 | FV8: 12 | FW8: 12 | FX8: 12 | FY8: 12 | FZ8: 12 | GA8: 12 | GB8: 12 | GC8: 12 | GD8: 12 | GE8: 12 | GF8: 12 | GG8: 12 | GH8: 12 | GI8: 12 | GJ8: 12 | GK8: 12 | GL8: 12 | GM8: 12 | GN8: 12 | GO8: 12 | GP8: 12 | GQ8: 12 | GR8: 12 | GS8: 12 | GT8: 12 | GU8: =IF(GU5,$G$8,$H$8) -> 12 | GV8: 12 | GW8: 12 | GX8: 12 | GY8: 12 | GZ8: 12 | HA8: 12
D9: Operating Period | G9: =G18 -> 30 | J9: =AND(J7>0,J7<=$G$9)*1 -> 0 | K9: =AND(K7>0,K7<=$G$9)*1 -> 0 | L9: 0 | M9: 0 | N9: 0 | O9: 0 | P9: 0 | Q9: 0 | R9: 0 | S9: 0 | T9: 0 | U9: 0 | V9: 0 | W9: 0 | X9: 0 | Y9: 0 | Z9: 0 | AA9: 0 | AB9: 0 | AC9: 0 | AD9: 0 | AE9: 0 | AF9: 0 | AG9: 0 | AH9: 0 | AI9: 0 | AJ9: 0 | AK9: 0 | AL9: 0 | AM9: 0 | AN9: 1 | AO9: 1 | AP9: 1 | AQ9: 1 | AR9: 1 | AS9: 1 | AT9: 1 | AU9: 1 | AV9: 1 | AW9: 1 | AX9: 1 | AY9: 1 | AZ9: 1 | BA9: 1 | BB9: 1 | BC9: 1 | BD9: 1 | BE9: 1 | BF9: 1 | BG9: 1 | BH9: 1 | BI9: 1 | BJ9: 1 | BK9: 1 | BL9: 1 | BM9: 1 | BN9: 1 | BO9: 1 | BP9: 1 | BQ9: 1 | BR9: 0 | BS9: 0 | BT9: 0 | BU9: 0 | BV9: 0 | BW9: =AND(BW7>0,BW7<=$G$9)*1 -> 0 | BX9: 0 | BY9: 0 | BZ9: 0 | CA9: 0 | CB9: 0 | CC9: 0 | CD9: 0 | CE9: 0 | CF9: 0 | CG9: 0 | CH9: 0 | CI9: 0 | CJ9: 0 | CK9: 0 | CL9: 0 | CM9: 0 | CN9: 0 | CO9: 0 | CP9: 0 | CQ9: 0 | CR9: 0 | CS9: 0 | CT9: 0 | CU9: 0 | CV9: 0 | CW9: 0 | CX9: 0 | CY9: 0 | CZ9: 0 | DA9: 0 | DB9: 0 | DC9: 0 | DD9: 0 | DE9: 0 | DF9: 0 | DG9: 0 | DH9: 0 | DI9: 0 | DJ9: 0 | DK9: 0 | DL9: 0 | DM9: 0 | DN9: 0 | DO9: 0 | DP9: 0 | DQ9: 0 | DR9: 0 | DS9: 0 | DT9: 0 | DU9: 0 | DV9: 0 | DW9: 0 | DX9: 0 | DY9: 0 | DZ9: 0 | EA9: 0 | EB9: 0 | EC9: 0 | ED9: 0 | EE9: 0 | EF9: 0 | EG9: 0 | EH9: 0 | EI9: =AND(EI7>0,EI7<=$G$9)*1 -> 0 | EJ9: 0 | EK9: 0 | EL9: 0 | EM9: 0 | EN9: 0 | EO9: 0 | EP9: 0 | EQ9: 0 | ER9: 0 | ES9: 0 | ET9: 0 | EU9: 0 | EV9: 0 | EW9: 0 | EX9: 0 | EY9: 0 | EZ9: 0 | FA9: 0 | FB9: 0 | FC9: 0 | FD9: 0 | FE9: 0 | FF9: 0 | FG9: 0 | FH9: 0 | FI9: 0 | FJ9: 0 | FK9: 0 | FL9: 0 | FM9: 0 | FN9: 0 | FO9: 0 | FP9: 0 | FQ9: 0 | FR9: 0 | FS9: 0 | FT9: 0 | FU9: 0 | FV9: 0 | FW9: 0 | FX9: 0 | FY9: 0 | FZ9: 0 | GA9: 0 | GB9: 0 | GC9: 0 | GD9: 0 | GE9: 0 | GF9: 0 | GG9: 0 | GH9: 0 | GI9: 0 | GJ9: 0 | GK9: 0 | GL9: 0 | GM9: 0 | GN9: 0 | GO9: 0 | GP9: 0 | GQ9: 0 | GR9: 0 | GS9: 0 | GT9: 0 | GU9: =AND(GU7>0,GU7<=$G$9)*1 -> 0 | GV9: 0 | GW9: 0 | GX9: 0 | GY9: 0 | GZ9: 0 | HA9: 0
D10: Operating Year | J10: =I10+J9 -> 0 | K10: =J10+K9 -> 0 | L10: 0 | M10: 0 | N10: 0 | O10: 0 | P10: 0 | Q10: 0 | R10: 0 | S10: 0 | T10: 0 | U10: 0 | V10: 0 | W10: 0 | X10: 0 | Y10: 0 | Z10: 0 | AA10: 0 | AB10: 0 | AC10: 0 | AD10: 0 | AE10: 0 | AF10: 0 | AG10: 0 | AH10: 0 | AI10: 0 | AJ10: 0 | AK10: 0 | AL10: 0 | AM10: 0 | AN10: 1 | AO10: 2 | AP10: 3 | AQ10: 4 | AR10: 5 | AS10: 6 | AT10: 7 | AU10: 8 | AV10: 9 | AW10: 10 | AX10: 11 | AY10: 12 | AZ10: 13 | BA10: 14 | BB10: 15 | BC10: 16 | BD10: 17 | BE10: 18 | BF10: 19 | BG10: 20 | BH10: 21 | BI10: 22 | BJ10: 23 | BK10: 24 | BL10: 25 | BM10: 26 | BN10: 27 | BO10: 28 | BP10: 29 | BQ10: 30 | BR10: 30 | BS10: 30 | BT10: 30 | BU10: 30 | BV10: 30 | BW10: =BV10+BW9 -> 30 | BX10: 30 | BY10: 30 | BZ10: 30 | CA10: 30 | CB10: 30 | CC10: 30 | CD10: 30 | CE10: 30 | CF10: 30 | CG10: 30 | CH10: 30 | CI10: 30 | CJ10: 30 | CK10: 30 | CL10: 30 | CM10: 30 | CN10: 30 | CO10: 30 | CP10: 30 | CQ10: 30 | CR10: 30 | CS10: 30 | CT10: 30 | CU10: 30 | CV10: 30 | CW10: 30 | CX10: 30 | CY10: 30 | CZ10: 30 | DA10: 30 | DB10: 30 | DC10: 30 | DD10: 30 | DE10: 30 | DF10: 30 | DG10: 30 | DH10: 30 | DI10: 30 | DJ10: 30 | DK10: 30 | DL10: 30 | DM10: 30 | DN10: 30 | DO10: 30 | DP10: 30 | DQ10: 30 | DR10: 30 | DS10: 30 | DT10: 30 | DU10: 30 | DV10: 30 | DW10: 30 | DX10: 30 | DY10: 30 | DZ10: 30 | EA10: 30 | EB10: 30 | EC10: 30 | ED10: 30 | EE10: 30 | EF10: 30 | EG10: 30 | EH10: 30 | EI10: =EH10+EI9 -> 30 | EJ10: 30 | EK10: 30 | EL10: 30 | EM10: 30 | EN10: 30 | EO10: 30 | EP10: 30 | EQ10: 30 | ER10: 30 | ES10: 30 | ET10: 30 | EU10: 30 | EV10: 30 | EW10: 30 | EX10: 30 | EY10: 30 | EZ10: 30 | FA10: 30 | FB10: 30 | FC10: 30 | FD10: 30 | FE10: 30 | FF10: 30 | FG10: 30 | FH10: 30 | FI10: 30 | FJ10: 30 | FK10: 30 | FL10: 30 | FM10: 30 | FN10: 30 | FO10: 30 | FP10: 30 | FQ10: 30 | FR10: 30 | FS10: 30 | FT10: 30 | FU10: 30 | FV10: 30 | FW10: 30 | FX10: 30 | FY10: 30 | FZ10: 30 | GA10: 30 | GB10: 30 | GC10: 30 | GD10: 30 | GE10: 30 | GF10: 30 | GG10: 30 | GH10: 30 | GI10: 30 | GJ10: 30 | GK10: 30 | GL10: 30 | GM10: 30 | GN10: 30 | GO10: 30 | GP10: 30 | GQ10: 30 | GR10: 30 | GS10: 30 | GT10: 30 | GU10: =GT10+GU9 -> 30 | GV10: 30 | GW10: 30 | GX10: 30 | GY10: 30 | GZ10: 30 | HA10: 30
B12: Inputs
C13: Operating Inputs
D14: Construction Period | F14: Month | G14: 30
D15: EPC Cost | F15: MZN | G15: 25000
D16: S-curve | F16: % | G16: =1/G14 -> 0.03333333333
D18: Operating Years | F18: Years | G18: 30
D19: EBITDA | F19: MZN | G19: 1800
D20: EBITDA Growth | F20: % p.a. | G20: 0.02
C22: Financing Inputs
D23: Debt to Capital | F23: % | G23: 0.7
D24: DSCR Criteria | F24: x | G24: 1.5
D25: Repayment Tenor | F25: Years | G25: 25
D26: Interest Rate | F26: % | G26: 0.05
D27: Up Front Fee | F27: % | G27: 0.02
D28: Commitment Fee | F28: % | G28: 0.015
D29: DSRA | F29: Years | G29: 1
D30: Repayment Period | G30: =G25 -> 25 | J30: =AND(J10>I11,J10<=$G$30)*1 -> 0 | K30: =AND(K10>J11,K10<=$G$30)*1 -> 0 | L30: 0 | M30: 0 | N30: 0 | O30: 0 | P30: 0 | Q30: 0 | R30: 0 | S30: 0 | T30: 0 | U30: 0 | V30: 0 | W30: 0 | X30: 0 | Y30: 0 | Z30: 0 | AA30: 0 | AB30: 0 | AC30: 0 | AD30: 0 | AE30: 0 | AF30: 0 | AG30: 0 | AH30: 0 | AI30: 0 | AJ30: 0 | AK30: 0 | AL30: 0 | AM30: 0 | AN30: 1 | AO30: 1 | AP30: 1 | AQ30: 1 | AR30: 1 | AS30: 1 | AT30: 1 | AU30: 1 | AV30: 1 | AW30: 1 | AX30: 1 | AY30: 1 | AZ30: 1 | BA30: 1 | BB30: 1 | BC30: 1 | BD30: 1 | BE30: 1 | BF30: 1 | BG30: 1 | BH30: 1 | BI30: 1 | BJ30: 1 | BK30: 1 | BL30: 1 | BM30: 0 | BN30: 0 | BO30: 0 | BP30: 0 | BQ30: 0 | BR30: 0 | BS30: 0 | BT30: 0 | BU30: 0 | BV30: 0 | BW30: =AND(BW10>BV11,BW10<=$G$30)*1 -> 0 | BX30: 0 | BY30: 0 | BZ30: 0 | CA30: 0 | CB30: 0 | CC30: 0 | CD30: 0 | CE30: 0 | CF30: 0 | CG30: 0 | CH30: 0 | CI30: 0 | CJ30: 0 | CK30: 0 | CL30: 0 | CM30: 0 | CN30: 0 | CO30: 0 | CP30: 0 | CQ30: 0 | CR30: 0 | CS30: 0 | CT30: 0 | CU30: 0 | CV30: 0 | CW30: 0 | CX30: 0 | CY30: 0 | CZ30: 0 | DA30: 0 | DB30: 0 | DC30: 0 | DD30: 0 | DE30: 0 | DF30: 0 | DG30: 0 | DH30: 0 | DI30: 0 | DJ30: 0 | DK30: 0 | DL30: 0 | DM30: 0 | DN30: 0 | DO30: 0 | DP30: 0 | DQ30: 0 | DR30: 0 | DS30: 0 | DT30: 0 | DU30: 0 | DV30: 0 | DW30: 0 | DX30: 0 | DY30: 0 | DZ30: 0 | EA30: 0 | EB30: 0 | EC30: 0 | ED30: 0 | EE30: 0 | EF30: 0 | EG30: 0 | EH30: 0 | EI30: =AND(EI10>EH11,EI10<=$G$30)*1 -> 0 | EJ30: 0 | EK30: 0 | EL30: 0 | EM30: 0 | EN30: 0 | EO30: 0 | EP30: 0 | EQ30: 0 | ER30: 0 | ES30: 0 | ET30: 0 | EU30: 0 | EV30: 0 | EW30: 0 | EX30: 0 | EY30: 0 | EZ30: 0 | FA30: 0 | FB30: 0 | FC30: 0 | FD30: 0 | FE30: 0 | FF30: 0 | FG30: 0 | FH30: 0 | FI30: 0 | FJ30: 0 | FK30: 0 | FL30: 0 | FM30: 0 | FN30: 0 | FO30: 0 | FP30: 0 | FQ30: 0 | FR30: 0 | FS30: 0 | FT30: 0 | FU30: 0 | FV30: 0 | FW30: 0 | FX30: 0 | FY30: 0 | FZ30: 0 | GA30: 0 | GB30: 0 | GC30: 0 | GD30: 0 | GE30: 0 | GF30: 0 | GG30: 0 | GH30: 0 | GI30: 0 | GJ30: 0 | GK30: 0 | GL30: 0 | GM30: 0 | GN30: 0 | GO30: 0 | GP30: 0 | GQ30: 0 | GR30: 0 | GS30: 0 | GT30: 0 | GU30: =AND(GU10>GT11,GU10<=$G$30)*1 -> 0 | GV30: 0 | GW30: 0 | GX30: 0 | GY30: 0 | GZ30: 0 | HA30: 0
D31: Repayment Percent - PPMT | G31: =G26 -> 0.05 | J31: =IFERROR(PPMT($G$31,J10,$G$30,-1)*1,0) -> 0 | K31: =IFERROR(PPMT($G$31,K10,$G$30,-1)*1,0) -> 0 | L31: 0 | M31: 0 | N31: 0 | O31: 0 | P31: 0 | Q31: 0 | R31: 0 | S31: 0 | T31: 0 | U31: 0 | V31: 0 | W31: 0 | X31: 0 | Y31: 0 | Z31: 0 | AA31: 0 | AB31: 0 | AC31: 0 | AD31: 0 | AE31: 0 | AF31: 0 | AG31: 0 | AH31: 0 | AI31: 0 | AJ31: 0 | AK31: 0 | AL31: 0 | AM31: 0 | AN31: 0.0209524573 | AO31: 0.02200008016 | AP31: 0.02310008417 | AQ31: 0.02425508838 | AR31: 0.0254678428 | AS31: 0.02674123494 | AT31: 0.02807829669 | AU31: 0.02948221152 | AV31: 0.0309563221 | AW31: 0.0325041382 | AX31: 0.03412934511 | AY31: 0.03583581237 | AZ31: 0.03762760299 | BA31: 0.03950898314 | BB31: 0.04148443229 | BC31: 0.04355865391 | BD31: 0.0457365866 | BE31: 0.04802341593 | BF31: 0.05042458673 | BG31: 0.05294581607 | BH31: 0.05559310687 | BI31: 0.05837276221 | BJ31: 0.06129140032 | BK31: 0.06435597034 | BL31: 0.06757376886 | BM31: 0 | BN31: 0 | BO31: 0 | BP31: 0 | BQ31: 0 | BR31: 0 | BS31: 0 | BT31: 0 | BU31: 0 | BV31: 0 | BW31: =IFERROR(PPMT($G$31,BW10,$G$30,-1)*1,0) -> 0 | BX31: 0 | BY31: 0 | BZ31: 0 | CA31: 0 | CB31: 0 | CC31: 0 | CD31: 0 | CE31: 0 | CF31: 0 | CG31: 0 | CH31: 0 | CI31: 0 | CJ31: 0 | CK31: 0 | CL31: 0 | CM31: 0 | CN31: 0 | CO31: 0 | CP31: 0 | CQ31: 0 | CR31: 0 | CS31: 0 | CT31: 0 | CU31: 0 | CV31: 0 | CW31: 0 | CX31: 0 | CY31: 0 | CZ31: 0 | DA31: 0 | DB31: 0 | DC31: 0 | DD31: 0 | DE31: 0 | DF31: 0 | DG31: 0 | DH31: 0 | DI31: 0 | DJ31: 0 | DK31: 0 | DL31: 0 | DM31: 0 | DN31: 0 | DO31: 0 | DP31: 0 | DQ31: 0 | DR31: 0 | DS31: 0 | DT31: 0 | DU31: 0 | DV31: 0 | DW31: 0 | DX31: 0 | DY31: 0 | DZ31: 0 | EA31: 0 | EB31: 0 | EC31: 0 | ED31: 0 | EE31: 0 | EF31: 0 | EG31: 0 | EH31: 0 | EI31: =IFERROR(PPMT($G$31,EI10,$G$30,-1)*1,0) -> 0 | EJ31: 0 | EK31: 0 | EL31: 0 | EM31: 0 | EN31: 0 | EO31: 0 | EP31: 0 | EQ31: 0 | ER31: 0 | ES31: 0 | ET31: 0 | EU31: 0 | EV31: 0 | EW31: 0 | EX31: 0 | EY31: 0 | EZ31: 0 | FA31: 0 | FB31: 0 | FC31: 0 | FD31: 0 | FE31: 0 | FF31: 0 | FG31: 0 | FH31: 0 | FI31: 0 | FJ31: 0 | FK31: 0 | FL31: 0 | FM31: 0 | FN31: 0 | FO31: 0 | FP31: 0 | FQ31: 0 | FR31: 0 | FS31: 0 | FT31: 0 | FU31: 0 | FV31: 0 | FW31: 0 | FX31: 0 | FY31: 0 | FZ31: 0 | GA31: 0 | GB31: 0 | GC31: 0 | GD31: 0 | GE31: 0 | GF31: 0 | GG31: 0 | GH31: 0 | GI31: 0 | GJ31: 0 | GK31: 0 | GL31: 0 | GM31: 0 | GN31: 0 | GO31: 0 | GP31: 0 | GQ31: 0 | GR31: 0 | GS31: 0 | GT31: 0 | GU31: =IFERROR(PPMT($G$31,GU10,$G$30,-1)*1,0) -> 0 | GV31: 0 | GW31: 0 | GX31: 0 | GY31: 0 | GZ31: 0 | HA31: 0
D32: Repayment Percent - Input (UDF) | J32: =J31 -> 0 | K32: =K31 -> 0 | L32: 0 | M32: 0 | N32: 0 | O32: 0 | P32: 0 | Q32: 0 | R32: 0 | S32: 0 | T32: 0 | U32: 0 | V32: 0 | W32: 0 | X32: 0 | Y32: 0 | Z32: 0 | AA32: 0 | AB32: 0 | AC32: 0 | AD32: 0 | AE32: 0 | AF32: 0 | AG32: 0 | AH32: 0 | AI32: 0 | AJ32: 0 | AK32: 0 | AL32: 0 | AM32: 0 | AN32: 0.0209524573 | AO32: 0.02200008016 | AP32: 0.02310008417 | AQ32: 0.02425508838 | AR32: 0.0254678428 | AS32: 0.02674123494 | AT32: 0.02807829669 | AU32: 0.02948221152 | AV32: 0.0309563221 | AW32: 0.0325041382 | AX32: 0.03412934511 | AY32: 0.03583581237 | AZ32: 0.03762760299 | BA32: 0.03950898314 | BB32: 0.04148443229 | BC32: 0.04355865391 | BD32: 0.0457365866 | BE32: 0.04802341593 | BF32: 0.05042458673 | BG32: 0.05294581607 | BH32: 0.05559310687 | BI32: 0.05837276221 | BJ32: 0.06129140032 | BK32: 0.06435597034 | BL32: 0.06757376886 | BM32: 0 | BN32: 0 | BO32: 0 | BP32: 0 | BQ32: 0 | BR32: 0 | BS32: 0 | BT32: 0 | BU32: 0 | BV32: 0 | BW32: =BW31 -> 0 | BX32: 0 | BY32: 0 | BZ32: 0 | CA32: 0 | CB32: 0 | CC32: 0 | CD32: 0 | CE32: 0 | CF32: 0 | CG32: 0 | CH32: 0 | CI32: 0 | CJ32: 0 | CK32: 0 | CL32: 0 | CM32: 0 | CN32: 0 | CO32: 0 | CP32: 0 | CQ32: 0 | CR32: 0 | CS32: 0 | CT32: 0 | CU32: 0 | CV32: 0 | CW32: 0 | CX32: 0 | CY32: 0 | CZ32: 0 | DA32: 0 | DB32: 0 | DC32: 0 | DD32: 0 | DE32: 0 | DF32: 0 | DG32: 0 | DH32: 0 | DI32: 0 | DJ32: 0 | DK32: 0 | DL32: 0 | DM32: 0 | DN32: 0 | DO32: 0 | DP32: 0 | DQ32: 0 | DR32: 0 | DS32: 0 | DT32: 0 | DU32: 0 | DV32: 0 | DW32: 0 | DX32: 0 | DY32: 0 | DZ32: 0 | EA32: 0 | EB32: 0 | EC32: 0 | ED32: 0 | EE32: 0 | EF32: 0 | EG32: 0 | EH32: 0 | EI32: =EI31 -> 0 | EJ32: 0 | EK32: 0 | EL32: 0 | EM32: 0 | EN32: 0 | EO32: 0 | EP32: 0 | EQ32: 0 | ER32: 0 | ES32: 0 | ET32: 0 | EU32: 0 | EV32: 0 | EW32: 0 | EX32: 0 | EY32: 0 | EZ32: 0 | FA32: 0 | FB32: 0 | FC32: 0 | FD32: 0 | FE32: 0 | FF32: 0 | FG32: 0 | FH32: 0 | FI32: 0 | FJ32: 0 | FK32: 0 | FL32: 0 | FM32: 0 | FN32: 0 | FO32: 0 | FP32: 0 | FQ32: 0 | FR32: 0 | FS32: 0 | FT32: 0 | FU32: 0 | FV32: 0 | FW32: 0 | FX32: 0 | FY32: 0 | FZ32: 0 | GA32: 0 | GB32: 0 | GC32: 0 | GD32: 0 | GE32: 0 | GF32: 0 | GG32: 0 | GH32: 0 | GI32: 0 | GJ32: 0 | GK32: 0 | GL32: 0 | GM32: 0 | GN32: 0 | GO32: 0 | GP32: 0 | GQ32: 0 | GR32: 0 | GS32: 0 | GT32: 0 | GU32: =GU31 -> 0 | GV32: 0 | GW32: 0 | GX32: 0 | GY32: 0 | GZ32: 0 | HA32: 0
B34: Operating Model
C35: Construction
D36: Total Cost | F36: MZN | G36: =G15 -> 25000 | J36: =$G$36 -> 25000 | K36: =$G$36 -> 25000 | L36: 25000 | M36: 25000 | N36: 25000 | O36: 25000 | P36: 25000 | Q36: 25000 | R36: 25000 | S36: 25000 | T36: 25000 | U36: 25000 | V36: 25000 | W36: 25000 | X36: 25000 | Y36: 25000 | Z36: 25000 | AA36: 25000 | AB36: 25000 | AC36: 25000 | AD36: 25000 | AE36: 25000 | AF36: 25000 | AG36: 25000 | AH36: 25000 | AI36: 25000 | AJ36: 25000 | AK36: 25000 | AL36: 25000 | AM36: 25000 | AN36: 25000 | AO36: 25000 | AP36: 25000 | AQ36: 25000 | AR36: 25000 | AS36: 25000 | AT36: 25000 | AU36: 25000 | AV36: 25000 | AW36: 25000 | AX36: 25000 | AY36: 25000 | AZ36: 25000 | BA36: 25000 | BB36: 25000 | BC36: 25000 | BD36: 25000 | BE36: 25000 | BF36: 25000 | BG36: 25000 | BH36: 25000 | BI36: 25000 | BJ36: 25000 | BK36: 25000 | BL36: 25000 | BM36: 25000 | BN36: 25000 | BO36: 25000 | BP36: 25000 | BQ36: 25000 | BR36: 25000 | BS36: 25000 | BT36: 25000 | BU36: 25000 | BV36: 25000 | BW36: =$G$36 -> 25000 | BX36: 25000 | BY36: 25000 | BZ36: 25000 | CA36: 25000 | CB36: 25000 | CC36: 25000 | CD36: 25000 | CE36: 25000 | CF36: 25000 | CG36: 25000 | CH36: 25000 | CI36: 25000 | CJ36: 25000 | CK36: 25000 | CL36: 25000 | CM36: 25000 | CN36: 25000 | CO36: 25000 | CP36: 25000 | CQ36: 25000 | CR36: 25000 | CS36: 25000 | CT36: 25000 | CU36: 25000 | CV36: 25000 | CW36: 25000 | CX36: 25000 | CY36: 25000 | CZ36: 25000 | DA36: 25000 | DB36: 25000 | DC36: 25000 | DD36: 25000 | DE36: 25000 | DF36: 25000 | DG36: 25000 | DH36: 25000 | DI36: 25000 | DJ36: 25000 | DK36: 25000 | DL36: 25000 | DM36: 25000 | DN36: 25000 | DO36: 25000 | DP36: 25000 | DQ36: 25000 | DR36: 25000 | DS36: 25000 | DT36: 25000 | DU36: 25000 | DV36: 25000 | DW36: 25000 | DX36: 25000 | DY36: 25000 | DZ36: 25000 | EA36: 25000 | EB36: 25000 | EC36: 25000 | ED36: 25000 | EE36: 25000 | EF36: 25000 | EG36: 25000 | EH36: 25000 | EI36: =$G$36 -> 25000 | EJ36: 25000 | EK36: 25000 | EL36: 25000 | EM36: 25000 | EN36: 25000 | EO36: 25000 | EP36: 25000 | EQ36: 25000 | ER36: 25000 | ES36: 25000 | ET36: 25000 | EU36: 25000 | EV36: 25000 | EW36: 25000 | EX36: 25000 | EY36: 25000 | EZ36: 25000 | FA36: 25000 | FB36: 25000 | FC36: 25000 | FD36: 25000 | FE36: 25000 | FF36: 25000 | FG36: 25000 | FH36: 25000 | FI36: 25000 | FJ36: 25000 | FK36: 25000 | FL36: 25000 | FM36: 25000 | FN36: 25000 | FO36: 25000 | FP36: 25000 | FQ36: 25000 | FR36: 25000 | FS36: 25000 | FT36: 25000 | FU36: 25000 | FV36: 25000 | FW36: 25000 | FX36: 25000 | FY36: 25000 | FZ36: 25000 | GA36: 25000 | GB36: 25000 | GC36: 25000 | GD36: 25000 | GE36: 25000 | GF36: 25000 | GG36: 25000 | GH36: 25000 | GI36: 25000 | GJ36: 25000 | GK36: 25000 | GL36: 25000 | GM36: 25000 | GN36: 25000 | GO36: 25000 | GP36: 25000 | GQ36: 25000 | GR36: 25000 | GS36: 25000 | GT36: 25000 | GU36: =$G$36 -> 25000 | GV36: 25000 | GW36: 25000 | GX36: 25000 | GY36: 25000 | GZ36: 25000 | HA36: 25000
D37: S-curve | F37: % | G37: =G16 -> 0.03333333333 | I37: =SUM(J37:HA37) -> 1 | J37: =$G$37*J5 -> 0.03333333333 | K37: =$G$37*K5 -> 0.03333333333 | L37: 0.03333333333 | M37: 0.03333333333 | N37: 0.03333333333 | O37: 0.03333333333 | P37: 0.03333333333 | Q37: 0.03333333333 | R37: 0.03333333333 | S37: 0.03333333333 | T37: 0.03333333333 | U37: 0.03333333333 | V37: 0.03333333333 | W37: 0.03333333333 | X37: 0.03333333333 | Y37: 0.03333333333 | Z37: 0.03333333333 | AA37: 0.03333333333 | AB37: 0.03333333333 | AC37: 0.03333333333 | AD37: 0.03333333333 | AE37: 0.03333333333 | AF37: 0.03333333333 | AG37: 0.03333333333 | AH37: 0.03333333333 | AI37: 0.03333333333 | AJ37: 0.03333333333 | AK37: 0.03333333333 | AL37: 0.03333333333 | AM37: 0.03333333333 | AN37: 0 | AO37: 0 | AP37: 0 | AQ37: 0 | AR37: 0 | AS37: 0 | AT37: 0 | AU37: 0 | AV37: 0 | AW37: 0 | AX37: 0 | AY37: 0 | AZ37: 0 | BA37: 0 | BB37: 0 | BC37: 0 | BD37: 0 | BE37: 0 | BF37: 0 | BG37: 0 | BH37: 0 | BI37: 0 | BJ37: 0 | BK37: 0 | BL37: 0 | BM37: 0 | BN37: 0 | BO37: 0 | BP37: 0 | BQ37: 0 | BR37: 0 | BS37: 0 | BT37: 0 | BU37: 0 | BV37: 0 | BW37: =$G$37*BW5 -> 0 | BX37: 0 | BY37: 0 | BZ37: 0 | CA37: 0 | CB37: 0 | CC37: 0 | CD37: 0 | CE37: 0 | CF37: 0 | CG37: 0 | CH37: 0 | CI37: 0 | CJ37: 0 | CK37: 0 | CL37: 0 | CM37: 0 | CN37: 0 | CO37: 0 | CP37: 0 | CQ37: 0 | CR37: 0 | CS37: 0 | CT37: 0 | CU37: 0 | CV37: 0 | CW37: 0 | CX37: 0 | CY37: 0 | CZ37: 0 | DA37: 0 | DB37: 0 | DC37: 0 | DD37: 0 | DE37: 0 | DF37: 0 | DG37: 0 | DH37: 0 | DI37: 0 | DJ37: 0 | DK37: 0 | DL37: 0 | DM37: 0 | DN37: 0 | DO37: 0 | DP37: 0 | DQ37: 0 | DR37: 0 | DS37: 0 | DT37: 0 | DU37: 0 | DV37: 0 | DW37: 0 | DX37: 0 | DY37: 0 | DZ37: 0 | EA37: 0 | EB37: 0 | EC37: 0 | ED37: 0 | EE37: 0 | EF37: 0 | EG37: 0 | EH37: 0 | EI37: =$G$37*EI5 -> 0 | EJ37: 0 | EK37: 0 | EL37: 0 | EM37: 0 | EN37: 0 | EO37: 0 | EP37: 0 | EQ37: 0 | ER37: 0 | ES37: 0 | ET37: 0 | EU37: 0 | EV37: 0 | EW37: 0 | EX37: 0 | EY37: 0 | EZ37: 0 | FA37: 0 | FB37: 0 | FC37: 0 | FD37: 0 | FE37: 0 | FF37: 0 | FG37: 0 | FH37: 0 | FI37: 0 | FJ37: 0 | FK37: 0 | FL37: 0 | FM37: 0 | FN37: 0 | FO37: 0 | FP37: 0 | FQ37: 0 | FR37: 0 | FS37: 0 | FT37: 0 | FU37: 0 | FV37: 0 | FW37: 0 | FX37: 0 | FY37: 0 | FZ37: 0 | GA37: 0 | GB37: 0 | GC37: 0 | GD37: 0 | GE37: 0 | GF37: 0 | GG37: 0 | GH37: 0 | GI37: 0 | GJ37: 0 | GK37: 0 | GL37: 0 | GM37: 0 | GN37: 0 | GO37: 0 | GP37: 0 | GQ37: 0 | GR37: 0 | GS37: 0 | GT37: 0 | GU37: =$G$37*GU5 -> 0 | GV37: 0 | GW37: 0 | GX37: 0 | GY37: 0 | GZ37: 0 | HA37: 0
D38: Construction Expenditure | F38: MZN | I38: =SUM(J38:HA38) -> 25000 | J38: =J36*J37 -> 833.3333333 | K38: =K36*K37 -> 833.3333333 | L38: 833.3333333 | M38: 833.3333333 | N38: 833.3333333 | O38: 833.3333333 | P38: 833.3333333 | Q38: 833.3333333 | R38: 833.3333333 | S38: 833.3333333 | T38: 833.3333333 | U38: 833.3333333 | V38: 833.3333333 | W38: 833.3333333 | X38: 833.3333333 | Y38: 833.3333333 | Z38: 833.3333333 | AA38: 833.3333333 | AB38: 833.3333333 | AC38: 833.3333333 | AD38: 833.3333333 | AE38: 833.3333333 | AF38: 833.3333333 | AG38: 833.3333333 | AH38: 833.3333333 | AI38: 833.3333333 | AJ38: 833.3333333 | AK38: 833.3333333 | AL38: 833.3333333 | AM38: 833.3333333 | AN38: 0 | AO38: 0 | AP38: 0 | AQ38: 0 | AR38: 0 | AS38: 0 | AT38: 0 | AU38: 0 | AV38: 0 | AW38: 0 | AX38: 0 | AY38: 0 | AZ38: 0 | BA38: 0 | BB38: 0 | BC38: 0 | BD38: 0 | BE38: 0 | BF38: 0 | BG38: 0 | BH38: 0 | BI38: 0 | BJ38: 0 | BK38: 0 | BL38: 0 | BM38: 0 | BN38: 0 | BO38: 0 | BP38: 0 | BQ38: 0 | BR38: 0 | BS38: 0 | BT38: 0 | BU38: 0 | BV38: 0 | BW38: =BW36*BW37 -> 0 | BX38: 0 | BY38: 0 | BZ38: 0 | CA38: 0 | CB38: 0 | CC38: 0 | CD38: 0 | CE38: 0 | CF38: 0 | CG38: 0 | CH38: 0 | CI38: 0 | CJ38: 0 | CK38: 0 | CL38: 0 | CM38: 0 | CN38: 0 | CO38: 0 | CP38: 0 | CQ38: 0 | CR38: 0 | CS38: 0 | CT38: 0 | CU38: 0 | CV38: 0 | CW38: 0 | CX38: 0 | CY38: 0 | CZ38: 0 | DA38: 0 | DB38: 0 | DC38: 0 | DD38: 0 | DE38: 0 | DF38: 0 | DG38: 0 | DH38: 0 | DI38: 0 | DJ38: 0 | DK38: 0 | DL38: 0 | DM38: 0 | DN38: 0 | DO38: 0 | DP38: 0 | DQ38: 0 | DR38: 0 | DS38: 0 | DT38: 0 | DU38: 0 | DV38: 0 | DW38: 0 | DX38: 0 | DY38: 0 | DZ38: 0 | EA38: 0 | EB38: 0 | EC38: 0 | ED38: 0 | EE38: 0 | EF38: 0 | EG38: 0 | EH38: 0 | EI38: =EI36*EI37 -> 0 | EJ38: 0 | EK38: 0 | EL38: 0 | EM38: 0 | EN38: 0 | EO38: 0 | EP38: 0 | EQ38: 0 | ER38: 0 | ES38: 0 | ET38: 0 | EU38: 0 | EV38: 0 | EW38: 0 | EX38: 0 | EY38: 0 | EZ38: 0 | FA38: 0 | FB38: 0 | FC38: 0 | FD38: 0 | FE38: 0 | FF38: 0 | FG38: 0 | FH38: 0 | FI38: 0 | FJ38: 0 | FK38: 0 | FL38: 0 | FM38: 0 | FN38: 0 | FO38: 0 | FP38: 0 | FQ38: 0 | FR38: 0 | FS38: 0 | FT38: 0 | FU38: 0 | FV38: 0 | FW38: 0 | FX38: 0 | FY38: 0 | FZ38: 0 | GA38: 0 | GB38: 0 | GC38: 0 | GD38: 0 | GE38: 0 | GF38: 0 | GG38: 0 | GH38: 0 | GI38: 0 | GJ38: 0 | GK38: 0 | GL38: 0 | GM38: 0 | GN38: 0 | GO38: 0 | GP38: 0 | GQ38: 0 | GR38: 0 | GS38: 0 | GT38: 0 | GU38: =GU36*GU37 -> 0 | GV38: 0 | GW38: 0 | GX38: 0 | GY38: 0 | GZ38: 0 | HA38: 0
C40: Operation
D41: Base EBITDA | F41: MZN | G41: =G19 -> 1800 | J41: =$G$41 -> 1800 | K41: =$G$41 -> 1800 | L41: 1800 | M41: 1800 | N41: 1800 | O41: 1800 | P41: 1800 | Q41: 1800 | R41: 1800 | S41: 1800 | T41: 1800 | U41: 1800 | V41: 1800 | W41: 1800 | X41: 1800 | Y41: 1800 | Z41: 1800 | AA41: 1800 | AB41: 1800 | AC41: 1800 | AD41: 1800 | AE41: 1800 | AF41: 1800 | AG41: 1800 | AH41: 1800 | AI41: 1800 | AJ41: 1800 | AK41: 1800 | AL41: 1800 | AM41: 1800 | AN41: 1800 | AO41: 1800 | AP41: 1800 | AQ41: 1800 | AR41: 1800 | AS41: 1800 | AT41: 1800 | AU41: 1800 | AV41: 1800 | AW41: 1800 | AX41: 1800 | AY41: 1800 | AZ41: 1800 | BA41: 1800 | BB41: 1800 | BC41: 1800 | BD41: 1800 | BE41: 1800 | BF41: 1800 | BG41: 1800 | BH41: 1800 | BI41: 1800 | BJ41: 1800 | BK41: 1800 | BL41: 1800 | BM41: 1800 | BN41: 1800 | BO41: 1800 | BP41: 1800 | BQ41: 1800 | BR41: 1800 | BS41: 1800 | BT41: 1800 | BU41: 1800 | BV41: 1800 | BW41: =$G$41 -> 1800 | BX41: 1800 | BY41: 1800 | BZ41: 1800 | CA41: 1800 | CB41: 1800 | CC41: 1800 | CD41: 1800 | CE41: 1800 | CF41: 1800 | CG41: 1800 | CH41: 1800 | CI41: 1800 | CJ41: 1800 | CK41: 1800 | CL41: 1800 | CM41: 1800 | CN41: 1800 | CO41: 1800 | CP41: 1800 | CQ41: 1800 | CR41: 1800 | CS41: 1800 | CT41: 1800 | CU41: 1800 | CV41: 1800 | CW41: 1800 | CX41: 1800 | CY41: 1800 | CZ41: 1800 | DA41: 1800 | DB41: 1800 | DC41: 1800 | DD41: 1800 | DE41: 1800 | DF41: 1800 | DG41: 1800 | DH41: 1800 | DI41: 1800 | DJ41: 1800 | DK41: 1800 | DL41: 1800 | DM41: 1800 | DN41: 1800 | DO41: 1800 | DP41: 1800 | DQ41: 1800 | DR41: 1800 | DS41: 1800 | DT41: 1800 | DU41: 1800 | DV41: 1800 | DW41: 1800 | DX41: 1800 | DY41: 1800 | DZ41: 1800 | EA41: 1800 | EB41: 1800 | EC41: 1800 | ED41: 1800 | EE41: 1800 | EF41: 1800 | EG41: 1800 | EH41: 1800 | EI41: =$G$41 -> 1800 | EJ41: 1800 | EK41: 1800 | EL41: 1800 | EM41: 1800 | EN41: 1800 | EO41: 1800 | EP41: 1800 | EQ41: 1800 | ER41: 1800 | ES41: 1800 | ET41: 1800 | EU41: 1800 | EV41: 1800 | EW41: 1800 | EX41: 1800 | EY41: 1800 | EZ41: 1800 | FA41: 1800 | FB41: 1800 | FC41: 1800 | FD41: 1800 | FE41: 1800 | FF41: 1800 | FG41: 1800 | FH41: 1800 | FI41: 1800 | FJ41: 1800 | FK41: 1800 | FL41: 1800 | FM41: 1800 | FN41: 1800 | FO41: 1800 | FP41: 1800 | FQ41: 1800 | FR41: 1800 | FS41: 1800 | FT41: 1800 | FU41: 1800 | FV41: 1800 | FW41: 1800 | FX41: 1800 | FY41: 1800 | FZ41: 1800 | GA41: 1800 | GB41: 1800 | GC41: 1800 | GD41: 1800 | GE41: 1800 | GF41: 1800 | GG41: 1800 | GH41: 1800 | GI41: 1800 | GJ41: 1800 | GK41: 1800 | GL41: 1800 | GM41: 1800 | GN41: 1800 | GO41: 1800 | GP41: 1800 | GQ41: 1800 | GR41: 1800 | GS41: 1800 | GT41: 1800 | GU41: =$G$41 -> 1800 | GV41: 1800 | GW41: 1800 | GX41: 1800 | GY41: 1800 | GZ41: 1800 | HA41: 1800
D42: Growth Index | F42: Index | G42: =G20 -> 0.02 | I42: 1 | J42: =I42*(1+J9*$G$42) -> 1 | K42: =J42*(1+K9*$G$42) -> 1 | L42: 1 | M42: 1 | N42: 1 | O42: 1 | P42: 1 | Q42: 1 | R42: 1 | S42: 1 | T42: 1 | U42: 1 | V42: 1 | W42: 1 | X42: 1 | Y42: 1 | Z42: 1 | AA42: 1 | AB42: 1 | AC42: 1 | AD42: 1 | AE42: 1 | AF42: 1 | AG42: 1 | AH42: 1 | AI42: 1 | AJ42: 1 | AK42: 1 | AL42: 1 | AM42: 1 | AN42: 1.02 | AO42: 1.0404 | AP42: 1.061208 | AQ42: 1.08243216 | AR42: 1.104080803 | AS42: 1.126162419 | AT42: 1.148685668 | AU42: 1.171659381 | AV42: 1.195092569 | AW42: 1.21899442 | AX42: 1.243374308 | AY42: 1.268241795 | AZ42: 1.29360663 | BA42: 1.319478763 | BB42: 1.345868338 | BC42: 1.372785705 | BD42: 1.400241419 | BE42: 1.428246248 | BF42: 1.456811173 | BG42: 1.485947396 | BH42: 1.515666344 | BI42: 1.545979671 | BJ42: 1.576899264 | BK42: 1.608437249 | BL42: 1.640605994 | BM42: 1.673418114 | BN42: 1.706886477 | BO42: 1.741024206 | BP42: 1.77584469 | BQ42: 1.811361584 | BR42: 1.811361584 | BS42: 1.811361584 | BT42: 1.811361584 | BU42: 1.811361584 | BV42: 1.811361584 | BW42: =BV42*(1+BW9*$G$42) -> 1.811361584 | BX42: 1.811361584 | BY42: 1.811361584 | BZ42: 1.811361584 | CA42: 1.811361584 | CB42: 1.811361584 | CC42: 1.811361584 | CD42: 1.811361584 | CE42: 1.811361584 | CF42: 1.811361584 | CG42: 1.811361584 | CH42: 1.811361584 | CI42: 1.811361584 | CJ42: 1.811361584 | CK42: 1.811361584 | CL42: 1.811361584 | CM42: 1.811361584 | CN42: 1.811361584 | CO42: 1.811361584 | CP42: 1.811361584 | CQ42: 1.811361584 | CR42: 1.811361584 | CS42: 1.811361584 | CT42: 1.811361584 | CU42: 1.811361584 | CV42: 1.811361584 | CW42: 1.811361584 | CX42: 1.811361584 | CY42: 1.811361584 | CZ42: 1.811361584 | DA42: 1.811361584 | DB42: 1.811361584 | DC42: 1.811361584 | DD42: 1.811361584 | DE42: 1.811361584 | DF42: 1.811361584 | DG42: 1.811361584 | DH42: 1.811361584 | DI42: 1.811361584 | DJ42: 1.811361584 | DK42: 1.811361584 | DL42: 1.811361584 | DM42: 1.811361584 | DN42: 1.811361584 | DO42: 1.811361584 | DP42: 1.811361584 | DQ42: 1.811361584 | DR42: 1.811361584 | DS42: 1.811361584 | DT42: 1.811361584 | DU42: 1.811361584 | DV42: 1.811361584 | DW42: 1.811361584 | DX42: 1.811361584 | DY42: 1.811361584 | DZ42: 1.811361584 | EA42: 1.811361584 | EB42: 1.811361584 | EC42: 1.811361584 | ED42: 1.811361584 | EE42: 1.811361584 | EF42: 1.811361584 | EG42: 1.811361584 | EH42: 1.811361584 | EI42: =EH42*(1+EI9*$G$42) -> 1.811361584 | EJ42: 1.811361584 | EK42: 1.811361584 | EL42: 1.811361584 | EM42: 1.811361584 | EN42: 1.811361584 | EO42: 1.811361584 | EP42: 1.811361584 | EQ42: 1.811361584 | ER42: 1.811361584 | ES42: 1.811361584 | ET42: 1.811361584 | EU42: 1.811361584 | EV42: 1.811361584 | EW42: 1.811361584 | EX42: 1.811361584 | EY42: 1.811361584 | EZ42: 1.811361584 | FA42: 1.811361584 | FB42: 1.811361584 | FC42: 1.811361584 | FD42: 1.811361584 | FE42: 1.811361584 | FF42: 1.811361584 | FG42: 1.811361584 | FH42: 1.811361584 | FI42: 1.811361584 | FJ42: 1.811361584 | FK42: 1.811361584 | FL42: 1.811361584 | FM42: 1.811361584 | FN42: 1.811361584 | FO42: 1.811361584 | FP42: 1.811361584 | FQ42: 1.811361584 | FR42: 1.811361584 | FS42: 1.811361584 | FT42: 1.811361584 | FU42: 1.811361584 | FV42: 1.811361584 | FW42: 1.811361584 | FX42: 1.811361584 | FY42: 1.811361584 | FZ42: 1.811361584 | GA42: 1.811361584 | GB42: 1.811361584 | GC42: 1.811361584 | GD42: 1.811361584 | GE42: 1.811361584 | GF42: 1.811361584 | GG42: 1.811361584 | GH42: 1.811361584 | GI42: 1.811361584 | GJ42: 1.811361584 | GK42: 1.811361584 | GL42: 1.811361584 | GM42: 1.811361584 | GN42: 1.811361584 | GO42: 1.811361584 | GP42: 1.811361584 | GQ42: 1.811361584 | GR42: 1.811361584 | GS42: 1.811361584 | GT42: 1.811361584 | GU42: =GT42*(1+GU9*$G$42) -> 1.811361584 | GV42: 1.811361584 | GW42: 1.811361584 | GX42: 1.811361584 | GY42: 1.811361584 | GZ42: 1.811361584 | HA42: 1.811361584
D43: EBITDA Applied | F43: MZN | J43: =J41*J42*J9 -> 0 | K43: =K41*K42*K9 -> 0 | L43: 0 | M43: 0 | N43: 0 | O43: 0 | P43: 0 | Q43: 0 | R43: 0 | S43: 0 | T43: 0 | U43: 0 | V43: 0 | W43: 0 | X43: 0 | Y43: 0 | Z43: 0 | AA43: 0 | AB43: 0 | AC43: 0 | AD43: 0 | AE43: 0 | AF43: 0 | AG43: 0 | AH43: 0 | AI43: 0 | AJ43: 0 | AK43: 0 | AL43: 0 | AM43: 0 | AN43: 1836 | AO43: 1872.72 | AP43: 1910.1744 | AQ43: 1948.377888 | AR43: 1987.345446 | AS43: 2027.092355 | AT43: 2067.634202 | AU43: 2108.986886 | AV43: 2151.166624 | AW43: 2194.189956 | AX43: 2238.073755 | AY43: 2282.83523 | AZ43: 2328.491935 | BA43: 2375.061774 | BB43: 2422.563009 | BC43: 2471.014269 | BD43: 2520.434555 | BE43: 2570.843246 | BF43: 2622.260111 | BG43: 2674.705313 | BH43: 2728.199419 | BI43: 2782.763407 | BJ43: 2838.418676 | BK43: 2895.187049 | BL43: 2953.09079 | BM43: 3012.152606 | BN43: 3072.395658 | BO43: 3133.843571 | BP43: 3196.520443 | BQ43: 3260.450851 | BR43: 0 | BS43: 0 | BT43: 0 | BU43: 0 | BV43: 0 | BW43: =BW41*BW42*BW9 -> 0 | BX43: 0 | BY43: 0 | BZ43: 0 | CA43: 0 | CB43: 0 | CC43: 0 | CD43: 0 | CE43: 0 | CF43: 0 | CG43: 0 | CH43: 0 | CI43: 0 | CJ43: 0 | CK43: 0 | CL43: 0 | CM43: 0 | CN43: 0 | CO43: 0 | CP43: 0 | CQ43: 0 | CR43: 0 | CS43: 0 | CT43: 0 | CU43: 0 | CV43: 0 | CW43: 0 | CX43: 0 | CY43: 0 | CZ43: 0 | DA43: 0 | DB43: 0 | DC43: 0 | DD43: 0 | DE43: 0 | DF43: 0 | DG43: 0 | DH43: 0 | DI43: 0 | DJ43: 0 | DK43: 0 | DL43: 0 | DM43: 0 | DN43: 0 | DO43: 0 | DP43: 0 | DQ43: 0 | DR43: 0 | DS43: 0 | DT43: 0 | DU43: 0 | DV43: 0 | DW43: 0 | DX43: 0 | DY43: 0 | DZ43: 0 | EA43: 0 | EB43: 0 | EC43: 0 | ED43: 0 | EE43: 0 | EF43: 0 | EG43: 0 | EH43: 0 | EI43: =EI41*EI42*EI9 -> 0 | EJ43: 0 | EK43: 0 | EL43: 0 | EM43: 0 | EN43: 0 | EO43: 0 | EP43: 0 | EQ43: 0 | ER43: 0 | ES43: 0 | ET43: 0 | EU43: 0 | EV43: 0 | EW43: 0 | EX43: 0 | EY43: 0 | EZ43: 0 | FA43: 0 | FB43: 0 | FC43: 0 | FD43: 0 | FE43: 0 | FF43: 0 | FG43: 0 | FH43: 0 | FI43: 0 | FJ43: 0 | FK43: 0 | FL43: 0 | FM43: 0 | FN43: 0 | FO43: 0 | FP43: 0 | FQ43: 0 | FR43: 0 | FS43: 0 | FT43: 0 | FU43: 0 | FV43: 0 | FW43: 0 | FX43: 0 | FY43: 0 | FZ43: 0 | GA43: 0 | GB43: 0 | GC43: 0 | GD43: 0 | GE43: 0 | GF43: 0 | GG43: 0 | GH43: 0 | GI43: 0 | GJ43: 0 | GK43: 0 | GL43: 0 | GM43: 0 | GN43: 0 | GO43: 0 | GP43: 0 | GQ43: 0 | GR43: 0 | GS43: 0 | GT43: 0 | GU43: =GU41*GU42*GU9 -> 0 | GV43: 0 | GW43: 0 | GX43: 0 | GY43: 0 | GZ43: 0 | HA43: 0
D45: Free Cash Flow | F45: MZN | J45: =J43-J38 -> -833.3333333 | K45: =K43-K38 -> -833.3333333 | L45: -833.3333333 | M45: -833.3333333 | N45: -833.3333333 | O45: -833.3333333 | P45: -833.3333333 | Q45: -833.3333333 | R45: -833.3333333 | S45: -833.3333333 | T45: -833.3333333 | U45: -833.3333333 | V45: -833.3333333 | W45: -833.3333333 | X45: -833.3333333 | Y45: -833.3333333 | Z45: -833.3333333 | AA45: -833.3333333 | AB45: -833.3333333 | AC45: -833.3333333 | AD45: -833.3333333 | AE45: -833.3333333 | AF45: -833.3333333 | AG45: -833.3333333 | AH45: -833.3333333 | AI45: -833.3333333 | AJ45: -833.3333333 | AK45: -833.3333333 | AL45: -833.3333333 | AM45: -833.3333333 | AN45: 1836 | AO45: 1872.72 | AP45: 1910.1744 | AQ45: 1948.377888 | AR45: 1987.345446 | AS45: 2027.092355 | AT45: 2067.634202 | AU45: 2108.986886 | AV45: 2151.166624 | AW45: 2194.189956 | AX45: 2238.073755 | AY45: 2282.83523 | AZ45: 2328.491935 | BA45: 2375.061774 | BB45: 2422.563009 | BC45: 2471.014269 | BD45: 2520.434555 | BE45: 2570.843246 | BF45: 2622.260111 | BG45: 2674.705313 | BH45: 2728.199419 | BI45: 2782.763407 | BJ45: 2838.418676 | BK45: 2895.187049 | BL45: 2953.09079 | BM45: 3012.152606 | BN45: 3072.395658 | BO45: 3133.843571 | BP45: 3196.520443 | BQ45: 3260.450851 | BR45: 0 | BS45: 0 | BT45: 0 | BU45: 0 | BV45: 0 | BW45: =BW43-BW38 -> 0 | BX45: 0 | BY45: 0 | BZ45: 0 | CA45: 0 | CB45: 0 | CC45: 0 | CD45: 0 | CE45: 0 | CF45: 0 | CG45: 0 | CH45: 0 | CI45: 0 | CJ45: 0 | CK45: 0 | CL45: 0 | CM45: 0 | CN45: 0 | CO45: 0 | CP45: 0 | CQ45: 0 | CR45: 0 | CS45: 0 | CT45: 0 | CU45: 0 | CV45: 0 | CW45: 0 | CX45: 0 | CY45: 0 | CZ45: 0 | DA45: 0 | DB45: 0 | DC45: 0 | DD45: 0 | DE45: 0 | DF45: 0 | DG45: 0 | DH45: 0 | DI45: 0 | DJ45: 0 | DK45: 0 | DL45: 0 | DM45: 0 | DN45: 0 | DO45: 0 | DP45: 0 | DQ45: 0 | DR45: 0 | DS45: 0 | DT45: 0 | DU45: 0 | DV45: 0 | DW45: 0 | DX45: 0 | DY45: 0 | DZ45: 0 | EA45: 0 | EB45: 0 | EC45: 0 | ED45: 0 | EE45: 0 | EF45: 0 | EG45: 0 | EH45: 0 | EI45: =EI43-EI38 -> 0 | EJ45: 0 | EK45: 0 | EL45: 0 | EM45: 0 | EN45: 0 | EO45: 0 | EP45: 0 | EQ45: 0 | ER45: 0 | ES45: 0 | ET45: 0 | EU45: 0 | EV45: 0 | EW45: 0 | EX45: 0 | EY45: 0 | EZ45: 0 | FA45: 0 | FB45: 0 | FC45: 0 | FD45: 0 | FE45: 0 | FF45: 0 | FG45: 0 | FH45: 0 | FI45: 0 | FJ45: 0 | FK45: 0 | FL45: 0 | FM45: 0 | FN45: 0 | FO45: 0 | FP45: 0 | FQ45: 0 | FR45: 0 | FS45: 0 | FT45: 0 | FU45: 0 | FV45: 0 | FW45: 0 | FX45: 0 | FY45: 0 | FZ45: 0 | GA45: 0 | GB45: 0 | GC45: 0 | GD45: 0 | GE45: 0 | GF45: 0 | GG45: 0 | GH45: 0 | GI45: 0 | GJ45: 0 | GK45: 0 | GL45: 0 | GM45: 0 | GN45: 0 | GO45: 0 | GP45: 0 | GQ45: 0 | GR45: 0 | GS45: 0 | GT45: 0 | GU45: =GU43-GU38 -> 0 | GV45: 0 | GW45: 0 | GX45: 0 | GY45: 0 | GZ45: 0 | HA45: 0
D46: Date | F46: Date | I46: 2020-01-01 | J46: =EDATE(I46,J8) -> 2020-02-01 | K46: =EDATE(J46,K8) -> 2020-03-01 | L46: 2020-04-01 | M46: 2020-05-01 | N46: 2020-06-01 | O46: 2020-07-01 | P46: 2020-08-01 | Q46: 2020-09-01 | R46: 2020-10-01 | S46: 2020-11-01 | T46: 2020-12-01 | U46: 2021-01-01 | V46: 2021-02-01 | W46: 2021-03-01 | X46: 2021-04-01 | Y46: 2021-05-01 | Z46: 2021-06-01 | AA46: 2021-07-01 | AB46: 2021-08-01 | AC46: 2021-09-01 | AD46: 2021-10-01 | AE46: 2021-11-01 | AF46: 2021-12-01 | AG46: 2022-01-01 | AH46: 2022-02-01 | AI46: 2022-03-01 | AJ46: 2022-04-01 | AK46: 2022-05-01 | AL46: 2022-06-01 | AM46: 2022-07-01 | AN46: 2023-07-01 | AO46: 2024-07-01 | AP46: 2025-07-01 | AQ46: 2026-07-01 | AR46: 2027-07-01 | AS46: 2028-07-01 | AT46: 2029-07-01 | AU46: 2030-07-01 | AV46: 2031-07-01 | AW46: 2032-07-01 | AX46: 2033-07-01 | AY46: 2034-07-01 | AZ46: 2035-07-01 | BA46: 2036-07-01 | BB46: 2037-07-01 | BC46: 2038-07-01 | BD46: 2039-07-01 | BE46: 2040-07-01 | BF46: 2041-07-01 | BG46: 2042-07-01 | BH46: 2043-07-01 | BI46: 2044-07-01 | BJ46: 2045-07-01 | BK46: 2046-07-01 | BL46: 2047-07-01 | BM46: 2048-07-01 | BN46: 2049-07-01 | BO46: 2050-07-01 | BP46: 2051-07-01 | BQ46: 2052-07-01 | BR46: 2053-07-01 | BS46: 2054-07-01 | BT46: 2055-07-01 | BU46: 2056-07-01 | BV46: 2057-07-01 | BW46: =EDATE(BV46,BW8) -> 2058-07-01 | BX46: 2059-07-01 | BY46: 2060-07-01 | BZ46: 2061-07-01 | CA46: 2062-07-01 | CB46: 2063-07-01 | CC46: 2064-07-01 | CD46: 2065-07-01 | CE46: 2066-07-01 | CF46: 2067-07-01 | CG46: 2068-07-01 | CH46: 2069-07-01 | CI46: 2070-07-01 | CJ46: 2071-07-01 | CK46: 2072-07-01 | CL46: 2073-07-01 | CM46: 2074-07-01 | CN46: 2075-07-01 | CO46: 2076-07-01 | CP46: 2077-07-01 | CQ46: 2078-07-01 | CR46: 2079-07-01 | CS46: 2080-07-01 | CT46: 2081-07-01 | CU46: 2082-07-01 | CV46: 2083-07-01 | CW46: 2084-07-01 | CX46: 2085-07-01 | CY46: 2086-07-01 | CZ46: 2087-07-01 | DA46: 2088-07-01 | DB46: 2089-07-01 | DC46: 2090-07-01 | DD46: 2091-07-01 | DE46: 2092-07-01 | DF46: 2093-07-01 | DG46: 2094-07-01 | DH46: 2095-07-01 | DI46: 2096-07-01 | DJ46: 2097-07-01 | DK46: 2098-07-01 | DL46: 2099-07-01 | DM46: 2100-07-01 | DN46: 2101-07-01 | DO46: 2102-07-01 | DP46: 2103-07-01 | DQ46: 2104-07-01 | DR46: 2105-07-01 | DS46: 2106-07-01 | DT46: 2107-07-01 | DU46: 2108-07-01 | DV46: 2109-07-01 | DW46: 2110-07-01 | DX46: 2111-07-01 | DY46: 2112-07-01 | DZ46: 2113-07-01 | EA46: 2114-07-01 | EB46: 2115-07-01 | EC46: 2116-07-01 | ED46: 2117-07-01 | EE46: 2118-07-01 | EF46: 2119-07-01 | EG46: 2120-07-01 | EH46: 2121-07-01 | EI46: =EDATE(EH46,EI8) -> 2122-07-01 | EJ46: 2123-07-01 | EK46: 2124-07-01 | EL46: 2125-07-01 | EM46: 2126-07-01 | EN46: 2127-07-01 | EO46: 2128-07-01 | EP46: 2129-07-01 | EQ46: 2130-07-01 | ER46: 2131-07-01 | ES46: 2132-07-01 | ET46: 2133-07-01 | EU46: 2134-07-01 | EV46: 2135-07-01 | EW46: 2136-07-01 | EX46: 2137-07-01 | EY46: 2138-07-01 | EZ46: 2139-07-01 | FA46: 2140-07-01 | FB46: 2141-07-01 | FC46: 2142-07-01 | FD46: 2143-07-01 | FE46: 2144-07-01 | FF46: 2145-07-01 | FG46: 2146-07-01 | FH46: 2147-07-01 | FI46: 2148-07-01 | FJ46: 2149-07-01 | FK46: 2150-07-01 | FL46: 2151-07-01 | FM46: 2152-07-01 | FN46: 2153-07-01 | FO46: 2154-07-01 | FP46: 2155-07-01 | FQ46: 2156-07-01 | FR46: 2157-07-01 | FS46: 2158-07-01 | FT46: 2159-07-01 | FU46: 2160-07-01 | FV46: 2161-07-01 | FW46: 2162-07-01 | FX46: 2163-07-01 | FY46: 2164-07-01 | FZ46: 2165-07-01 | GA46: 2166-07-01 | GB46: 2167-07-01 | GC46: 2168-07-01 | GD46: 2169-07-01 | GE46: 2170-07-01 | GF46: 2171-07-01 | GG46: 2172-07-01 | GH46: 2173-07-01 | GI46: 2174-07-01 | GJ46: 2175-07-01 | GK46: 2176-07-01 | GL46: 2177-07-01 | GM46: 2178-07-01 | GN46: 2179-07-01 | GO46: 2180-07-01 | GP46: 2181-07-01 | GQ46: 2182-07-01 | GR46: 2183-07-01 | GS46: 2184-07-01 | GT46: 2185-07-01 | GU46: =EDATE(GT46,GU8) -> 2186-07-01 | GV46: 2187-07-01 | GW46: 2188-07-01 | GX46: 2189-07-01 | GY46: 2190-07-01 | GZ46: 2191-07-01 | HA46: 2192-07-01
D47: Project IRR - Pre-tax | F47: % | G47: =XIRR(J45:HA45,J46:HA46) -> 0.07237564623
B49: Summary Sources and Uses
C50: Uses of Funds | K50: Fixed | L50: Computed | M50: Difference | N50: UDF
D51: Capital Expenditures | F51: MZN | G51: =I38 -> 25000
D52: IDC | F52: MZN | G52: =K52 -> 1144.349635 | K52: 1144.349635 | L52: =I66 -> 1144.349635 | M52: =K52-L52 -> 0
D53: Up Front Fee | F53: MZN | G53: =K53 -> 396.9028268 | K53: 396.9028268 | L53: =I67 -> 396.9028268 | M53: =K53-L53 -> 0
D54: Commitment Fee | F54: MZN | G54: =K54 -> 400.8879099 | K54: 400.8879099 | L54: =I68 -> 400.8879099 | M54: =K54-L54 -> 0
D55: DSRA | F55: MZN | G55: =K55 -> 1408.061544 | K55: 1408.061544 | L55: =I69 -> 1408.061544
E56: Total Uses | F56: MZN | G56: =SUM(G51:G55) -> 28350.20191 | M56: =SUM(M51:M55)+I72 -> 0
C58: Sources
D59: Debt | F59: MZN | G59: =G56*H59 -> 19845.14134 | H59: =G23 -> 0.7
D60: Equity | F60: MZN | G60: =G56-G59 -> 8505.060574
D61: Total Sources | F61: MZN | G61: =SUM(G59:G60) -> 28350.20191
B63: Construction Funding
C64: Funing Requirements
D65: Capital Expenditures | F65: MZN | I65: =SUM(J65:HA65) -> 25000 | J65: =J38 -> 833.3333333 | K65: =K38 -> 833.3333333 | L65: 833.3333333 | M65: 833.3333333 | N65: 833.3333333 | O65: 833.3333333 | P65: 833.3333333 | Q65: 833.3333333 | R65: 833.3333333 | S65: 833.3333333 | T65: 833.3333333 | U65: 833.3333333 | V65: 833.3333333 | W65: 833.3333333 | X65: 833.3333333 | Y65: 833.3333333 | Z65: 833.3333333 | AA65: 833.3333333 | AB65: 833.3333333 | AC65: 833.3333333 | AD65: 833.3333333 | AE65: 833.3333333 | AF65: 833.3333333 | AG65: 833.3333333 | AH65: 833.3333333 | AI65: 833.3333333 | AJ65: 833.3333333 | AK65: 833.3333333 | AL65: 833.3333333 | AM65: 833.3333333 | AN65: 0 | AO65: 0 | AP65: 0 | AQ65: 0 | AR65: 0 | AS65: 0 | AT65: 0 | AU65: 0 | AV65: 0 | AW65: 0 | AX65: 0 | AY65: 0 | AZ65: 0 | BA65: 0 | BB65: 0 | BC65: 0 | BD65: 0 | BE65: 0 | BF65: 0 | BG65: 0 | BH65: 0 | BI65: 0 | BJ65: 0 | BK65: 0 | BL65: 0 | BM65: 0 | BN65: 0 | BO65: 0 | BP65: 0 | BQ65: 0 | BR65: 0 | BS65: 0 | BT65: 0 | BU65: 0 | BV65: 0 | BW65: =BW38 -> 0 | BX65: 0 | BY65: 0 | BZ65: 0 | CA65: 0 | CB65: 0 | CC65: 0 | CD65: 0 | CE65: 0 | CF65: 0 | CG65: 0 | CH65: 0 | CI65: 0 | CJ65: 0 | CK65: 0 | CL65: 0 | CM65: 0 | CN65: 0 | CO65: 0 | CP65: 0 | CQ65: 0 | CR65: 0 | CS65: 0 | CT65: 0 | CU65: 0 | CV65: 0 | CW65: 0 | CX65: 0 | CY65: 0 | CZ65: 0 | DA65: 0 | DB65: 0 | DC65: 0 | DD65: 0 | DE65: 0 | DF65: 0 | DG65: 0 | DH65: 0 | DI65: 0 | DJ65: 0 | DK65: 0 | DL65: 0 | DM65: 0 | DN65: 0 | DO65: 0 | DP65: 0 | DQ65: 0 | DR65: 0 | DS65: 0 | DT65: 0 | DU65: 0 | DV65: 0 | DW65: 0 | DX65: 0 | DY65: 0 | DZ65: 0 | EA65: 0 | EB65: 0 | EC65: 0 | ED65: 0 | EE65: 0 | EF65: 0 | EG65: 0 | EH65: 0 | EI65: =EI38 -> 0 | EJ65: 0 | EK65: 0 | EL65: 0 | EM65: 0 | EN65: 0 | EO65: 0 | EP65: 0 | EQ65: 0 | ER65: 0 | ES65: 0 | ET65: 0 | EU65: 0 | EV65: 0 | EW65: 0 | EX65: 0 | EY65: 0 | EZ65: 0 | FA65: 0 | FB65: 0 | FC65: 0 | FD65: 0 | FE65: 0 | FF65: 0 | FG65: 0 | FH65: 0 | FI65: 0 | FJ65: 0 | FK65: 0 | FL65: 0 | FM65: 0 | FN65: 0 | FO65: 0 | FP65: 0 | FQ65: 0 | FR65: 0 | FS65: 0 | FT65: 0 | FU65: 0 | FV65: 0 | FW65: 0 | FX65: 0 | FY65: 0 | FZ65: 0 | GA65: 0 | GB65: 0 | GC65: 0 | GD65: 0 | GE65: 0 | GF65: 0 | GG65: 0 | GH65: 0 | GI65: 0 | GJ65: 0 | GK65: 0 | GL65: 0 | GM65: 0 | GN65: 0 | GO65: 0 | GP65: 0 | GQ65: 0 | GR65: 0 | GS65: 0 | GT65: 0 | GU65: =GU38 -> 0 | GV65: 0 | GW65: 0 | GX65: 0 | GY65: 0 | GZ65: 0 | HA65: 0
D66: IDC | F66: MZN | I66: =SUM(J66:HA66) -> 1144.349635 | J66: =J92 -> 0 | K66: =K92 -> 3.660540878 | L66: 6.170922116 | M66: 8.686428715 | N66: 11.20707114 | O66: 13.73285988 | P66: 16.26380543 | Q66: 18.79991834 | R66: 21.34120914 | S66: 23.8876884 | T66: 26.43936674 | U66: 28.99625474 | V66: 31.55836306 | W66: 34.12570235 | X66: 36.6982833 | Y66: 39.27611659 | Z66: 41.85921296 | AA66: 44.44758316 | AB66: 47.04123794 | AC66: 49.6401881 | AD66: 52.24444445 | AE66: 54.85401782 | AF66: 57.46891908 | AG66: 60.08915909 | AH66: 62.71474875 | AI66: 65.345699 | AJ66: 67.98202077 | AK66: 70.62372503 | AL66: 73.27082276 | AM66: 75.92332499 | AN66: 0 | AO66: 0 | AP66: 0 | AQ66: 0 | AR66: 0 | AS66: 0 | AT66: 0 | AU66: 0 | AV66: 0 | AW66: 0 | AX66: 0 | AY66: 0 | AZ66: 0 | BA66: 0 | BB66: 0 | BC66: 0 | BD66: 0 | BE66: 0 | BF66: 0 | BG66: 0 | BH66: 0 | BI66: 0 | BJ66: 0 | BK66: 0 | BL66: 0 | BM66: 0 | BN66: 0 | BO66: 0 | BP66: 0 | BQ66: 0 | BR66: 0 | BS66: 0 | BT66: 0 | BU66: 0 | BV66: 0 | BW66: =BW92 -> 0 | BX66: 0 | BY66: 0 | BZ66: 0 | CA66: 0 | CB66: 0 | CC66: 0 | CD66: 0 | CE66: 0 | CF66: 0 | CG66: 0 | CH66: 0 | CI66: 0 | CJ66: 0 | CK66: 0 | CL66: 0 | CM66: 0 | CN66: 0 | CO66: 0 | CP66: 0 | CQ66: 0 | CR66: 0 | CS66: 0 | CT66: 0 | CU66: 0 | CV66: 0 | CW66: 0 | CX66: 0 | CY66: 0 | CZ66: 0 | DA66: 0 | DB66: 0 | DC66: 0 | DD66: 0 | DE66: 0 | DF66: 0 | DG66: 0 | DH66: 0 | DI66: 0 | DJ66: 0 | DK66: 0 | DL66: 0 | DM66: 0 | DN66: 0 | DO66: 0 | DP66: 0 | DQ66: 0 | DR66: 0 | DS66: 0 | DT66: 0 | DU66: 0 | DV66: 0 | DW66: 0 | DX66: 0 | DY66: 0 | DZ66: 0 | EA66: 0 | EB66: 0 | EC66: 0 | ED66: 0 | EE66: 0 | EF66: 0 | EG66: 0 | EH66: 0 | EI66: =EI92 -> 0 | EJ66: 0 | EK66: 0 | EL66: 0 | EM66: 0 | EN66: 0 | EO66: 0 | EP66: 0 | EQ66: 0 | ER66: 0 | ES66: 0 | ET66: 0 | EU66: 0 | EV66: 0 | EW66: 0 | EX66: 0 | EY66: 0 | EZ66: 0 | FA66: 0 | FB66: 0 | FC66: 0 | FD66: 0 | FE66: 0 | FF66: 0 | FG66: 0 | FH66: 0 | FI66: 0 | FJ66: 0 | FK66: 0 | FL66: 0 | FM66: 0 | FN66: 0 | FO66: 0 | FP66: 0 | FQ66: 0 | FR66: 0 | FS66: 0 | FT66: 0 | FU66: 0 | FV66: 0 | FW66: 0 | FX66: 0 | FY66: 0 | FZ66: 0 | GA66: 0 | GB66: 0 | GC66: 0 | GD66: 0 | GE66: 0 | GF66: 0 | GG66: 0 | GH66: 0 | GI66: 0 | GJ66: 0 | GK66: 0 | GL66: 0 | GM66: 0 | GN66: 0 | GO66: 0 | GP66: 0 | GQ66: 0 | GR66: 0 | GS66: 0 | GT66: 0 | GU66: =GU92 -> 0 | GV66: 0 | GW66: 0 | GX66: 0 | GY66: 0 | GZ66: 0 | HA66: 0
D67: Up Front Fee | F67: MZN | I67: =SUM(J67:HA67) -> 396.9028268 | J67: =J96 -> 396.9028268 | K67: =K96 -> 0 | L67: 0 | M67: 0 | N67: 0 | O67: 0 | P67: 0 | Q67: 0 | R67: 0 | S67: 0 | T67: 0 | U67: 0 | V67: 0 | W67: 0 | X67: 0 | Y67: 0 | Z67: 0 | AA67: 0 | AB67: 0 | AC67: 0 | AD67: 0 | AE67: 0 | AF67: 0 | AG67: 0 | AH67: 0 | AI67: 0 | AJ67: 0 | AK67: 0 | AL67: 0 | AM67: 0 | AN67: 0 | AO67: 0 | AP67: 0 | AQ67: 0 | AR67: 0 | AS67: 0 | AT67: 0 | AU67: 0 | AV67: 0 | AW67: 0 | AX67: 0 | AY67: 0 | AZ67: 0 | BA67: 0 | BB67: 0 | BC67: 0 | BD67: 0 | BE67: 0 | BF67: 0 | BG67: 0 | BH67: 0 | BI67: 0 | BJ67: 0 | BK67: 0 | BL67: 0 | BM67: 0 | BN67: 0 | BO67: 0 | BP67: 0 | BQ67: 0 | BR67: 0 | BS67: 0 | BT67: 0 | BU67: 0 | BV67: 0 | BW67: =BW96 -> 0 | BX67: 0 | BY67: 0 | BZ67: 0 | CA67: 0 | CB67: 0 | CC67: 0 | CD67: 0 | CE67: 0 | CF67: 0 | CG67: 0 | CH67: 0 | CI67: 0 | CJ67: 0 | CK67: 0 | CL67: 0 | CM67: 0 | CN67: 0 | CO67: 0 | CP67: 0 | CQ67: 0 | CR67: 0 | CS67: 0 | CT67: 0 | CU67: 0 | CV67: 0 | CW67: 0 | CX67: 0 | CY67: 0 | CZ67: 0 | DA67: 0 | DB67: 0 | DC67: 0 | DD67: 0 | DE67: 0 | DF67: 0 | DG67: 0 | DH67: 0 | DI67: 0 | DJ67: 0 | DK67: 0 | DL67: 0 | DM67: 0 | DN67: 0 | DO67: 0 | DP67: 0 | DQ67: 0 | DR67: 0 | DS67: 0 | DT67: 0 | DU67: 0 | DV67: 0 | DW67: 0 | DX67: 0 | DY67: 0 | DZ67: 0 | EA67: 0 | EB67: 0 | EC67: 0 | ED67: 0 | EE67: 0 | EF67: 0 | EG67: 0 | EH67: 0 | EI67: =EI96 -> 0 | EJ67: 0 | EK67: 0 | EL67: 0 | EM67: 0 | EN67: 0 | EO67: 0 | EP67: 0 | EQ67: 0 | ER67: 0 | ES67: 0 | ET67: 0 | EU67: 0 | EV67: 0 | EW67: 0 | EX67: 0 | EY67: 0 | EZ67: 0 | FA67: 0 | FB67: 0 | FC67: 0 | FD67: 0 | FE67: 0 | FF67: 0 | FG67: 0 | FH67: 0 | FI67: 0 | FJ67: 0 | FK67: 0 | FL67: 0 | FM67: 0 | FN67: 0 | FO67: 0 | FP67: 0 | FQ67: 0 | FR67: 0 | FS67: 0 | FT67: 0 | FU67: 0 | FV67: 0 | FW67: 0 | FX67: 0 | FY67: 0 | FZ67: 0 | GA67: 0 | GB67: 0 | GC67: 0 | GD67: 0 | GE67: 0 | GF67: 0 | GG67: 0 | GH67: 0 | GI67: 0 | GJ67: 0 | GK67: 0 | GL67: 0 | GM67: 0 | GN67: 0 | GO67: 0 | GP67: 0 | GQ67: 0 | GR67: 0 | GS67: 0 | GT67: 0 | GU67: =GU96 -> 0 | GV67: 0 | GW67: 0 | GX67: 0 | GY67: 0 | GZ67: 0 | HA67: 0
D68: Commitment Fee | F68: MZN | I68: 400.8879099 | J68: =J100 -> 24.80642668 | K68: =K100 -> 23.70826441 | L68: 22.95515004 | M68: 22.20049806 | N68: 21.44430533 | O68: 20.68656871 | P68: 19.92728505 | Q68: 19.16645117 | R68: 18.40406393 | S68: 17.64012015 | T68: 16.87461666 | U68: 16.10755025 | V68: 15.33891776 | W68: 14.56871597 | X68: 13.79694169 | Y68: 13.0235917 | Z68: 12.24866279 | AA68: 11.47215173 | AB68: 10.69405529 | AC68: 9.914370246 | AD68: 9.133093341 | AE68: 8.350221329 | AF68: 7.565750953 | AG68: 6.77967895 | AH68: 5.99200205 | AI68: 5.202716976 | AJ68: 4.411820445 | AK68: 3.619309168 | AL68: 2.825179846 | AM68: 2.029429177 | AN68: 0 | AO68: 0 | AP68: 0 | AQ68: 0 | AR68: 0 | AS68: 0 | AT68: 0 | AU68: 0 | AV68: 0 | AW68: 0 | AX68: 0 | AY68: 0 | AZ68: 0 | BA68: 0 | BB68: 0 | BC68: 0 | BD68: 0 | BE68: 0 | BF68: 0 | BG68: 0 | BH68: 0 | BI68: 0 | BJ68: 0 | BK68: 0 | BL68: 0 | BM68: 0 | BN68: 0 | BO68: 0 | BP68: 0 | BQ68: 0 | BR68: 0 | BS68: 0 | BT68: 0 | BU68: 0 | BV68: 0 | BW68: =BW100 -> 0 | BX68: 0 | BY68: 0 | BZ68: 0 | CA68: 0 | CB68: 0 | CC68: 0 | CD68: 0 | CE68: 0 | CF68: 0 | CG68: 0 | CH68: 0 | CI68: 0 | CJ68: 0 | CK68: 0 | CL68: 0 | CM68: 0 | CN68: 0 | CO68: 0 | CP68: 0 | CQ68: 0 | CR68: 0 | CS68: 0 | CT68: 0 | CU68: 0 | CV68: 0 | CW68: 0 | CX68: 0 | CY68: 0 | CZ68: 0 | DA68: 0 | DB68: 0 | DC68: 0 | DD68: 0 | DE68: 0 | DF68: 0 | DG68: 0 | DH68: 0 | DI68: 0 | DJ68: 0 | DK68: 0 | DL68: 0 | DM68: 0 | DN68: 0 | DO68: 0 | DP68: 0 | DQ68: 0 | DR68: 0 | DS68: 0 | DT68: 0 | DU68: 0 | DV68: 0 | DW68: 0 | DX68: 0 | DY68: 0 | DZ68: 0 | EA68: 0 | EB68: 0 | EC68: 0 | ED68: 0 | EE68: 0 | EF68: 0 | EG68: 0 | EH68: 0 | EI68: =EI100 -> 0 | EJ68: 0 | EK68: 0 | EL68: 0 | EM68: 0 | EN68: 0 | EO68: 0 | EP68: 0 | EQ68: 0 | ER68: 0 | ES68: 0 | ET68: 0 | EU68: 0 | EV68: 0 | EW68: 0 | EX68: 0 | EY68: 0 | EZ68: 0 | FA68: 0 | FB68: 0 | FC68: 0 | FD68: 0 | FE68: 0 | FF68: 0 | FG68: 0 | FH68: 0 | FI68: 0 | FJ68: 0 | FK68: 0 | FL68: 0 | FM68: 0 | FN68: 0 | FO68: 0 | FP68: 0 | FQ68: 0 | FR68: 0 | FS68: 0 | FT68: 0 | FU68: 0 | FV68: 0 | FW68: 0 | FX68: 0 | FY68: 0 | FZ68: 0 | GA68: 0 | GB68: 0 | GC68: 0 | GD68: 0 | GE68: 0 | GF68: 0 | GG68: 0 | GH68: 0 | GI68: 0 | GJ68: 0 | GK68: 0 | GL68: 0 | GM68: 0 | GN68: 0 | GO68: 0 | GP68: 0 | GQ68: 0 | GR68: 0 | GS68: 0 | GT68: 0 | GU68: =GU100 -> 0 | GV68: 0 | GW68: 0 | GX68: 0 | GY68: 0 | GZ68: 0 | HA68: 0
D69: DSRA | F69: MZN | I69: 1408.061544 | J69: =J112 -> 0 | K69: =K112 -> 0 | L69: 0 | M69: 0 | N69: 0 | O69: 0 | P69: 0 | Q69: 0 | R69: 0 | S69: 0 | T69: 0 | U69: 0 | V69: 0 | W69: 0 | X69: 0 | Y69: 0 | Z69: 0 | AA69: 0 | AB69: 0 | AC69: 0 | AD69: 0 | AE69: 0 | AF69: 0 | AG69: 0 | AH69: 0 | AI69: 0 | AJ69: 0 | AK69: 0 | AL69: 0 | AM69: 1408.061544 | AN69: 0 | AO69: 0 | AP69: 0 | AQ69: 0 | AR69: 0 | AS69: 0 | AT69: 0 | AU69: 0 | AV69: 0 | AW69: 0 | AX69: 0 | AY69: 0 | AZ69: 0 | BA69: 0 | BB69: 0 | BC69: 0 | BD69: 0 | BE69: 0 | BF69: 0 | BG69: 0 | BH69: 0 | BI69: 0 | BJ69: 0 | BK69: 0 | BL69: 0 | BM69: 0 | BN69: 0 | BO69: 0 | BP69: 0 | BQ69: 0 | BR69: 0 | BS69: 0 | BT69: 0 | BU69: 0 | BV69: 0 | BW69: =BW112 -> 0 | BX69: 0 | BY69: 0 | BZ69: 0 | CA69: 0 | CB69: 0 | CC69: 0 | CD69: 0 | CE69: 0 | CF69: 0 | CG69: 0 | CH69: 0 | CI69: 0 | CJ69: 0 | CK69: 0 | CL69: 0 | CM69: 0 | CN69: 0 | CO69: 0 | CP69: 0 | CQ69: 0 | CR69: 0 | CS69: 0 | CT69: 0 | CU69: 0 | CV69: 0 | CW69: 0 | CX69: 0 | CY69: 0 | CZ69: 0 | DA69: 0 | DB69: 0 | DC69: 0 | DD69: 0 | DE69: 0 | DF69: 0 | DG69: 0 | DH69: 0 | DI69: 0 | DJ69: 0 | DK69: 0 | DL69: 0 | DM69: 0 | DN69: 0 | DO69: 0 | DP69: 0 | DQ69: 0 | DR69: 0 | DS69: 0 | DT69: 0 | DU69: 0 | DV69: 0 | DW69: 0 | DX69: 0 | DY69: 0 | DZ69: 0 | EA69: 0 | EB69: 0 | EC69: 0 | ED69: 0 | EE69: 0 | EF69: 0 | EG69: 0 | EH69: 0 | EI69: =EI112 -> 0 | EJ69: 0 | EK69: 0 | EL69: 0 | EM69: 0 | EN69: 0 | EO69: 0 | EP69: 0 | EQ69: 0 | ER69: 0 | ES69: 0 | ET69: 0 | EU69: 0 | EV69: 0 | EW69: 0 | EX69: 0 | EY69: 0 | EZ69: 0 | FA69: 0 | FB69: 0 | FC69: 0 | FD69: 0 | FE69: 0 | FF69: 0 | FG69: 0 | FH69: 0 | FI69: 0 | FJ69: 0 | FK69: 0 | FL69: 0 | FM69: 0 | FN69: 0 | FO69: 0 | FP69: 0 | FQ69: 0 | FR69: 0 | FS69: 0 | FT69: 0 | FU69: 0 | FV69: 0 | FW69: 0 | FX69: 0 | FY69: 0 | FZ69: 0 | GA69: 0 | GB69: 0 | GC69: 0 | GD69: 0 | GE69: 0 | GF69: 0 | GG69: 0 | GH69: 0 | GI69: 0 | GJ69: 0 | GK69: 0 | GL69: 0 | GM69: 0 | GN69: 0 | GO69: 0 | GP69: 0 | GQ69: 0 | GR69: 0 | GS69: 0 | GT69: 0 | GU69: =GU112 -> 0 | GV69: 0 | GW69: 0 | GX69: 0 | GY69: 0 | GZ69: 0 | HA69: 0
E70: Total Funding Needs | F70: MZN | I70: Fixed Funding | J70: 1255.042587 | K70: 860.7021386 | L70: 862.4594055 | M70: 864.2202601 | N70: 865.9847098 | O70: 867.7527619 | P70: 869.5244238 | Q70: 871.2997028 | R70: 873.0786064 | S70: 874.8611419 | T70: 876.6473167 | U70: 878.4371383 | V70: 880.2306142 | W70: 882.0277517 | X70: 883.8285583 | Y70: 885.6330416 | Z70: 887.4412091 | AA70: 889.2530682 | AB70: 891.0686266 | AC70: 892.8878917 | AD70: 894.7108711 | AE70: 896.5375725 | AF70: 898.3680034 | AG70: 900.2021714 | AH70: 902.0400841 | AI70: 903.8817493 | AJ70: 905.7271745 | AK70: 907.5763675 | AL70: 909.4293359 | AM70: 2319.347631 | AN70: 0 | AO70: 0 | AP70: 0 | AQ70: 0 | AR70: 0 | AS70: 0 | AT70: 0 | AU70: 0 | AV70: 0 | AW70: 0 | AX70: 0 | AY70: 0 | AZ70: 0 | BA70: 0 | BB70: 0 | BC70: 0 | BD70: 0 | BE70: 0 | BF70: 0 | BG70: 0 | BH70: 0 | BI70: 0 | BJ70: 0 | BK70: 0 | BL70: 0 | BM70: 0 | BN70: 0 | BO70: 0 | BP70: 0 | BQ70: 0 | BR70: 0 | BS70: 0 | BT70: 0 | BU70: 0 | BV70: 0 | BW70: 0 | BX70: 0 | BY70: 0 | BZ70: 0 | CA70: 0 | CB70: 0 | CC70: 0 | CD70: 0 | CE70: 0 | CF70: 0 | CG70: 0 | CH70: 0 | CI70: 0 | CJ70: 0 | CK70: 0 | CL70: 0 | CM70: 0 | CN70: 0 | CO70: 0 | CP70: 0 | CQ70: 0 | CR70: 0 | CS70: 0 | CT70: 0 | CU70: 0 | CV70: 0 | CW70: 0 | CX70: 0 | CY70: 0 | CZ70: 0 | DA70: 0 | DB70: 0 | DC70: 0 | DD70: 0 | DE70: 0 | DF70: 0 | DG70: 0 | DH70: 0 | DI70: 0 | DJ70: 0 | DK70: 0 | DL70: 0 | DM70: 0 | DN70: 0 | DO70: 0 | DP70: 0 | DQ70: 0 | DR70: 0 | DS70: 0 | DT70: 0 | DU70: 0 | DV70: 0 | DW70: 0 | DX70: 0 | DY70: 0 | DZ70: 0 | EA70: 0 | EB70: 0 | EC70: 0 | ED70: 0 | EE70: 0 | EF70: 0 | EG70: 0 | EH70: 0 | EI70: 0 | EJ70: 0 | EK70: 0 | EL70: 0 | EM70: 0 | EN70: 0 | EO70: 0 | EP70: 0 | EQ70: 0 | ER70: 0 | ES70: 0 | ET70: 0 | EU70: 0 | EV70: 0 | EW70: 0 | EX70: 0 | EY70: 0 | EZ70: 0 | FA70: 0 | FB70: 0 | FC70: 0 | FD70: 0 | FE70: 0 | FF70: 0 | FG70: 0 | FH70: 0 | FI70: 0 | FJ70: 0 | FK70: 0 | FL70: 0 | FM70: 0 | FN70: 0 | FO70: 0 | FP70: 0 | FQ70: 0 | FR70: 0 | FS70: 0 | FT70: 0 | FU70: 0 | FV70: 0 | FW70: 0 | FX70: 0 | FY70: 0 | FZ70: 0 | GA70: 0 | GB70: 0 | GC70: 0 | GD70: 0 | GE70: 0 | GF70: 0 | GG70: 0 | GH70: 0 | GI70: 0 | GJ70: 0 | GK70: 0 | GL70: 0 | GM70: 0 | GN70: 0 | GO70: 0 | GP70: 0 | GQ70: 0 | GR70: 0 | GS70: 0 | GT70: 0 | GU70: 0 | GV70: 0 | GW70: 0 | GX70: 0 | GY70: 0 | GZ70: 0 | HA70: 0
I71: Computed Funding | J71: =SUM(J65:J69) -> 1255.042587 | K71: =SUM(K65:K69) -> 860.7021386 | L71: 862.4594055 | M71: 864.2202601 | N71: 865.9847098 | O71: 867.7527619 | P71: 869.5244238 | Q71: 871.2997028 | R71: 873.0786064 | S71: 874.8611419 | T71: 876.6473167 | U71: 878.4371383 | V71: 880.2306142 | W71: 882.0277517 | X71: 883.8285583 | Y71: 885.6330416 | Z71: 887.4412091 | AA71: 889.2530682 | AB71: 891.0686266 | AC71: 892.8878917 | AD71: 894.7108711 | AE71: 896.5375725 | AF71: 898.3680034 | AG71: 900.2021714 | AH71: 902.0400841 | AI71: 903.8817493 | AJ71: 905.7271745 | AK71: 907.5763675 | AL71: 909.4293359 | AM71: 2319.347631 | AN71: 0 | AO71: 0 | AP71: 0 | AQ71: 0 | AR71: 0 | AS71: 0 | AT71: 0 | AU71: 0 | AV71: 0 | AW71: 0 | AX71: 0 | AY71: 0 | AZ71: 0 | BA71: 0 | BB71: 0 | BC71: 0 | BD71: 0 | BE71: 0 | BF71: 0 | BG71: 0 | BH71: 0 | BI71: 0 | BJ71: 0 | BK71: 0 | BL71: 0 | BM71: 0 | BN71: 0 | BO71: 0 | BP71: 0 | BQ71: 0 | BR71: 0 | BS71: 0 | BT71: 0 | BU71: 0 | BV71: 0 | BW71: =SUM(BW65:BW69) -> 0 | BX71: 0 | BY71: 0 | BZ71: 0 | CA71: 0 | CB71: 0 | CC71: 0 | CD71: 0 | CE71: 0 | CF71: 0 | CG71: 0 | CH71: 0 | CI71: 0 | CJ71: 0 | CK71: 0 | CL71: 0 | CM71: 0 | CN71: 0 | CO71: 0 | CP71: 0 | CQ71: 0 | CR71: 0 | CS71: 0 | CT71: 0 | CU71: 0 | CV71: 0 | CW71: 0 | CX71: 0 | CY71: 0 | CZ71: 0 | DA71: 0 | DB71: 0 | DC71: 0 | DD71: 0 | DE71: 0 | DF71: 0 | DG71: 0 | DH71: 0 | DI71: 0 | DJ71: 0 | DK71: 0 | DL71: 0 | DM71: 0 | DN71: 0 | DO71: 0 | DP71: 0 | DQ71: 0 | DR71: 0 | DS71: 0 | DT71: 0 | DU71: 0 | DV71: 0 | DW71: 0 | DX71: 0 | DY71: 0 | DZ71: 0 | EA71: 0 | EB71: 0 | EC71: 0 | ED71: 0 | EE71: 0 | EF71: 0 | EG71: 0 | EH71: 0 | EI71: =SUM(EI65:EI69) -> 0 | EJ71: 0 | EK71: 0 | EL71: 0 | EM71: 0 | EN71: 0 | EO71: 0 | EP71: 0 | EQ71: 0 | ER71: 0 | ES71: 0 | ET71: 0 | EU71: 0 | EV71: 0 | EW71: 0 | EX71: 0 | EY71: 0 | EZ71: 0 | FA71: 0 | FB71: 0 | FC71: 0 | FD71: 0 | FE71: 0 | FF71: 0 | FG71: 0 | FH71: 0 | FI71: 0 | FJ71: 0 | FK71: 0 | FL71: 0 | FM71: 0 | FN71: 0 | FO71: 0 | FP71: 0 | FQ71: 0 | FR71: 0 | FS71: 0 | FT71: 0 | FU71: 0 | FV71: 0 | FW71: 0 | FX71: 0 | FY71: 0 | FZ71: 0 | GA71: 0 | GB71: 0 | GC71: 0 | GD71: 0 | GE71: 0 | GF71: 0 | GG71: 0 | GH71: 0 | GI71: 0 | GJ71: 0 | GK71: 0 | GL71: 0 | GM71: 0 | GN71: 0 | GO71: 0 | GP71: 0 | GQ71: 0 | GR71: 0 | GS71: 0 | GT71: 0 | GU71: =SUM(GU65:GU69) -> 0 | GV71: 0 | GW71: 0 | GX71: 0 | GY71: 0 | GZ71: 0 | HA71: 0
I72: =SUM(J72:HA72) -> 0 | J72: =J70-J71 -> 0 | K72: =K70-K71 -> 0 | L72: 0 | M72: 0 | N72: 0 | O72: 0 | P72: 0 | Q72: 0 | R72: 0 | S72: 0 | T72: 0 | U72: 0 | V72: 0 | W72: 0 | X72: 0 | Y72: 0 | Z72: 0 | AA72: 0 | AB72: 0 | AC72: 0 | AD72: 0 | AE72: 0 | AF72: 0 | AG72: 0 | AH72: 0 | AI72: 0 | AJ72: 0 | AK72: 0 | AL72: 0 | AM72: 0 | AN72: 0 | AO72: 0 | AP72: 0 | AQ72: 0 | AR72: 0 | AS72: 0 | AT72: 0 | AU72: 0 | AV72: 0 | AW72: 0 | AX72: 0 | AY72: 0 | AZ72: 0 | BA72: 0 | BB72: 0 | BC72: 0 | BD72: 0 | BE72: 0 | BF72: 0 | BG72: 0 | BH72: 0 | BI72: 0 | BJ72: 0 | BK72: 0 | BL72: 0 | BM72: 0 | BN72: 0 | BO72: 0 | BP72: 0 | BQ72: 0 | BR72: 0 | BS72: 0 | BT72: 0 | BU72: 0 | BV72: 0 | BW72: =BW70-BW71 -> 0 | BX72: 0 | BY72: 0 | BZ72: 0 | CA72: 0 | CB72: 0 | CC72: 0 | CD72: 0 | CE72: 0 | CF72: 0 | CG72: 0 | CH72: 0 | CI72: 0 | CJ72: 0 | CK72: 0 | CL72: 0 | CM72: 0 | CN72: 0 | CO72: 0 | CP72: 0 | CQ72: 0 | CR72: 0 | CS72: 0 | CT72: 0 | CU72: 0 | CV72: 0 | CW72: 0 | CX72: 0 | CY72: 0 | CZ72: 0 | DA72: 0 | DB72: 0 | DC72: 0 | DD72: 0 | DE72: 0 | DF72: 0 | DG72: 0 | DH72: 0 | DI72: 0 | DJ72: 0 | DK72: 0 | DL72: 0 | DM72: 0 | DN72: 0 | DO72: 0 | DP72: 0 | DQ72: 0 | DR72: 0 | DS72: 0 | DT72: 0 | DU72: 0 | DV72: 0 | DW72: 0 | DX72: 0 | DY72: 0 | DZ72: 0 | EA72: 0 | EB72: 0 | EC72: 0 | ED72: 0 | EE72: 0 | EF72: 0 | EG72: 0 | EH72: 0 | EI72: =EI70-EI71 -> 0 | EJ72: 0 | EK72: 0 | EL72: 0 | EM72: 0 | EN72: 0 | EO72: 0 | EP72: 0 | EQ72: 0 | ER72: 0 | ES72: 0 | ET72: 0 | EU72: 0 | EV72: 0 | EW72: 0 | EX72: 0 | EY72: 0 | EZ72: 0 | FA72: 0 | FB72: 0 | FC72: 0 | FD72: 0 | FE72: 0 | FF72: 0 | FG72: 0 | FH72: 0 | FI72: 0 | FJ72: 0 | FK72: 0 | FL72: 0 | FM72: 0 | FN72: 0 | FO72: 0 | FP72: 0 | FQ72: 0 | FR72: 0 | FS72: 0 | FT72: 0 | FU72: 0 | FV72: 0 | FW72: 0 | FX72: 0 | FY72: 0 | FZ72: 0 | GA72: 0 | GB72: 0 | GC72: 0 | GD72: 0 | GE72: 0 | GF72: 0 | GG72: 0 | GH72: 0 | GI72: 0 | GJ72: 0 | GK72: 0 | GL72: 0 | GM72: 0 | GN72: 0 | GO72: 0 | GP72: 0 | GQ72: 0 | GR72: 0 | GS72: 0 | GT72: 0 | GU72: =GU70-GU71 -> 0 | GV72: 0 | GW72: 0 | GX72: 0 | GY72: 0 | GZ72: 0 | HA72: 0
C73: Funding Sources - Pro-Rata
D74: Debt Funding | F74: MZN | G74: =G23 -> 0.7 | I74: =SUM(J74:HA74) -> 19845.14134 | J74: =J70*$G$74 -> 878.5298108 | K74: =K70*$G$74 -> 602.491497 | L74: 603.7215838 | M74: 604.9541821 | N74: 606.1892969 | O74: 607.4269333 | P74: 608.6670967 | Q74: 609.909792 | R74: 611.1550245 | S74: 612.4027993 | T74: 613.6531217 | U74: 614.9059968 | V74: 616.1614299 | W74: 617.4194262 | X74: 618.6799908 | Y74: 619.9431291 | Z74: 621.2088464 | AA74: 622.4771478 | AB74: 623.7480386 | AC74: 625.0215242 | AD74: 626.2976098 | AE74: 627.5763007 | AF74: 628.8576024 | AG74: 630.14152 | AH74: 631.4280589 | AI74: 632.7172245 | AJ74: 634.0090222 | AK74: 635.3034573 | AL74: 636.6005352 | AM74: 1623.543342 | AN74: 0 | AO74: 0 | AP74: 0 | AQ74: 0 | AR74: 0 | AS74: 0 | AT74: 0 | AU74: 0 | AV74: 0 | AW74: 0 | AX74: 0 | AY74: 0 | AZ74: 0 | BA74: 0 | BB74: 0 | BC74: 0 | BD74: 0 | BE74: 0 | BF74: 0 | BG74: 0 | BH74: 0 | BI74: 0 | BJ74: 0 | BK74: 0 | BL74: 0 | BM74: 0 | BN74: 0 | BO74: 0 | BP74: 0 | BQ74: 0 | BR74: 0 | BS74: 0 | BT74: 0 | BU74: 0 | BV74: 0 | BW74: =BW70*$G$74 -> 0 | BX74: 0 | BY74: 0 | BZ74: 0 | CA74: 0 | CB74: 0 | CC74: 0 | CD74: 0 | CE74: 0 | CF74: 0 | CG74: 0 | CH74: 0 | CI74: 0 | CJ74: 0 | CK74: 0 | CL74: 0 | CM74: 0 | CN74: 0 | CO74: 0 | CP74: 0 | CQ74: 0 | CR74: 0 | CS74: 0 | CT74: 0 | CU74: 0 | CV74: 0 | CW74: 0 | CX74: 0 | CY74: 0 | CZ74: 0 | DA74: 0 | DB74: 0 | DC74: 0 | DD74: 0 | DE74: 0 | DF74: 0 | DG74: 0 | DH74: 0 | DI74: 0 | DJ74: 0 | DK74: 0 | DL74: 0 | DM74: 0 | DN74: 0 | DO74: 0 | DP74: 0 | DQ74: 0 | DR74: 0 | DS74: 0 | DT74: 0 | DU74: 0 | DV74: 0 | DW74: 0 | DX74: 0 | DY74: 0 | DZ74: 0 | EA74: 0 | EB74: 0 | EC74: 0 | ED74: 0 | EE74: 0 | EF74: 0 | EG74: 0 | EH74: 0 | EI74: =EI70*$G$74 -> 0 | EJ74: 0 | EK74: 0 | EL74: 0 | EM74: 0 | EN74: 0 | EO74: 0 | EP74: 0 | EQ74: 0 | ER74: 0 | ES74: 0 | ET74: 0 | EU74: 0 | EV74: 0 | EW74: 0 | EX74: 0 | EY74: 0 | EZ74: 0 | FA74: 0 | FB74: 0 | FC74: 0 | FD74: 0 | FE74: 0 | FF74: 0 | FG74: 0 | FH74: 0 | FI74: 0 | FJ74: 0 | FK74: 0 | FL74: 0 | FM74: 0 | FN74: 0 | FO74: 0 | FP74: 0 | FQ74: 0 | FR74: 0 | FS74: 0 | FT74: 0 | FU74: 0 | FV74: 0 | FW74: 0 | FX74: 0 | FY74: 0 | FZ74: 0 | GA74: 0 | GB74: 0 | GC74: 0 | GD74: 0 | GE74: 0 | GF74: 0 | GG74: 0 | GH74: 0 | GI74: 0 | GJ74: 0 | GK74: 0 | GL74: 0 | GM74: 0 | GN74: 0 | GO74: 0 | GP74: 0 | GQ74: 0 | GR74: 0 | GS74: 0 | GT74: 0 | GU74: =GU70*$G$74 -> 0 | GV74: 0 | GW74: 0 | GX74: 0 | GY74: 0 | GZ74: 0 | HA74: 0
D75: Equity Funding | F75: MZN | G75: =1-G74 -> 0.3 | J75: =J70*$G$75 -> 376.512776 | K75: =K70*$G$75 -> 258.2106416 | L75: 258.7378216 | M75: 259.266078 | N75: 259.7954129 | O75: 260.3258286 | P75: 260.8573271 | Q75: 261.3899109 | R75: 261.9235819 | S75: 262.4583426 | T75: 262.994195 | U75: 263.5311415 | V75: 264.0691842 | W75: 264.6083255 | X75: 265.1485675 | Y75: 265.6899125 | Z75: 266.2323627 | AA75: 266.7759205 | AB75: 267.320588 | AC75: 267.8663675 | AD75: 268.4132613 | AE75: 268.9612717 | AF75: 269.510401 | AG75: 270.0606514 | AH75: 270.6120252 | AI75: 271.1645248 | AJ75: 271.7181524 | AK75: 272.2729103 | AL75: 272.8288008 | AM75: 695.8042893 | AN75: 0 | AO75: 0 | AP75: 0 | AQ75: 0 | AR75: 0 | AS75: 0 | AT75: 0 | AU75: 0 | AV75: 0 | AW75: 0 | AX75: 0 | AY75: 0 | AZ75: 0 | BA75: 0 | BB75: 0 | BC75: 0 | BD75: 0 | BE75: 0 | BF75: 0 | BG75: 0 | BH75: 0 | BI75: 0 | BJ75: 0 | BK75: 0 | BL75: 0 | BM75: 0 | BN75: 0 | BO75: 0 | BP75: 0 | BQ75: 0 | BR75: 0 | BS75: 0 | BT75: 0 | BU75: 0 | BV75: 0 | BW75: =BW70*$G$75 -> 0 | BX75: 0 | BY75: 0 | BZ75: 0 | CA75: 0 | CB75: 0 | CC75: 0 | CD75: 0 | CE75: 0 | CF75: 0 | CG75: 0 | CH75: 0 | CI75: 0 | CJ75: 0 | CK75: 0 | CL75: 0 | CM75: 0 | CN75: 0 | CO75: 0 | CP75: 0 | CQ75: 0 | CR75: 0 | CS75: 0 | CT75: 0 | CU75: 0 | CV75: 0 | CW75: 0 | CX75: 0 | CY75: 0 | CZ75: 0 | DA75: 0 | DB75: 0 | DC75: 0 | DD75: 0 | DE75: 0 | DF75: 0 | DG75: 0 | DH75: 0 | DI75: 0 | DJ75: 0 | DK75: 0 | DL75: 0 | DM75: 0 | DN75: 0 | DO75: 0 | DP75: 0 | DQ75: 0 | DR75: 0 | DS75: 0 | DT75: 0 | DU75: 0 | DV75: 0 | DW75: 0 | DX75: 0 | DY75: 0 | DZ75: 0 | EA75: 0 | EB75: 0 | EC75: 0 | ED75: 0 | EE75: 0 | EF75: 0 | EG75: 0 | EH75: 0 | EI75: =EI70*$G$75 -> 0 | EJ75: 0 | EK75: 0 | EL75: 0 | EM75: 0 | EN75: 0 | EO75: 0 | EP75: 0 | EQ75: 0 | ER75: 0 | ES75: 0 | ET75: 0 | EU75: 0 | EV75: 0 | EW75: 0 | EX75: 0 | EY75: 0 | EZ75: 0 | FA75: 0 | FB75: 0 | FC75: 0 | FD75: 0 | FE75: 0 | FF75: 0 | FG75: 0 | FH75: 0 | FI75: 0 | FJ75: 0 | FK75: 0 | FL75: 0 | FM75: 0 | FN75: 0 | FO75: 0 | FP75: 0 | FQ75: 0 | FR75: 0 | FS75: 0 | FT75: 0 | FU75: 0 | FV75: 0 | FW75: 0 | FX75: 0 | FY75: 0 | FZ75: 0 | GA75: 0 | GB75: 0 | GC75: 0 | GD75: 0 | GE75: 0 | GF75: 0 | GG75: 0 | GH75: 0 | GI75: 0 | GJ75: 0 | GK75: 0 | GL75: 0 | GM75: 0 | GN75: 0 | GO75: 0 | GP75: 0 | GQ75: 0 | GR75: 0 | GS75: 0 | GT75: 0 | GU75: =GU70*$G$75 -> 0 | GV75: 0 | GW75: 0 | GX75: 0 | GY75: 0 | GZ75: 0 | HA75: 0
E76: Total Funding | F76: MZN | J76: =SUM(J74:J75) -> 1255.042587 | K76: =SUM(K74:K75) -> 860.7021386 | L76: 862.4594055 | M76: 864.2202601 | N76: 865.9847098 | O76: 867.7527619 | P76: 869.5244238 | Q76: 871.2997028 | R76: 873.0786064 | S76: 874.8611419 | T76: 876.6473167 | U76: 878.4371383 | V76: 880.2306142 | W76: 882.0277517 | X76: 883.8285583 | Y76: 885.6330416 | Z76: 887.4412091 | AA76: 889.2530682 | AB76: 891.0686266 | AC76: 892.8878917 | AD76: 894.7108711 | AE76: 896.5375725 | AF76: 898.3680034 | AG76: 900.2021714 | AH76: 902.0400841 | AI76: 903.8817493 | AJ76: 905.7271745 | AK76: 907.5763675 | AL76: 909.4293359 | AM76: 2319.347631 | AN76: 0 | AO76: 0 | AP76: 0 | AQ76: 0 | AR76: 0 | AS76: 0 | AT76: 0 | AU76: 0 | AV76: 0 | AW76: 0 | AX76: 0 | AY76: 0 | AZ76: 0 | BA76: 0 | BB76: 0 | BC76: 0 | BD76: 0 | BE76: 0 | BF76: 0 | BG76: 0 | BH76: 0 | BI76: 0 | BJ76: 0 | BK76: 0 | BL76: 0 | BM76: 0 | BN76: 0 | BO76: 0 | BP76: 0 | BQ76: 0 | BR76: 0 | BS76: 0 | BT76: 0 | BU76: 0 | BV76: 0 | BW76: =SUM(BW74:BW75) -> 0 | BX76: 0 | BY76: 0 | BZ76: 0 | CA76: 0 | CB76: 0 | CC76: 0 | CD76: 0 | CE76: 0 | CF76: 0 | CG76: 0 | CH76: 0 | CI76: 0 | CJ76: 0 | CK76: 0 | CL76: 0 | CM76: 0 | CN76: 0 | CO76: 0 | CP76: 0 | CQ76: 0 | CR76: 0 | CS76: 0 | CT76: 0 | CU76: 0 | CV76: 0 | CW76: 0 | CX76: 0 | CY76: 0 | CZ76: 0 | DA76: 0 | DB76: 0 | DC76: 0 | DD76: 0 | DE76: 0 | DF76: 0 | DG76: 0 | DH76: 0 | DI76: 0 | DJ76: 0 | DK76: 0 | DL76: 0 | DM76: 0 | DN76: 0 | DO76: 0 | DP76: 0 | DQ76: 0 | DR76: 0 | DS76: 0 | DT76: 0 | DU76: 0 | DV76: 0 | DW76: 0 | DX76: 0 | DY76: 0 | DZ76: 0 | EA76: 0 | EB76: 0 | EC76: 0 | ED76: 0 | EE76: 0 | EF76: 0 | EG76: 0 | EH76: 0 | EI76: =SUM(EI74:EI75) -> 0 | EJ76: 0 | EK76: 0 | EL76: 0 | EM76: 0 | EN76: 0 | EO76: 0 | EP76: 0 | EQ76: 0 | ER76: 0 | ES76: 0 | ET76: 0 | EU76: 0 | EV76: 0 | EW76: 0 | EX76: 0 | EY76: 0 | EZ76: 0 | FA76: 0 | FB76: 0 | FC76: 0 | FD76: 0 | FE76: 0 | FF76: 0 | FG76: 0 | FH76: 0 | FI76: 0 | FJ76: 0 | FK76: 0 | FL76: 0 | FM76: 0 | FN76: 0 | FO76: 0 | FP76: 0 | FQ76: 0 | FR76: 0 | FS76: 0 | FT76: 0 | FU76: 0 | FV76: 0 | FW76: 0 | FX76: 0 | FY76: 0 | FZ76: 0 | GA76: 0 | GB76: 0 | GC76: 0 | GD76: 0 | GE76: 0 | GF76: 0 | GG76: 0 | GH76: 0 | GI76: 0 | GJ76: 0 | GK76: 0 | GL76: 0 | GM76: 0 | GN76: 0 | GO76: 0 | GP76: 0 | GQ76: 0 | GR76: 0 | GS76: 0 | GT76: 0 | GU76: =SUM(GU74:GU75) -> 0 | GV76: 0 | GW76: 0 | GX76: 0 | GY76: 0 | GZ76: 0 | HA76: 0
B78: Debt Balance
C79: Repayments
D80: Repayment Percent | F80: % | I80: =SUM(J80:HA80) -> 1 | J80: =J32 -> 0 | K80: 0 | L80: 0 | M80: 0 | N80: 0 | O80: 0 | P80: 0 | Q80: 0 | R80: 0 | S80: 0 | T80: 0 | U80: 0 | V80: 0 | W80: 0 | X80: 0 | Y80: 0 | Z80: 0 | AA80: 0 | AB80: 0 | AC80: 0 | AD80: 0 | AE80: 0 | AF80: 0 | AG80: 0 | AH80: 0 | AI80: 0 | AJ80: 0 | AK80: 0 | AL80: 0 | AM80: 0 | AN80: 0.0209524573 | AO80: 0.02200008016 | AP80: =AP32 -> 0.02310008417 | AQ80: 0.02425508838 | AR80: 0.0254678428 | AS80: 0.02674123494 | AT80: 0.02807829669 | AU80: 0.02948221152 | AV80: 0.0309563221 | AW80: 0.0325041382 | AX80: 0.03412934511 | AY80: 0.03583581237 | AZ80: 0.03762760299 | BA80: 0.03950898314 | BB80: 0.04148443229 | BC80: 0.04355865391 | BD80: 0.0457365866 | BE80: 0.04802341593 | BF80: 0.05042458673 | BG80: 0.05294581607 | BH80: 0.05559310687 | BI80: 0.05837276221 | BJ80: 0.06129140032 | BK80: 0.06435597034 | BL80: 0.06757376886 | BM80: 0 | BN80: 0 | BO80: 0 | BP80: 0 | BQ80: 0 | BR80: 0 | BS80: 0 | BT80: 0 | BU80: 0 | BV80: =BV32 -> 0 | BW80: 0 | BX80: 0 | BY80: 0 | BZ80: 0 | CA80: 0 | CB80: 0 | CC80: 0 | CD80: 0 | CE80: 0 | CF80: 0 | CG80: 0 | CH80: 0 | CI80: 0 | CJ80: 0 | CK80: 0 | CL80: 0 | CM80: 0 | CN80: 0 | CO80: 0 | CP80: 0 | CQ80: 0 | CR80: 0 | CS80: 0 | CT80: 0 | CU80: 0 | CV80: 0 | CW80: 0 | CX80: 0 | CY80: 0 | CZ80: 0 | DA80: 0 | DB80: =DB32 -> 0 | DC80: 0 | DD80: 0 | DE80: 0 | DF80: 0 | DG80: 0 | DH80: 0 | DI80: 0 | DJ80: 0 | DK80: 0 | DL80: 0 | DM80: 0 | DN80: 0 | DO80: 0 | DP80: 0 | DQ80: 0 | DR80: 0 | DS80: 0 | DT80: 0 | DU80: 0 | DV80: 0 | DW80: 0 | DX80: 0 | DY80: 0 | DZ80: 0 | EA80: 0 | EB80: 0 | EC80: 0 | ED80: 0 | EE80: 0 | EF80: 0 | EG80: 0 | EH80: =EH32 -> 0 | EI80: 0 | EJ80: 0 | EK80: 0 | EL80: 0 | EM80: 0 | EN80: 0 | EO80: 0 | EP80: 0 | EQ80: 0 | ER80: 0 | ES80: 0 | ET80: 0 | EU80: 0 | EV80: 0 | EW80: 0 | EX80: 0 | EY80: 0 | EZ80: 0 | FA80: 0 | FB80: 0 | FC80: 0 | FD80: 0 | FE80: 0 | FF80: 0 | FG80: 0 | FH80: 0 | FI80: 0 | FJ80: 0 | FK80: 0 | FL80: 0 | FM80: 0 | FN80: =FN32 -> 0 | FO80: 0 | FP80: 0 | FQ80: 0 | FR80: 0 | FS80: 0 | FT80: 0 | FU80: 0 | FV80: 0 | FW80: 0 | FX80: 0 | FY80: 0 | FZ80: 0 | GA80: 0 | GB80: 0 | GC80: 0 | GD80: 0 | GE80: 0 | GF80: 0 | GG80: 0 | GH80: 0 | GI80: 0 | GJ80: 0 | GK80: 0 | GL80: 0 | GM80: 0 | GN80: 0 | GO80: 0 | GP80: 0 | GQ80: 0 | GR80: 0 | GS80: 0 | GT80: =GT32 -> 0 | GU80: 0 | GV80: 0 | GW80: 0 | GX80: 0 | GY80: 0 | GZ80: 0 | HA80: 0
D81: Repayment | F81: MZN | G81: =G59 -> 19845.14134 | I81: =SUM(J81:HA81) -> 19845.14134 | J81: =$G$81*J80 -> 0 | K81: =$G$81*K80 -> 0 | L81: 0 | M81: 0 | N81: 0 | O81: 0 | P81: 0 | Q81: 0 | R81: 0 | S81: 0 | T81: 0 | U81: 0 | V81: 0 | W81: 0 | X81: 0 | Y81: 0 | Z81: 0 | AA81: 0 | AB81: 0 | AC81: 0 | AD81: 0 | AE81: 0 | AF81: 0 | AG81: 0 | AH81: 0 | AI81: 0 | AJ81: 0 | AK81: 0 | AL81: 0 | AM81: 0 | AN81: 415.8044765 | AO81: 436.5947004 | AP81: 458.4244354 | AQ81: 481.3456571 | AR81: 505.41294 | AS81: 530.683587 | AT81: 557.2177664 | AU81: 585.0786547 | AV81: 614.3325874 | AW81: 645.0492168 | AX81: 677.3016776 | AY81: 711.1667615 | AZ81: 746.7250996 | BA81: 784.0613545 | BB81: 823.2644223 | BC81: 864.4276434 | BD81: 907.6490256 | BE81: 953.0314768 | BF81: 1000.683051 | BG81: 1050.717203 | BH81: 1103.253063 | BI81: 1158.415717 | BJ81: 1216.336502 | BK81: 1277.153327 | BL81: 1341.010994 | BM81: 0 | BN81: 0 | BO81: 0 | BP81: 0 | BQ81: 0 | BR81: 0 | BS81: 0 | BT81: 0 | BU81: 0 | BV81: 0 | BW81: =$G$81*BW80 -> 0 | BX81: 0 | BY81: 0 | BZ81: 0 | CA81: 0 | CB81: 0 | CC81: 0 | CD81: 0 | CE81: 0 | CF81: 0 | CG81: 0 | CH81: 0 | CI81: 0 | CJ81: 0 | CK81: 0 | CL81: 0 | CM81: 0 | CN81: 0 | CO81: 0 | CP81: 0 | CQ81: 0 | CR81: 0 | CS81: 0 | CT81: 0 | CU81: 0 | CV81: 0 | CW81: 0 | CX81: 0 | CY81: 0 | CZ81: 0 | DA81: 0 | DB81: 0 | DC81: 0 | DD81: 0 | DE81: 0 | DF81: 0 | DG81: 0 | DH81: 0 | DI81: 0 | DJ81: 0 | DK81: 0 | DL81: 0 | DM81: 0 | DN81: 0 | DO81: 0 | DP81: 0 | DQ81: 0 | DR81: 0 | DS81: 0 | DT81: 0 | DU81: 0 | DV81: 0 | DW81: 0 | DX81: 0 | DY81: 0 | DZ81: 0 | EA81: 0 | EB81: 0 | EC81: 0 | ED81: 0 | EE81: 0 | EF81: 0 | EG81: 0 | EH81: 0 | EI81: =$G$81*EI80 -> 0 | EJ81: 0 | EK81: 0 | EL81: 0 | EM81: 0 | EN81: 0 | EO81: 0 | EP81: 0 | EQ81: 0 | ER81: 0 | ES81: 0 | ET81: 0 | EU81: 0 | EV81: 0 | EW81: 0 | EX81: 0 | EY81: 0 | EZ81: 0 | FA81: 0 | FB81: 0 | FC81: 0 | FD81: 0 | FE81: 0 | FF81: 0 | FG81: 0 | FH81: 0 | FI81: 0 | FJ81: 0 | FK81: 0 | FL81: 0 | FM81: 0 | FN81: 0 | FO81: 0 | FP81: 0 | FQ81: 0 | FR81: 0 | FS81: 0 | FT81: 0 | FU81: 0 | FV81: 0 | FW81: 0 | FX81: 0 | FY81: 0 | FZ81: 0 | GA81: 0 | GB81: 0 | GC81: 0 | GD81: 0 | GE81: 0 | GF81: 0 | GG81: 0 | GH81: 0 | GI81: 0 | GJ81: 0 | GK81: 0 | GL81: 0 | GM81: 0 | GN81: 0 | GO81: 0 | GP81: 0 | GQ81: 0 | GR81: 0 | GS81: 0 | GT81: 0 | GU81: =$G$81*GU80 -> 0 | GV81: 0 | GW81: 0 | GX81: 0 | GY81: 0 | GZ81: 0 | HA81: 0
D83: Opening Balance | F83: MZN | J83: =I86 -> 0 | K83: =J86 -> 878.5298108 | L83: 1481.021308 | M83: 2084.742892 | N83: 2689.697074 | O83: 3295.886371 | P83: 3903.313304 | Q83: 4511.980401 | R83: 5121.890193 | S83: 5733.045217 | T83: 6345.448016 | U83: 6959.101138 | V83: 7574.007135 | W83: 8190.168565 | X83: 8807.587991 | Y83: 9426.267982 | Z83: 10046.21111 | AA83: 10667.41996 | AB83: 11289.89711 | AC83: 11913.64514 | AD83: 12538.66667 | AE83: 13164.96428 | AF83: 13792.54058 | AG83: 14421.39818 | AH83: 15051.5397 | AI83: 15682.96776 | AJ83: 16315.68498 | AK83: 16949.69401 | AL83: 17584.99746 | AM83: 18221.598 | AN83: 19845.14134 | AO83: 19429.33686 | AP83: 18992.74216 | AQ83: 18534.31773 | AR83: 18052.97207 | AS83: 17547.55913 | AT83: 17016.87554 | AU83: 16459.65778 | AV83: 15874.57912 | AW83: 15260.24654 | AX83: 14615.19732 | AY83: 13937.89564 | AZ83: 13226.72888 | BA83: 12480.00378 | BB83: 11695.94243 | BC83: 10872.678 | BD83: 10008.25036 | BE83: 9100.601334 | BF83: 8147.569858 | BG83: 7146.886807 | BH83: 6096.169604 | BI83: 4992.91654 | BJ83: 3834.500824 | BK83: 2618.164321 | BL83: 1341.010994 | BM83: 1.29602995e-11 | BN83: 1.29602995e-11 | BO83: 1.29602995e-11 | BP83: 1.29602995e-11 | BQ83: 1.29602995e-11 | BR83: 1.29602995e-11 | BS83: 1.29602995e-11 | BT83: 1.29602995e-11 | BU83: 1.29602995e-11 | BV83: 1.29602995e-11 | BW83: =BV86 -> 1.29602995e-11 | BX83: 1.29602995e-11 | BY83: 1.29602995e-11 | BZ83: 1.29602995e-11 | CA83: 1.29602995e-11 | CB83: 1.29602995e-11 | CC83: 1.29602995e-11 | CD83: 1.29602995e-11 | CE83: 1.29602995e-11 | CF83: 1.29602995e-11 | CG83: 1.29602995e-11 | CH83: 1.29602995e-11 | CI83: 1.29602995e-11 | CJ83: 1.29602995e-11 | CK83: 1.29602995e-11 | CL83: 1.29602995e-11 | CM83: 1.29602995e-11 | CN83: 1.29602995e-11 | CO83: 1.29602995e-11 | CP83: 1.29602995e-11 | CQ83: 1.29602995e-11 | CR83: 1.29602995e-11 | CS83: 1.29602995e-11 | CT83: 1.29602995e-11 | CU83: 1.29602995e-11 | CV83: 1.29602995e-11 | CW83: 1.29602995e-11 | CX83: 1.29602995e-11 | CY83: 1.29602995e-11 | CZ83: 1.29602995e-11 | DA83: 1.29602995e-11 | DB83: 1.29602995e-11 | DC83: 1.29602995e-11 | DD83: 1.29602995e-11 | DE83: 1.29602995e-11 | DF83: 1.29602995e-11 | DG83: 1.29602995e-11 | DH83: 1.29602995e-11 | DI83: 1.29602995e-11 | DJ83: 1.29602995e-11 | DK83: 1.29602995e-11 | DL83: 1.29602995e-11 | DM83: 1.29602995e-11 | DN83: 1.29602995e-11 | DO83: 1.29602995e-11 | DP83: 1.29602995e-11 | DQ83: 1.29602995e-11 | DR83: 1.29602995e-11 | DS83: 1.29602995e-11 | DT83: 1.29602995e-11 | DU83: 1.29602995e-11 | DV83: 1.29602995e-11 | DW83: 1.29602995e-11 | DX83: 1.29602995e-11 | DY83: 1.29602995e-11 | DZ83: 1.29602995e-11 | EA83: 1.29602995e-11 | EB83: 1.29602995e-11 | EC83: 1.29602995e-11 | ED83: 1.29602995e-11 | EE83: 1.29602995e-11 | EF83: 1.29602995e-11 | EG83: 1.29602995e-11 | EH83: 1.29602995e-11 | EI83: =EH86 -> 1.29602995e-11 | EJ83: 1.29602995e-11 | EK83: 1.29602995e-11 | EL83: 1.29602995e-11 | EM83: 1.29602995e-11 | EN83: 1.29602995e-11 | EO83: 1.29602995e-11 | EP83: 1.29602995e-11 | EQ83: 1.29602995e-11 | ER83: 1.29602995e-11 | ES83: 1.29602995e-11 | ET83: 1.29602995e-11 | EU83: 1.29602995e-11 | EV83: 1.29602995e-11 | EW83: 1.29602995e-11 | EX83: 1.29602995e-11 | EY83: 1.29602995e-11 | EZ83: 1.29602995e-11 | FA83: 1.29602995e-11 | FB83: 1.29602995e-11 | FC83: 1.29602995e-11 | FD83: 1.29602995e-11 | FE83: 1.29602995e-11 | FF83: 1.29602995e-11 | FG83: 1.29602995e-11 | FH83: 1.29602995e-11 | FI83: 1.29602995e-11 | FJ83: 1.29602995e-11 | FK83: 1.29602995e-11 | FL83: 1.29602995e-11 | FM83: 1.29602995e-11 | FN83: 1.29602995e-11 | FO83: 1.29602995e-11 | FP83: 1.29602995e-11 | FQ83: 1.29602995e-11 | FR83: 1.29602995e-11 | FS83: 1.29602995e-11 | FT83: 1.29602995e-11 | FU83: 1.29602995e-11 | FV83: 1.29602995e-11 | FW83: 1.29602995e-11 | FX83: 1.29602995e-11 | FY83: 1.29602995e-11 | FZ83: 1.29602995e-11 | GA83: 1.29602995e-11 | GB83: 1.29602995e-11 | GC83: 1.29602995e-11 | GD83: 1.29602995e-11 | GE83: 1.29602995e-11 | GF83: 1.29602995e-11 | GG83: 1.29602995e-11 | GH83: 1.29602995e-11 | GI83: 1.29602995e-11 | GJ83: 1.29602995e-11 | GK83: 1.29602995e-11 | GL83: 1.29602995e-11 | GM83: 1.29602995e-11 | GN83: 1.29602995e-11 | GO83: 1.29602995e-11 | GP83: 1.29602995e-11 | GQ83: 1.29602995e-11 | GR83: 1.29602995e-11 | GS83: 1.29602995e-11 | GT83: 1.29602995e-11 | GU83: =GT86 -> 1.29602995e-11 | GV83: 1.29602995e-11 | GW83: 1.29602995e-11 | GX83: 1.29602995e-11 | GY83: 1.29602995e-11 | GZ83: 1.29602995e-11 | HA83: 1.29602995e-11
D84: Add: Draws | F84: MZN | J84: =J74 -> 878.5298108 | K84: 602.491497 | L84: 603.7215838 | M84: 604.9541821 | N84: 606.1892969 | O84: 607.4269333 | P84: 608.6670967 | Q84: 609.909792 | R84: 611.1550245 | S84: 612.4027993 | T84: 613.6531217 | U84: 614.9059968 | V84: 616.1614299 | W84: 617.4194262 | X84: 618.6799908 | Y84: 619.9431291 | Z84: 621.2088464 | AA84: 622.4771478 | AB84: 623.7480386 | AC84: 625.0215242 | AD84: 626.2976098 | AE84: 627.5763007 | AF84: 628.8576024 | AG84: 630.14152 | AH84: 631.4280589 | AI84: 632.7172245 | AJ84: 634.0090222 | AK84: 635.3034573 | AL84: 636.6005352 | AM84: 1623.543342 | AN84: 0 | AO84: 0 | AP84: =AP74 -> 0 | AQ84: 0 | AR84: 0 | AS84: 0 | AT84: 0 | AU84: 0 | AV84: 0 | AW84: 0 | AX84: 0 | AY84: 0 | AZ84: 0 | BA84: 0 | BB84: 0 | BC84: 0 | BD84: 0 | BE84: 0 | BF84: 0 | BG84: 0 | BH84: 0 | BI84: 0 | BJ84: 0 | BK84: 0 | BL84: 0 | BM84: 0 | BN84: 0 | BO84: 0 | BP84: 0 | BQ84: 0 | BR84: 0 | BS84: 0 | BT84: 0 | BU84: 0 | BV84: =BV74 -> 0 | BW84: 0 | BX84: 0 | BY84: 0 | BZ84: 0 | CA84: 0 | CB84: 0 | CC84: 0 | CD84: 0 | CE84: 0 | CF84: 0 | CG84: 0 | CH84: 0 | CI84: 0 | CJ84: 0 | CK84: 0 | CL84: 0 | CM84: 0 | CN84: 0 | CO84: 0 | CP84: 0 | CQ84: 0 | CR84: 0 | CS84: 0 | CT84: 0 | CU84: 0 | CV84: 0 | CW84: 0 | CX84: 0 | CY84: 0 | CZ84: 0 | DA84: 0 | DB84: =DB74 -> 0 | DC84: 0 | DD84: 0 | DE84: 0 | DF84: 0 | DG84: 0 | DH84: 0 | DI84: 0 | DJ84: 0 | DK84: 0 | DL84: 0 | DM84: 0 | DN84: 0 | DO84: 0 | DP84: 0 | DQ84: 0 | DR84: 0 | DS84: 0 | DT84: 0 | DU84: 0 | DV84: 0 | DW84: 0 | DX84: 0 | DY84: 0 | DZ84: 0 | EA84: 0 | EB84: 0 | EC84: 0 | ED84: 0 | EE84: 0 | EF84: 0 | EG84: 0 | EH84: =EH74 -> 0 | EI84: 0 | EJ84: 0 | EK84: 0 | EL84: 0 | EM84: 0 | EN84: 0 | EO84: 0 | EP84: 0 | EQ84: 0 | ER84: 0 | ES84: 0 | ET84: 0 | EU84: 0 | EV84: 0 | EW84: 0 | EX84: 0 | EY84: 0 | EZ84: 0 | FA84: 0 | FB84: 0 | FC84: 0 | FD84: 0 | FE84: 0 | FF84: 0 | FG84: 0 | FH84: 0 | FI84: 0 | FJ84: 0 | FK84: 0 | FL84: 0 | FM84: 0 | FN84: =FN74 -> 0 | FO84: 0 | FP84: 0 | FQ84: 0 | FR84: 0 | FS84: 0 | FT84: 0 | FU84: 0 | FV84: 0 | FW84: 0 | FX84: 0 | FY84: 0 | FZ84: 0 | GA84: 0 | GB84: 0 | GC84: 0 | GD84: 0 | GE84: 0 | GF84: 0 | GG84: 0 | GH84: 0 | GI84: 0 | GJ84: 0 | GK84: 0 | GL84: 0 | GM84: 0 | GN84: 0 | GO84: 0 | GP84: 0 | GQ84: 0 | GR84: 0 | GS84: 0 | GT84: =GT74 -> 0 | GU84: 0 | GV84: 0 | GW84: 0 | GX84: 0 | GY84: 0 | GZ84: 0 | HA84: 0
D85: Less: Repayment | F85: MZN | J85: =MIN(J81,J83) -> 0 | K85: =MIN(K81,K83) -> 0 | L85: 0 | M85: 0 | N85: 0 | O85: 0 | P85: 0 | Q85: 0 | R85: 0 | S85: 0 | T85: 0 | U85: 0 | V85: 0 | W85: 0 | X85: 0 | Y85: 0 | Z85: 0 | AA85: 0 | AB85: 0 | AC85: 0 | AD85: 0 | AE85: 0 | AF85: 0 | AG85: 0 | AH85: 0 | AI85: 0 | AJ85: 0 | AK85: 0 | AL85: 0 | AM85: 0 | AN85: 415.8044765 | AO85: 436.5947004 | AP85: 458.4244354 | AQ85: 481.3456571 | AR85: 505.41294 | AS85: 530.683587 | AT85: 557.2177664 | AU85: 585.0786547 | AV85: 614.3325874 | AW85: 645.0492168 | AX85: 677.3016776 | AY85: 711.1667615 | AZ85: 746.7250996 | BA85: 784.0613545 | BB85: 823.2644223 | BC85: 864.4276434 | BD85: 907.6490256 | BE85: 953.0314768 | BF85: 1000.683051 | BG85: 1050.717203 | BH85: 1103.253063 | BI85: 1158.415717 | BJ85: 1216.336502 | BK85: 1277.153327 | BL85: 1341.010994 | BM85: 0 | BN85: 0 | BO85: 0 | BP85: 0 | BQ85: 0 | BR85: 0 | BS85: 0 | BT85: 0 | BU85: 0 | BV85: 0 | BW85: =MIN(BW81,BW83) -> 0 | BX85: 0 | BY85: 0 | BZ85: 0 | CA85: 0 | CB85: 0 | CC85: 0 | CD85: 0 | CE85: 0 | CF85: 0 | CG85: 0 | CH85: 0 | CI85: 0 | CJ85: 0 | CK85: 0 | CL85: 0 | CM85: 0 | CN85: 0 | CO85: 0 | CP85: 0 | CQ85: 0 | CR85: 0 | CS85: 0 | CT85: 0 | CU85: 0 | CV85: 0 | CW85: 0 | CX85: 0 | CY85: 0 | CZ85: 0 | DA85: 0 | DB85: 0 | DC85: 0 | DD85: 0 | DE85: 0 | DF85: 0 | DG85: 0 | DH85: 0 | DI85: 0 | DJ85: 0 | DK85: 0 | DL85: 0 | DM85: 0 | DN85: 0 | DO85: 0 | DP85: 0 | DQ85: 0 | DR85: 0 | DS85: 0 | DT85: 0 | DU85: 0 | DV85: 0 | DW85: 0 | DX85: 0 | DY85: 0 | DZ85: 0 | EA85: 0 | EB85: 0 | EC85: 0 | ED85: 0 | EE85: 0 | EF85: 0 | EG85: 0 | EH85: 0 | EI85: =MIN(EI81,EI83) -> 0 | EJ85: 0 | EK85: 0 | EL85: 0 | EM85: 0 | EN85: 0 | EO85: 0 | EP85: 0 | EQ85: 0 | ER85: 0 | ES85: 0 | ET85: 0 | EU85: 0 | EV85: 0 | EW85: 0 | EX85: 0 | EY85: 0 | EZ85: 0 | FA85: 0 | FB85: 0 | FC85: 0 | FD85: 0 | FE85: 0 | FF85: 0 | FG85: 0 | FH85: 0 | FI85: 0 | FJ85: 0 | FK85: 0 | FL85: 0 | FM85: 0 | FN85: 0 | FO85: 0 | FP85: 0 | FQ85: 0 | FR85: 0 | FS85: 0 | FT85: 0 | FU85: 0 | FV85: 0 | FW85: 0 | FX85: 0 | FY85: 0 | FZ85: 0 | GA85: 0 | GB85: 0 | GC85: 0 | GD85: 0 | GE85: 0 | GF85: 0 | GG85: 0 | GH85: 0 | GI85: 0 | GJ85: 0 | GK85: 0 | GL85: 0 | GM85: 0 | GN85: 0 | GO85: 0 | GP85: 0 | GQ85: 0 | GR85: 0 | GS85: 0 | GT85: 0 | GU85: =MIN(GU81,GU83) -> 0 | GV85: 0 | GW85: 0 | GX85: 0 | GY85: 0 | GZ85: 0 | HA85: 0
D86: Closing Balance | F86: MZN | J86: =J83+J84-J85 -> 878.5298108 | K86: =K83+K84-K85 -> 1481.021308 | L86: 2084.742892 | M86: 2689.697074 | N86: 3295.886371 | O86: 3903.313304 | P86: 4511.980401 | Q86: 5121.890193 | R86: 5733.045217 | S86: 6345.448016 | T86: 6959.101138 | U86: 7574.007135 | V86: 8190.168565 | W86: 8807.587991 | X86: 9426.267982 | Y86: 10046.21111 | Z86: 10667.41996 | AA86: 11289.89711 | AB86: 11913.64514 | AC86: 12538.66667 | AD86: 13164.96428 | AE86: 13792.54058 | AF86: 14421.39818 | AG86: 15051.5397 | AH86: 15682.96776 | AI86: 16315.68498 | AJ86: 16949.69401 | AK86: 17584.99746 | AL86: 18221.598 | AM86: 19845.14134 | AN86: 19429.33686 | AO86: 18992.74216 | AP86: 18534.31773 | AQ86: 18052.97207 | AR86: 17547.55913 | AS86: 17016.87554 | AT86: 16459.65778 | AU86: 15874.57912 | AV86: 15260.24654 | AW86: 14615.19732 | AX86: 13937.89564 | AY86: 13226.72888 | AZ86: 12480.00378 | BA86: 11695.94243 | BB86: 10872.678 | BC86: 10008.25036 | BD86: 9100.601334 | BE86: 8147.569858 | BF86: 7146.886807 | BG86: 6096.169604 | BH86: 4992.91654 | BI86: 3834.500824 | BJ86: 2618.164321 | BK86: 1341.010994 | BL86: 1.29602995e-11 | BM86: 1.29602995e-11 | BN86: 1.29602995e-11 | BO86: 1.29602995e-11 | BP86: 1.29602995e-11 | BQ86: 1.29602995e-11 | BR86: 1.29602995e-11 | BS86: 1.29602995e-11 | BT86: 1.29602995e-11 | BU86: 1.29602995e-11 | BV86: 1.29602995e-11 | BW86: =BW83+BW84-BW85 -> 1.29602995e-11 | BX86: 1.29602995e-11 | BY86: 1.29602995e-11 | BZ86: 1.29602995e-11 | CA86: 1.29602995e-11 | CB86: 1.29602995e-11 | CC86: 1.29602995e-11 | CD86: 1.29602995e-11 | CE86: 1.29602995e-11 | CF86: 1.29602995e-11 | CG86: 1.29602995e-11 | CH86: 1.29602995e-11 | CI86: 1.29602995e-11 | CJ86: 1.29602995e-11 | CK86: 1.29602995e-11 | CL86: 1.29602995e-11 | CM86: 1.29602995e-11 | CN86: 1.29602995e-11 | CO86: 1.29602995e-11 | CP86: 1.29602995e-11 | CQ86: 1.29602995e-11 | CR86: 1.29602995e-11 | CS86: 1.29602995e-11 | CT86: 1.29602995e-11 | CU86: 1.29602995e-11 | CV86: 1.29602995e-11 | CW86: 1.29602995e-11 | CX86: 1.29602995e-11 | CY86: 1.29602995e-11 | CZ86: 1.29602995e-11 | DA86: 1.29602995e-11 | DB86: 1.29602995e-11 | DC86: 1.29602995e-11 | DD86: 1.29602995e-11 | DE86: 1.29602995e-11 | DF86: 1.29602995e-11 | DG86: 1.29602995e-11 | DH86: 1.29602995e-11 | DI86: 1.29602995e-11 | DJ86: 1.29602995e-11 | DK86: 1.29602995e-11 | DL86: 1.29602995e-11 | DM86: 1.29602995e-11 | DN86: 1.29602995e-11 | DO86: 1.29602995e-11 | DP86: 1.29602995e-11 | DQ86: 1.29602995e-11 | DR86: 1.29602995e-11 | DS86: 1.29602995e-11 | DT86: 1.29602995e-11 | DU86: 1.29602995e-11 | DV86: 1.29602995e-11 | DW86: 1.29602995e-11 | DX86: 1.29602995e-11 | DY86: 1.29602995e-11 | DZ86: 1.29602995e-11 | EA86: 1.29602995e-11 | EB86: 1.29602995e-11 | EC86: 1.29602995e-11 | ED86: 1.29602995e-11 | EE86: 1.29602995e-11 | EF86: 1.29602995e-11 | EG86: 1.29602995e-11 | EH86: 1.29602995e-11 | EI86: =EI83+EI84-EI85 -> 1.29602995e-11 | EJ86: 1.29602995e-11 | EK86: 1.29602995e-11 | EL86: 1.29602995e-11 | EM86: 1.29602995e-11 | EN86: 1.29602995e-11 | EO86: 1.29602995e-11 | EP86: 1.29602995e-11 | EQ86: 1.29602995e-11 | ER86: 1.29602995e-11 | ES86: 1.29602995e-11 | ET86: 1.29602995e-11 | EU86: 1.29602995e-11 | EV86: 1.29602995e-11 | EW86: 1.29602995e-11 | EX86: 1.29602995e-11 | EY86: 1.29602995e-11 | EZ86: 1.29602995e-11 | FA86: 1.29602995e-11 | FB86: 1.29602995e-11 | FC86: 1.29602995e-11 | FD86: 1.29602995e-11 | FE86: 1.29602995e-11 | FF86: 1.29602995e-11 | FG86: 1.29602995e-11 | FH86: 1.29602995e-11 | FI86: 1.29602995e-11 | FJ86: 1.29602995e-11 | FK86: 1.29602995e-11 | FL86: 1.29602995e-11 | FM86: 1.29602995e-11 | FN86: 1.29602995e-11 | FO86: 1.29602995e-11 | FP86: 1.29602995e-11 | FQ86: 1.29602995e-11 | FR86: 1.29602995e-11 | FS86: 1.29602995e-11 | FT86: 1.29602995e-11 | FU86: 1.29602995e-11 | FV86: 1.29602995e-11 | FW86: 1.29602995e-11 | FX86: 1.29602995e-11 | FY86: 1.29602995e-11 | FZ86: 1.29602995e-11 | GA86: 1.29602995e-11 | GB86: 1.29602995e-11 | GC86: 1.29602995e-11 | GD86: 1.29602995e-11 | GE86: 1.29602995e-11 | GF86: 1.29602995e-11 | GG86: 1.29602995e-11 | GH86: 1.29602995e-11 | GI86: 1.29602995e-11 | GJ86: 1.29602995e-11 | GK86: 1.29602995e-11 | GL86: 1.29602995e-11 | GM86: 1.29602995e-11 | GN86: 1.29602995e-11 | GO86: 1.29602995e-11 | GP86: 1.29602995e-11 | GQ86: 1.29602995e-11 | GR86: 1.29602995e-11 | GS86: 1.29602995e-11 | GT86: 1.29602995e-11 | GU86: =GU83+GU84-GU85 -> 1.29602995e-11 | GV86: 1.29602995e-11 | GW86: 1.29602995e-11 | GX86: 1.29602995e-11 | GY86: 1.29602995e-11 | GZ86: 1.29602995e-11 | HA86: 1.29602995e-11
D88: Interest Rate Annual | F88: % p.a. | G88: =G26 -> 0.05 | J88: =$G$88 -> 0.05 | K88: =$G$88 -> 0.05 | L88: 0.05 | M88: 0.05 | N88: 0.05 | O88: 0.05 | P88: 0.05 | Q88: 0.05 | R88: 0.05 | S88: 0.05 | T88: 0.05 | U88: 0.05 | V88: 0.05 | W88: 0.05 | X88: 0.05 | Y88: 0.05 | Z88: 0.05 | AA88: 0.05 | AB88: 0.05 | AC88: 0.05 | AD88: 0.05 | AE88: 0.05 | AF88: 0.05 | AG88: 0.05 | AH88: 0.05 | AI88: 0.05 | AJ88: 0.05 | AK88: 0.05 | AL88: 0.05 | AM88: 0.05 | AN88: 0.05 | AO88: 0.05 | AP88: 0.05 | AQ88: 0.05 | AR88: 0.05 | AS88: 0.05 | AT88: 0.05 | AU88: 0.05 | AV88: 0.05 | AW88: 0.05 | AX88: 0.05 | AY88: 0.05 | AZ88: 0.05 | BA88: 0.05 | BB88: 0.05 | BC88: 0.05 | BD88: 0.05 | BE88: 0.05 | BF88: 0.05 | BG88: 0.05 | BH88: 0.05 | BI88: 0.05 | BJ88: 0.05 | BK88: 0.05 | BL88: 0.05 | BM88: 0.05 | BN88: 0.05 | BO88: 0.05 | BP88: 0.05 | BQ88: 0.05 | BR88: 0.05 | BS88: 0.05 | BT88: 0.05 | BU88: 0.05 | BV88: 0.05 | BW88: =$G$88 -> 0.05 | BX88: 0.05 | BY88: 0.05 | BZ88: 0.05 | CA88: 0.05 | CB88: 0.05 | CC88: 0.05 | CD88: 0.05 | CE88: 0.05 | CF88: 0.05 | CG88: 0.05 | CH88: 0.05 | CI88: 0.05 | CJ88: 0.05 | CK88: 0.05 | CL88: 0.05 | CM88: 0.05 | CN88: 0.05 | CO88: 0.05 | CP88: 0.05 | CQ88: 0.05 | CR88: 0.05 | CS88: 0.05 | CT88: 0.05 | CU88: 0.05 | CV88: 0.05 | CW88: 0.05 | CX88: 0.05 | CY88: 0.05 | CZ88: 0.05 | DA88: 0.05 | DB88: 0.05 | DC88: 0.05 | DD88: 0.05 | DE88: 0.05 | DF88: 0.05 | DG88: 0.05 | DH88: 0.05 | DI88: 0.05 | DJ88: 0.05 | DK88: 0.05 | DL88: 0.05 | DM88: 0.05 | DN88: 0.05 | DO88: 0.05 | DP88: 0.05 | DQ88: 0.05 | DR88: 0.05 | DS88: 0.05 | DT88: 0.05 | DU88: 0.05 | DV88: 0.05 | DW88: 0.05 | DX88: 0.05 | DY88: 0.05 | DZ88: 0.05 | EA88: 0.05 | EB88: 0.05 | EC88: 0.05 | ED88: 0.05 | EE88: 0.05 | EF88: 0.05 | EG88: 0.05 | EH88: 0.05 | EI88: =$G$88 -> 0.05 | EJ88: 0.05 | EK88: 0.05 | EL88: 0.05 | EM88: 0.05 | EN88: 0.05 | EO88: 0.05 | EP88: 0.05 | EQ88: 0.05 | ER88: 0.05 | ES88: 0.05 | ET88: 0.05 | EU88: 0.05 | EV88: 0.05 | EW88: 0.05 | EX88: 0.05 | EY88: 0.05 | EZ88: 0.05 | FA88: 0.05 | FB88: 0.05 | FC88: 0.05 | FD88: 0.05 | FE88: 0.05 | FF88: 0.05 | FG88: 0.05 | FH88: 0.05 | FI88: 0.05 | FJ88: 0.05 | FK88: 0.05 | FL88: 0.05 | FM88: 0.05 | FN88: 0.05 | FO88: 0.05 | FP88: 0.05 | FQ88: 0.05 | FR88: 0.05 | FS88: 0.05 | FT88: 0.05 | FU88: 0.05 | FV88: 0.05 | FW88: 0.05 | FX88: 0.05 | FY88: 0.05 | FZ88: 0.05 | GA88: 0.05 | GB88: 0.05 | GC88: 0.05 | GD88: 0.05 | GE88: 0.05 | GF88: 0.05 | GG88: 0.05 | GH88: 0.05 | GI88: 0.05 | GJ88: 0.05 | GK88: 0.05 | GL88: 0.05 | GM88: 0.05 | GN88: 0.05 | GO88: 0.05 | GP88: 0.05 | GQ88: 0.05 | GR88: 0.05 | GS88: 0.05 | GT88: 0.05 | GU88: =$G$88 -> 0.05 | GV88: 0.05 | GW88: 0.05 | GX88: 0.05 | GY88: 0.05 | GZ88: 0.05 | HA88: 0.05
D89: Interest Rate Periodic | F89: % p.p. | J89: =(J88/12)*J8 -> 0.004166666667 | K89: 0.004166666667 | L89: 0.004166666667 | M89: 0.004166666667 | N89: 0.004166666667 | O89: 0.004166666667 | P89: 0.004166666667 | Q89: 0.004166666667 | R89: 0.004166666667 | S89: 0.004166666667 | T89: 0.004166666667 | U89: 0.004166666667 | V89: 0.004166666667 | W89: 0.004166666667 | X89: 0.004166666667 | Y89: 0.004166666667 | Z89: 0.004166666667 | AA89: 0.004166666667 | AB89: 0.004166666667 | AC89: 0.004166666667 | AD89: 0.004166666667 | AE89: 0.004166666667 | AF89: 0.004166666667 | AG89: 0.004166666667 | AH89: 0.004166666667 | AI89: 0.004166666667 | AJ89: 0.004166666667 | AK89: 0.004166666667 | AL89: 0.004166666667 | AM89: 0.004166666667 | AN89: 0.05 | AO89: 0.05 | AP89: =(AP88/12)*AP8 -> 0.05 | AQ89: 0.05 | AR89: 0.05 | AS89: 0.05 | AT89: 0.05 | AU89: 0.05 | AV89: 0.05 | AW89: 0.05 | AX89: 0.05 | AY89: 0.05 | AZ89: 0.05 | BA89: 0.05 | BB89: 0.05 | BC89: 0.05 | BD89: 0.05 | BE89: 0.05 | BF89: 0.05 | BG89: 0.05 | BH89: 0.05 | BI89: 0.05 | BJ89: 0.05 | BK89: 0.05 | BL89: 0.05 | BM89: 0.05 | BN89: 0.05 | BO89: 0.05 | BP89: 0.05 | BQ89: 0.05 | BR89: 0.05 | BS89: 0.05 | BT89: 0.05 | BU89: 0.05 | BV89: =(BV88/12)*BV8 -> 0.05 | BW89: 0.05 | BX89: 0.05 | BY89: 0.05 | BZ89: 0.05 | CA89: 0.05 | CB89: 0.05 | CC89: 0.05 | CD89: 0.05 | CE89: 0.05 | CF89: 0.05 | CG89: 0.05 | CH89: 0.05 | CI89: 0.05 | CJ89: 0.05 | CK89: 0.05 | CL89: 0.05 | CM89: 0.05 | CN89: 0.05 | CO89: 0.05 | CP89: 0.05 | CQ89: 0.05 | CR89: 0.05 | CS89: 0.05 | CT89: 0.05 | CU89: 0.05 | CV89: 0.05 | CW89: 0.05 | CX89: 0.05 | CY89: 0.05 | CZ89: 0.05 | DA89: 0.05 | DB89: =(DB88/12)*DB8 -> 0.05 | DC89: 0.05 | DD89: 0.05 | DE89: 0.05 | DF89: 0.05 | DG89: 0.05 | DH89: 0.05 | DI89: 0.05 | DJ89: 0.05 | DK89: 0.05 | DL89: 0.05 | DM89: 0.05 | DN89: 0.05 | DO89: 0.05 | DP89: 0.05 | DQ89: 0.05 | DR89: 0.05 | DS89: 0.05 | DT89: 0.05 | DU89: 0.05 | DV89: 0.05 | DW89: 0.05 | DX89: 0.05 | DY89: 0.05 | DZ89: 0.05 | EA89: 0.05 | EB89: 0.05 | EC89: 0.05 | ED89: 0.05 | EE89: 0.05 | EF89: 0.05 | EG89: 0.05 | EH89: =(EH88/12)*EH8 -> 0.05 | EI89: 0.05 | EJ89: 0.05 | EK89: 0.05 | EL89: 0.05 | EM89: 0.05 | EN89: 0.05 | EO89: 0.05 | EP89: 0.05 | EQ89: 0.05 | ER89: 0.05 | ES89: 0.05 | ET89: 0.05 | EU89: 0.05 | EV89: 0.05 | EW89: 0.05 | EX89: 0.05 | EY89: 0.05 | EZ89: 0.05 | FA89: 0.05 | FB89: 0.05 | FC89: 0.05 | FD89: 0.05 | FE89: 0.05 | FF89: 0.05 | FG89: 0.05 | FH89: 0.05 | FI89: 0.05 | FJ89: 0.05 | FK89: 0.05 | FL89: 0.05 | FM89: 0.05 | FN89: =(FN88/12)*FN8 -> 0.05 | FO89: 0.05 | FP89: 0.05 | FQ89: 0.05 | FR89: 0.05 | FS89: 0.05 | FT89: 0.05 | FU89: 0.05 | FV89: 0.05 | FW89: 0.05 | FX89: 0.05 | FY89: 0.05 | FZ89: 0.05 | GA89: 0.05 | GB89: 0.05 | GC89: 0.05 | GD89: 0.05 | GE89: 0.05 | GF89: 0.05 | GG89: 0.05 | GH89: 0.05 | GI89: 0.05 | GJ89: 0.05 | GK89: 0.05 | GL89: 0.05 | GM89: 0.05 | GN89: 0.05 | GO89: 0.05 | GP89: 0.05 | GQ89: 0.05 | GR89: 0.05 | GS89: 0.05 | GT89: =(GT88/12)*GT8 -> 0.05 | GU89: 0.05 | GV89: 0.05 | GW89: 0.05 | GX89: 0.05 | GY89: 0.05 | GZ89: 0.05 | HA89: 0.05
D90: Interest Cost | F90: MZN | J90: =J89*J83 -> 0 | K90: =K89*K83 -> 3.660540878 | L90: 6.170922116 | M90: 8.686428715 | N90: 11.20707114 | O90: 13.73285988 | P90: 16.26380543 | Q90: 18.79991834 | R90: 21.34120914 | S90: 23.8876884 | T90: 26.43936674 | U90: 28.99625474 | V90: 31.55836306 | W90: 34.12570235 | X90: 36.6982833 | Y90: 39.27611659 | Z90: 41.85921296 | AA90: 44.44758316 | AB90: 47.04123794 | AC90: 49.6401881 | AD90: 52.24444445 | AE90: 54.85401782 | AF90: 57.46891908 | AG90: 60.08915909 | AH90: 62.71474875 | AI90: 65.345699 | AJ90: 67.98202077 | AK90: 70.62372503 | AL90: 73.27082276 | AM90: 75.92332499 | AN90: 992.257067 | AO90: 971.4668432 | AP90: 949.6371082 | AQ90: 926.7158864 | AR90: 902.6486036 | AS90: 877.3779566 | AT90: 850.8437772 | AU90: 822.9828889 | AV90: 793.7289561 | AW90: 763.0123268 | AX90: 730.7598659 | AY90: 696.8947821 | AZ90: 661.336444 | BA90: 624.000189 | BB90: 584.7971213 | BC90: 543.6339002 | BD90: 500.412518 | BE90: 455.0300667 | BF90: 407.3784929 | BG90: 357.3443403 | BH90: 304.8084802 | BI90: 249.645827 | BJ90: 191.7250412 | BK90: 130.9082161 | BL90: 67.05054969 | BM90: 6.48014975e-13 | BN90: 6.48014975e-13 | BO90: 6.48014975e-13 | BP90: 6.48014975e-13 | BQ90: 6.48014975e-13 | BR90: 6.48014975e-13 | BS90: 6.48014975e-13 | BT90: 6.48014975e-13 | BU90: 6.48014975e-13 | BV90: 6.48014975e-13 | BW90: =BW89*BW83 -> 6.48014975e-13 | BX90: 6.48014975e-13 | BY90: 6.48014975e-13 | BZ90: 6.48014975e-13 | CA90: 6.48014975e-13 | CB90: 6.48014975e-13 | CC90: 6.48014975e-13 | CD90: 6.48014975e-13 | CE90: 6.48014975e-13 | CF90: 6.48014975e-13 | CG90: 6.48014975e-13 | CH90: 6.48014975e-13 | CI90: 6.48014975e-13 | CJ90: 6.48014975e-13 | CK90: 6.48014975e-13 | CL90: 6.48014975e-13 | CM90: 6.48014975e-13 | CN90: 6.48014975e-13 | CO90: 6.48014975e-13 | CP90: 6.48014975e-13 | CQ90: 6.48014975e-13 | CR90: 6.48014975e-13 | CS90: 6.48014975e-13 | CT90: 6.48014975e-13 | CU90: 6.48014975e-13 | CV90: 6.48014975e-13 | CW90: 6.48014975e-13 | CX90: 6.48014975e-13 | CY90: 6.48014975e-13 | CZ90: 6.48014975e-13 | DA90: 6.48014975e-13 | DB90: 6.48014975e-13 | DC90: 6.48014975e-13 | DD90: 6.48014975e-13 | DE90: 6.48014975e-13 | DF90: 6.48014975e-13 | DG90: 6.48014975e-13 | DH90: 6.48014975e-13 | DI90: 6.48014975e-13 | DJ90: 6.48014975e-13 | DK90: 6.48014975e-13 | DL90: 6.48014975e-13 | DM90: 6.48014975e-13 | DN90: 6.48014975e-13 | DO90: 6.48014975e-13 | DP90: 6.48014975e-13 | DQ90: 6.48014975e-13 | DR90: 6.48014975e-13 | DS90: 6.48014975e-13 | DT90: 6.48014975e-13 | DU90: 6.48014975e-13 | DV90: 6.48014975e-13 | DW90: 6.48014975e-13 | DX90: 6.48014975e-13 | DY90: 6.48014975e-13 | DZ90: 6.48014975e-13 | EA90: 6.48014975e-13 | EB90: 6.48014975e-13 | EC90: 6.48014975e-13 | ED90: 6.48014975e-13 | EE90: 6.48014975e-13 | EF90: 6.48014975e-13 | EG90: 6.48014975e-13 | EH90: 6.48014975e-13 | EI90: =EI89*EI83 -> 6.48014975e-13 | EJ90: 6.48014975e-13 | EK90: 6.48014975e-13 | EL90: 6.48014975e-13 | EM90: 6.48014975e-13 | EN90: 6.48014975e-13 | EO90: 6.48014975e-13 | EP90: 6.48014975e-13 | EQ90: 6.48014975e-13 | ER90: 6.48014975e-13 | ES90: 6.48014975e-13 | ET90: 6.48014975e-13 | EU90: 6.48014975e-13 | EV90: 6.48014975e-13 | EW90: 6.48014975e-13 | EX90: 6.48014975e-13 | EY90: 6.48014975e-13 | EZ90: 6.48014975e-13 | FA90: 6.48014975e-13 | FB90: 6.48014975e-13 | FC90: 6.48014975e-13 | FD90: 6.48014975e-13 | FE90: 6.48014975e-13 | FF90: 6.48014975e-13 | FG90: 6.48014975e-13 | FH90: 6.48014975e-13 | FI90: 6.48014975e-13 | FJ90: 6.48014975e-13 | FK90: 6.48014975e-13 | FL90: 6.48014975e-13 | FM90: 6.48014975e-13 | FN90: 6.48014975e-13 | FO90: 6.48014975e-13 | FP90: 6.48014975e-13 | FQ90: 6.48014975e-13 | FR90: 6.48014975e-13 | FS90: 6.48014975e-13 | FT90: 6.48014975e-13 | FU90: 6.48014975e-13 | FV90: 6.48014975e-13 | FW90: 6.48014975e-13 | FX90: 6.48014975e-13 | FY90: 6.48014975e-13 | FZ90: 6.48014975e-13 | GA90: 6.48014975e-13 | GB90: 6.48014975e-13 | GC90: 6.48014975e-13 | GD90: 6.48014975e-13 | GE90: 6.48014975e-13 | GF90: 6.48014975e-13 | GG90: 6.48014975e-13 | GH90: 6.48014975e-13 | GI90: 6.48014975e-13 | GJ90: 6.48014975e-13 | GK90: 6.48014975e-13 | GL90: 6.48014975e-13 | GM90: 6.48014975e-13 | GN90: 6.48014975e-13 | GO90: 6.48014975e-13 | GP90: 6.48014975e-13 | GQ90: 6.48014975e-13 | GR90: 6.48014975e-13 | GS90: 6.48014975e-13 | GT90: 6.48014975e-13 | GU90: =GU89*GU83 -> 6.48014975e-13 | GV90: 6.48014975e-13 | GW90: 6.48014975e-13 | GX90: 6.48014975e-13 | GY90: 6.48014975e-13 | GZ90: 6.48014975e-13 | HA90: 6.48014975e-13
D92: Interest During Construction | F92: MZN | J92: =J90*J5 -> 0 | K92: 3.660540878 | L92: 6.170922116 | M92: 8.686428715 | N92: 11.20707114 | O92: 13.73285988 | P92: 16.26380543 | Q92: 18.79991834 | R92: 21.34120914 | S92: 23.8876884 | T92: 26.43936674 | U92: 28.99625474 | V92: 31.55836306 | W92: 34.12570235 | X92: 36.6982833 | Y92: 39.27611659 | Z92: 41.85921296 | AA92: 44.44758316 | AB92: 47.04123794 | AC92: 49.6401881 | AD92: 52.24444445 | AE92: 54.85401782 | AF92: 57.46891908 | AG92: 60.08915909 | AH92: 62.71474875 | AI92: 65.345699 | AJ92: 67.98202077 | AK92: 70.62372503 | AL92: 73.27082276 | AM92: 75.92332499 | AN92: 0 | AO92: 0 | AP92: =AP90*AP5 -> 0 | AQ92: 0 | AR92: 0 | AS92: 0 | AT92: 0 | AU92: 0 | AV92: 0 | AW92: 0 | AX92: 0 | AY92: 0 | AZ92: 0 | BA92: 0 | BB92: 0 | BC92: 0 | BD92: 0 | BE92: 0 | BF92: 0 | BG92: 0 | BH92: 0 | BI92: 0 | BJ92: 0 | BK92: 0 | BL92: 0 | BM92: 0 | BN92: 0 | BO92: 0 | BP92: 0 | BQ92: 0 | BR92: 0 | BS92: 0 | BT92: 0 | BU92: 0 | BV92: =BV90*BV5 -> 0 | BW92: 0 | BX92: 0 | BY92: 0 | BZ92: 0 | CA92: 0 | CB92: 0 | CC92: 0 | CD92: 0 | CE92: 0 | CF92: 0 | CG92: 0 | CH92: 0 | CI92: 0 | CJ92: 0 | CK92: 0 | CL92: 0 | CM92: 0 | CN92: 0 | CO92: 0 | CP92: 0 | CQ92: 0 | CR92: 0 | CS92: 0 | CT92: 0 | CU92: 0 | CV92: 0 | CW92: 0 | CX92: 0 | CY92: 0 | CZ92: 0 | DA92: 0 | DB92: =DB90*DB5 -> 0 | DC92: 0 | DD92: 0 | DE92: 0 | DF92: 0 | DG92: 0 | DH92: 0 | DI92: 0 | DJ92: 0 | DK92: 0 | DL92: 0 | DM92: 0 | DN92: 0 | DO92: 0 | DP92: 0 | DQ92: 0 | DR92: 0 | DS92: 0 | DT92: 0 | DU92: 0 | DV92: 0 | DW92: 0 | DX92: 0 | DY92: 0 | DZ92: 0 | EA92: 0 | EB92: 0 | EC92: 0 | ED92: 0 | EE92: 0 | EF92: 0 | EG92: 0 | EH92: =EH90*EH5 -> 0 | EI92: 0 | EJ92: 0 | EK92: 0 | EL92: 0 | EM92: 0 | EN92: 0 | EO92: 0 | EP92: 0 | EQ92: 0 | ER92: 0 | ES92: 0 | ET92: 0 | EU92: 0 | EV92: 0 | EW92: 0 | EX92: 0 | EY92: 0 | EZ92: 0 | FA92: 0 | FB92: 0 | FC92: 0 | FD92: 0 | FE92: 0 | FF92: 0 | FG92: 0 | FH92: 0 | FI92: 0 | FJ92: 0 | FK92: 0 | FL92: 0 | FM92: 0 | FN92: =FN90*FN5 -> 0 | FO92: 0 | FP92: 0 | FQ92: 0 | FR92: 0 | FS92: 0 | FT92: 0 | FU92: 0 | FV92: 0 | FW92: 0 | FX92: 0 | FY92: 0 | FZ92: 0 | GA92: 0 | GB92: 0 | GC92: 0 | GD92: 0 | GE92: 0 | GF92: 0 | GG92: 0 | GH92: 0 | GI92: 0 | GJ92: 0 | GK92: 0 | GL92: 0 | GM92: 0 | GN92: 0 | GO92: 0 | GP92: 0 | GQ92: 0 | GR92: 0 | GS92: 0 | GT92: =GT90*GT5 -> 0 | GU92: 0 | GV92: 0 | GW92: 0 | GX92: 0 | GY92: 0 | GZ92: 0 | HA92: 0
D93: Interest Expense | J93: =J90*J9 -> 0 | K93: 0 | L93: 0 | M93: 0 | N93: 0 | O93: 0 | P93: 0 | Q93: 0 | R93: 0 | S93: 0 | T93: 0 | U93: 0 | V93: 0 | W93: 0 | X93: 0 | Y93: 0 | Z93: 0 | AA93: 0 | AB93: 0 | AC93: 0 | AD93: 0 | AE93: 0 | AF93: 0 | AG93: 0 | AH93: 0 | AI93: 0 | AJ93: 0 | AK93: 0 | AL93: 0 | AM93: 0 | AN93: 992.257067 | AO93: 971.4668432 | AP93: =AP90*AP9 -> 949.6371082 | AQ93: 926.7158864 | AR93: 902.6486036 | AS93: 877.3779566 | AT93: 850.8437772 | AU93: 822.9828889 | AV93: 793.7289561 | AW93: 763.0123268 | AX93: 730.7598659 | AY93: 696.8947821 | AZ93: 661.336444 | BA93: 624.000189 | BB93: 584.7971213 | BC93: 543.6339002 | BD93: 500.412518 | BE93: 455.0300667 | BF93: 407.3784929 | BG93: 357.3443403 | BH93: 304.8084802 | BI93: 249.645827 | BJ93: 191.7250412 | BK93: 130.9082161 | BL93: 67.05054969 | BM93: 6.48014975e-13 | BN93: 6.48014975e-13 | BO93: 6.48014975e-13 | BP93: 6.48014975e-13 | BQ93: 6.48014975e-13 | BR93: 0 | BS93: 0 | BT93: 0 | BU93: 0 | BV93: =BV90*BV9 -> 0 | BW93: 0 | BX93: 0 | BY93: 0 | BZ93: 0 | CA93: 0 | CB93: 0 | CC93: 0 | CD93: 0 | CE93: 0 | CF93: 0 | CG93: 0 | CH93: 0 | CI93: 0 | CJ93: 0 | CK93: 0 | CL93: 0 | CM93: 0 | CN93: 0 | CO93: 0 | CP93: 0 | CQ93: 0 | CR93: 0 | CS93: 0 | CT93: 0 | CU93: 0 | CV93: 0 | CW93: 0 | CX93: 0 | CY93: 0 | CZ93: 0 | DA93: 0 | DB93: =DB90*DB9 -> 0 | DC93: 0 | DD93: 0 | DE93: 0 | DF93: 0 | DG93: 0 | DH93: 0 | DI93: 0 | DJ93: 0 | DK93: 0 | DL93: 0 | DM93: 0 | DN93: 0 | DO93: 0 | DP93: 0 | DQ93: 0 | DR93: 0 | DS93: 0 | DT93: 0 | DU93: 0 | DV93: 0 | DW93: 0 | DX93: 0 | DY93: 0 | DZ93: 0 | EA93: 0 | EB93: 0 | EC93: 0 | ED93: 0 | EE93: 0 | EF93: 0 | EG93: 0 | EH93: =EH90*EH9 -> 0 | EI93: 0 | EJ93: 0 | EK93: 0 | EL93: 0 | EM93: 0 | EN93: 0 | EO93: 0 | EP93: 0 | EQ93: 0 | ER93: 0 | ES93: 0 | ET93: 0 | EU93: 0 | EV93: 0 | EW93: 0 | EX93: 0 | EY93: 0 | EZ93: 0 | FA93: 0 | FB93: 0 | FC93: 0 | FD93: 0 | FE93: 0 | FF93: 0 | FG93: 0 | FH93: 0 | FI93: 0 | FJ93: 0 | FK93: 0 | FL93: 0 | FM93: 0 | FN93: =FN90*FN9 -> 0 | FO93: 0 | FP93: 0 | FQ93: 0 | FR93: 0 | FS93: 0 | FT93: 0 | FU93: 0 | FV93: 0 | FW93: 0 | FX93: 0 | FY93: 0 | FZ93: 0 | GA93: 0 | GB93: 0 | GC93: 0 | GD93: 0 | GE93: 0 | GF93: 0 | GG93: 0 | GH93: 0 | GI93: 0 | GJ93: 0 | GK93: 0 | GL93: 0 | GM93: 0 | GN93: 0 | GO93: 0 | GP93: 0 | GQ93: 0 | GR93: 0 | GS93: 0 | GT93: =GT90*GT9 -> 0 | GU93: 0 | GV93: 0 | GW93: 0 | GX93: 0 | GY93: 0 | GZ93: 0 | HA93: 0
D94: Financial Close | F94: Flag | J94: =J4=1 -> TRUE | K94: FALSE | L94: FALSE | M94: FALSE | N94: FALSE | O94: FALSE | P94: FALSE | Q94: FALSE | R94: FALSE | S94: FALSE | T94: FALSE | U94: FALSE | V94: FALSE | W94: FALSE | X94: FALSE | Y94: FALSE | Z94: FALSE | AA94: FALSE | AB94: FALSE | AC94: FALSE | AD94: FALSE | AE94: FALSE | AF94: FALSE | AG94: FALSE | AH94: FALSE | AI94: FALSE | AJ94: FALSE | AK94: FALSE | AL94: FALSE | AM94: FALSE | AN94: FALSE | AO94: FALSE | AP94: =AP4=1 -> FALSE | AQ94: FALSE | AR94: FALSE | AS94: FALSE | AT94: FALSE | AU94: FALSE | AV94: FALSE | AW94: FALSE | AX94: FALSE | AY94: FALSE | AZ94: FALSE | BA94: FALSE | BB94: FALSE | BC94: FALSE | BD94: FALSE | BE94: FALSE | BF94: FALSE | BG94: FALSE | BH94: FALSE | BI94: FALSE | BJ94: FALSE | BK94: FALSE | BL94: FALSE | BM94: FALSE | BN94: FALSE | BO94: FALSE | BP94: FALSE | BQ94: FALSE | BR94: FALSE | BS94: FALSE | BT94: FALSE | BU94: FALSE | BV94: =BV4=1 -> FALSE | BW94: FALSE | BX94: FALSE | BY94: FALSE | BZ94: FALSE | CA94: FALSE | CB94: FALSE | CC94: FALSE | CD94: FALSE | CE94: FALSE | CF94: FALSE | CG94: FALSE | CH94: FALSE | CI94: FALSE | CJ94: FALSE | CK94: FALSE | CL94: FALSE | CM94: FALSE | CN94: FALSE | CO94: FALSE | CP94: FALSE | CQ94: FALSE | CR94: FALSE | CS94: FALSE | CT94: FALSE | CU94: FALSE | CV94: FALSE | CW94: FALSE | CX94: FALSE | CY94: FALSE | CZ94: FALSE | DA94: FALSE | DB94: =DB4=1 -> FALSE | DC94: FALSE | DD94: FALSE | DE94: FALSE | DF94: FALSE | DG94: FALSE | DH94: FALSE | DI94: FALSE | DJ94: FALSE | DK94: FALSE | DL94: FALSE | DM94: FALSE | DN94: FALSE | DO94: FALSE | DP94: FALSE | DQ94: FALSE | DR94: FALSE | DS94: FALSE | DT94: FALSE | DU94: FALSE | DV94: FALSE | DW94: FALSE | DX94: FALSE | DY94: FALSE | DZ94: FALSE | EA94: FALSE | EB94: FALSE | EC94: FALSE | ED94: FALSE | EE94: FALSE | EF94: FALSE | EG94: FALSE | EH94: =EH4=1 -> FALSE | EI94: FALSE | EJ94: FALSE | EK94: FALSE | EL94: FALSE | EM94: FALSE | EN94: FALSE | EO94: FALSE | EP94: FALSE | EQ94: FALSE | ER94: FALSE | ES94: FALSE | ET94: FALSE | EU94: FALSE | EV94: FALSE | EW94: FALSE | EX94: FALSE | EY94: FALSE | EZ94: FALSE | FA94: FALSE | FB94: FALSE | FC94: FALSE | FD94: FALSE | FE94: FALSE | FF94: FALSE | FG94: FALSE | FH94: FALSE | FI94: FALSE | FJ94: FALSE | FK94: FALSE | FL94: FALSE | FM94: FALSE | FN94: =FN4=1 -> FALSE | FO94: FALSE | FP94: FALSE | FQ94: FALSE | FR94: FALSE | FS94: FALSE | FT94: FALSE | FU94: FALSE | FV94: FALSE | FW94: FALSE | FX94: FALSE | FY94: FALSE | FZ94: FALSE | GA94: FALSE | GB94: FALSE | GC94: FALSE | GD94: FALSE | GE94: FALSE | GF94: FALSE | GG94: FALSE | GH94: FALSE | GI94: FALSE | GJ94: FALSE | GK94: FALSE | GL94: FALSE | GM94: FALSE | GN94: FALSE | GO94: FALSE | GP94: FALSE | GQ94: FALSE | GR94: FALSE | GS94: FALSE | GT94: =GT4=1 -> FALSE | GU94: FALSE | GV94: FALSE | GW94: FALSE | GX94: FALSE | GY94: FALSE | GZ94: FALSE | HA94: FALSE
D95: Total Debt Commitment | F95: MZN | G95: =G59 -> 19845.14134 | J95: =$G$95 -> 19845.14134 | K95: =$G$95 -> 19845.14134 | L95: 19845.14134 | M95: 19845.14134 | N95: 19845.14134 | O95: 19845.14134 | P95: 19845.14134 | Q95: 19845.14134 | R95: 19845.14134 | S95: 19845.14134 | T95: 19845.14134 | U95: 19845.14134 | V95: 19845.14134 | W95: 19845.14134 | X95: 19845.14134 | Y95: 19845.14134 | Z95: 19845.14134 | AA95: 19845.14134 | AB95: 19845.14134 | AC95: 19845.14134 | AD95: 19845.14134 | AE95: 19845.14134 | AF95: 19845.14134 | AG95: 19845.14134 | AH95: 19845.14134 | AI95: 19845.14134 | AJ95: 19845.14134 | AK95: 19845.14134 | AL95: 19845.14134 | AM95: 19845.14134 | AN95: 19845.14134 | AO95: 19845.14134 | AP95: 19845.14134 | AQ95: 19845.14134 | AR95: 19845.14134 | AS95: 19845.14134 | AT95: 19845.14134 | AU95: 19845.14134 | AV95: 19845.14134 | AW95: 19845.14134 | AX95: 19845.14134 | AY95: 19845.14134 | AZ95: 19845.14134 | BA95: 19845.14134 | BB95: 19845.14134 | BC95: 19845.14134 | BD95: 19845.14134 | BE95: 19845.14134 | BF95: 19845.14134 | BG95: 19845.14134 | BH95: 19845.14134 | BI95: 19845.14134 | BJ95: 19845.14134 | BK95: 19845.14134 | BL95: 19845.14134 | BM95: 19845.14134 | BN95: 19845.14134 | BO95: 19845.14134 | BP95: 19845.14134 | BQ95: 19845.14134 | BR95: 19845.14134 | BS95: 19845.14134 | BT95: 19845.14134 | BU95: 19845.14134 | BV95: 19845.14134 | BW95: =$G$95 -> 19845.14134 | BX95: 19845.14134 | BY95: 19845.14134 | BZ95: 19845.14134 | CA95: 19845.14134 | CB95: 19845.14134 | CC95: 19845.14134 | CD95: 19845.14134 | CE95: 19845.14134 | CF95: 19845.14134 | CG95: 19845.14134 | CH95: 19845.14134 | CI95: 19845.14134 | CJ95: 19845.14134 | CK95: 19845.14134 | CL95: 19845.14134 | CM95: 19845.14134 | CN95: 19845.14134 | CO95: 19845.14134 | CP95: 19845.14134 | CQ95: 19845.14134 | CR95: 19845.14134 | CS95: 19845.14134 | CT95: 19845.14134 | CU95: 19845.14134 | CV95: 19845.14134 | CW95: 19845.14134 | CX95: 19845.14134 | CY95: 19845.14134 | CZ95: 19845.14134 | DA95: 19845.14134 | DB95: 19845.14134 | DC95: 19845.14134 | DD95: 19845.14134 | DE95: 19845.14134 | DF95: 19845.14134 | DG95: 19845.14134 | DH95: 19845.14134 | DI95: 19845.14134 | DJ95: 19845.14134 | DK95: 19845.14134 | DL95: 19845.14134 | DM95: 19845.14134 | DN95: 19845.14134 | DO95: 19845.14134 | DP95: 19845.14134 | DQ95: 19845.14134 | DR95: 19845.14134 | DS95: 19845.14134 | DT95: 19845.14134 | DU95: 19845.14134 | DV95: 19845.14134 | DW95: 19845.14134 | DX95: 19845.14134 | DY95: 19845.14134 | DZ95: 19845.14134 | EA95: 19845.14134 | EB95: 19845.14134 | EC95: 19845.14134 | ED95: 19845.14134 | EE95: 19845.14134 | EF95: 19845.14134 | EG95: 19845.14134 | EH95: 19845.14134 | EI95: =$G$95 -> 19845.14134 | EJ95: 19845.14134 | EK95: 19845.14134 | EL95: 19845.14134 | EM95: 19845.14134 | EN95: 19845.14134 | EO95: 19845.14134 | EP95: 19845.14134 | EQ95: 19845.14134 | ER95: 19845.14134 | ES95: 19845.14134 | ET95: 19845.14134 | EU95: 19845.14134 | EV95: 19845.14134 | EW95: 19845.14134 | EX95: 19845.14134 | EY95: 19845.14134 | EZ95: 19845.14134 | FA95: 19845.14134 | FB95: 19845.14134 | FC95: 19845.14134 | FD95: 19845.14134 | FE95: 19845.14134 | FF95: 19845.14134 | FG95: 19845.14134 | FH95: 19845.14134 | FI95: 19845.14134 | FJ95: 19845.14134 | FK95: 19845.14134 | FL95: 19845.14134 | FM95: 19845.14134 | FN95: 19845.14134 | FO95: 19845.14134 | FP95: 19845.14134 | FQ95: 19845.14134 | FR95: 19845.14134 | FS95: 19845.14134 | FT95: 19845.14134 | FU95: 19845.14134 | FV95: 19845.14134 | FW95: 19845.14134 | FX95: 19845.14134 | FY95: 19845.14134 | FZ95: 19845.14134 | GA95: 19845.14134 | GB95: 19845.14134 | GC95: 19845.14134 | GD95: 19845.14134 | GE95: 19845.14134 | GF95: 19845.14134 | GG95: 19845.14134 | GH95: 19845.14134 | GI95: 19845.14134 | GJ95: 19845.14134 | GK95: 19845.14134 | GL95: 19845.14134 | GM95: 19845.14134 | GN95: 19845.14134 | GO95: 19845.14134 | GP95: 19845.14134 | GQ95: 19845.14134 | GR95: 19845.14134 | GS95: 19845.14134 | GT95: 19845.14134 | GU95: =$G$95 -> 19845.14134 | GV95: 19845.14134 | GW95: 19845.14134 | GX95: 19845.14134 | GY95: 19845.14134 | GZ95: 19845.14134 | HA95: 19845.14134
D96: Up-front Fee | F96: MZN | G96: =G27 -> 0.02 | J96: =$G$96*J94*J95 -> 396.9028268 | K96: =$G$96*K94*K95 -> 0 | L96: 0 | M96: 0 | N96: 0 | O96: 0 | P96: 0 | Q96: 0 | R96: 0 | S96: 0 | T96: 0 | U96: 0 | V96: 0 | W96: 0 | X96: 0 | Y96: 0 | Z96: 0 | AA96: 0 | AB96: 0 | AC96: 0 | AD96: 0 | AE96: 0 | AF96: 0 | AG96: 0 | AH96: 0 | AI96: 0 | AJ96: 0 | AK96: 0 | AL96: 0 | AM96: 0 | AN96: 0 | AO96: 0 | AP96: 0 | AQ96: 0 | AR96: 0 | AS96: 0 | AT96: 0 | AU96: 0 | AV96: 0 | AW96: 0 | AX96: 0 | AY96: 0 | AZ96: 0 | BA96: 0 | BB96: 0 | BC96: 0 | BD96: 0 | BE96: 0 | BF96: 0 | BG96: 0 | BH96: 0 | BI96: 0 | BJ96: 0 | BK96: 0 | BL96: 0 | BM96: 0 | BN96: 0 | BO96: 0 | BP96: 0 | BQ96: 0 | BR96: 0 | BS96: 0 | BT96: 0 | BU96: 0 | BV96: 0 | BW96: =$G$96*BW94*BW95 -> 0 | BX96: 0 | BY96: 0 | BZ96: 0 | CA96: 0 | CB96: 0 | CC96: 0 | CD96: 0 | CE96: 0 | CF96: 0 | CG96: 0 | CH96: 0 | CI96: 0 | CJ96: 0 | CK96: 0 | CL96: 0 | CM96: 0 | CN96: 0 | CO96: 0 | CP96: 0 | CQ96: 0 | CR96: 0 | CS96: 0 | CT96: 0 | CU96: 0 | CV96: 0 | CW96: 0 | CX96: 0 | CY96: 0 | CZ96: 0 | DA96: 0 | DB96: 0 | DC96: 0 | DD96: 0 | DE96: 0 | DF96: 0 | DG96: 0 | DH96: 0 | DI96: 0 | DJ96: 0 | DK96: 0 | DL96: 0 | DM96: 0 | DN96: 0 | DO96: 0 | DP96: 0 | DQ96: 0 | DR96: 0 | DS96: 0 | DT96: 0 | DU96: 0 | DV96: 0 | DW96: 0 | DX96: 0 | DY96: 0 | DZ96: 0 | EA96: 0 | EB96: 0 | EC96: 0 | ED96: 0 | EE96: 0 | EF96: 0 | EG96: 0 | EH96: 0 | EI96: =$G$96*EI94*EI95 -> 0 | EJ96: 0 | EK96: 0 | EL96: 0 | EM96: 0 | EN96: 0 | EO96: 0 | EP96: 0 | EQ96: 0 | ER96: 0 | ES96: 0 | ET96: 0 | EU96: 0 | EV96: 0 | EW96: 0 | EX96: 0 | EY96: 0 | EZ96: 0 | FA96: 0 | FB96: 0 | FC96: 0 | FD96: 0 | FE96: 0 | FF96: 0 | FG96: 0 | FH96: 0 | FI96: 0 | FJ96: 0 | FK96: 0 | FL96: 0 | FM96: 0 | FN96: 0 | FO96: 0 | FP96: 0 | FQ96: 0 | FR96: 0 | FS96: 0 | FT96: 0 | FU96: 0 | FV96: 0 | FW96: 0 | FX96: 0 | FY96: 0 | FZ96: 0 | GA96: 0 | GB96: 0 | GC96: 0 | GD96: 0 | GE96: 0 | GF96: 0 | GG96: 0 | GH96: 0 | GI96: 0 | GJ96: 0 | GK96: 0 | GL96: 0 | GM96: 0 | GN96: 0 | GO96: 0 | GP96: 0 | GQ96: 0 | GR96: 0 | GS96: 0 | GT96: 0 | GU96: =$G$96*GU94*GU95 -> 0 | GV96: 0 | GW96: 0 | GX96: 0 | GY96: 0 | GZ96: 0 | HA96: 0
D98: Undrawn Balance | F98: MZN | J98: =J95-J83 -> 19845.14134 | K98: =K95-K83 -> 18966.61153 | L98: 18364.12003 | M98: 17760.39845 | N98: 17155.44427 | O98: 16549.25497 | P98: 15941.82804 | Q98: 15333.16094 | R98: 14723.25115 | S98: 14112.09612 | T98: 13499.69332 | U98: 12886.0402 | V98: 12271.13421 | W98: 11654.97278 | X98: 11037.55335 | Y98: 10418.87336 | Z98: 9798.930229 | AA98: 9177.721383 | AB98: 8555.244235 | AC98: 7931.496197 | AD98: 7306.474673 | AE98: 6680.177063 | AF98: 6052.600762 | AG98: 5423.74316 | AH98: 4793.60164 | AI98: 4162.173581 | AJ98: 3529.456356 | AK98: 2895.447334 | AL98: 2260.143877 | AM98: 1623.543342 | AN98: 0 | AO98: 415.8044765 | AP98: 852.3991769 | AQ98: 1310.823612 | AR98: 1792.169269 | AS98: 2297.582209 | AT98: 2828.265796 | AU98: 3385.483563 | AV98: 3970.562217 | AW98: 4584.894805 | AX98: 5229.944022 | AY98: 5907.245699 | AZ98: 6618.412461 | BA98: 7365.13756 | BB98: 8149.198915 | BC98: 8972.463337 | BD98: 9836.890981 | BE98: 10744.54001 | BF98: 11697.57148 | BG98: 12698.25453 | BH98: 13748.97174 | BI98: 14852.2248 | BJ98: 16010.64052 | BK98: 17226.97702 | BL98: 18504.13035 | BM98: 19845.14134 | BN98: 19845.14134 | BO98: 19845.14134 | BP98: 19845.14134 | BQ98: 19845.14134 | BR98: 19845.14134 | BS98: 19845.14134 | BT98: 19845.14134 | BU98: 19845.14134 | BV98: 19845.14134 | BW98: =BW95-BW83 -> 19845.14134 | BX98: 19845.14134 | BY98: 19845.14134 | BZ98: 19845.14134 | CA98: 19845.14134 | CB98: 19845.14134 | CC98: 19845.14134 | CD98: 19845.14134 | CE98: 19845.14134 | CF98: 19845.14134 | CG98: 19845.14134 | CH98: 19845.14134 | CI98: 19845.14134 | CJ98: 19845.14134 | CK98: 19845.14134 | CL98: 19845.14134 | CM98: 19845.14134 | CN98: 19845.14134 | CO98: 19845.14134 | CP98: 19845.14134 | CQ98: 19845.14134 | CR98: 19845.14134 | CS98: 19845.14134 | CT98: 19845.14134 | CU98: 19845.14134 | CV98: 19845.14134 | CW98: 19845.14134 | CX98: 19845.14134 | CY98: 19845.14134 | CZ98: 19845.14134 | DA98: 19845.14134 | DB98: 19845.14134 | DC98: 19845.14134 | DD98: 19845.14134 | DE98: 19845.14134 | DF98: 19845.14134 | DG98: 19845.14134 | DH98: 19845.14134 | DI98: 19845.14134 | DJ98: 19845.14134 | DK98: 19845.14134 | DL98: 19845.14134 | DM98: 19845.14134 | DN98: 19845.14134 | DO98: 19845.14134 | DP98: 19845.14134 | DQ98: 19845.14134 | DR98: 19845.14134 | DS98: 19845.14134 | DT98: 19845.14134 | DU98: 19845.14134 | DV98: 19845.14134 | DW98: 19845.14134 | DX98: 19845.14134 | DY98: 19845.14134 | DZ98: 19845.14134 | EA98: 19845.14134 | EB98: 19845.14134 | EC98: 19845.14134 | ED98: 19845.14134 | EE98: 19845.14134 | EF98: 19845.14134 | EG98: 19845.14134 | EH98: 19845.14134 | EI98: =EI95-EI83 -> 19845.14134 | EJ98: 19845.14134 | EK98: 19845.14134 | EL98: 19845.14134 | EM98: 19845.14134 | EN98: 19845.14134 | EO98: 19845.14134 | EP98: 19845.14134 | EQ98: 19845.14134 | ER98: 19845.14134 | ES98: 19845.14134 | ET98: 19845.14134 | EU98: 19845.14134 | EV98: 19845.14134 | EW98: 19845.14134 | EX98: 19845.14134 | EY98: 19845.14134 | EZ98: 19845.14134 | FA98: 19845.14134 | FB98: 19845.14134 | FC98: 19845.14134 | FD98: 19845.14134 | FE98: 19845.14134 | FF98: 19845.14134 | FG98: 19845.14134 | FH98: 19845.14134 | FI98: 19845.14134 | FJ98: 19845.14134 | FK98: 19845.14134 | FL98: 19845.14134 | FM98: 19845.14134 | FN98: 19845.14134 | FO98: 19845.14134 | FP98: 19845.14134 | FQ98: 19845.14134 | FR98: 19845.14134 | FS98: 19845.14134 | FT98: 19845.14134 | FU98: 19845.14134 | FV98: 19845.14134 | FW98: 19845.14134 | FX98: 19845.14134 | FY98: 19845.14134 | FZ98: 19845.14134 | GA98: 19845.14134 | GB98: 19845.14134 | GC98: 19845.14134 | GD98: 19845.14134 | GE98: 19845.14134 | GF98: 19845.14134 | GG98: 19845.14134 | GH98: 19845.14134 | GI98: 19845.14134 | GJ98: 19845.14134 | GK98: 19845.14134 | GL98: 19845.14134 | GM98: 19845.14134 | GN98: 19845.14134 | GO98: 19845.14134 | GP98: 19845.14134 | GQ98: 19845.14134 | GR98: 19845.14134 | GS98: 19845.14134 | GT98: 19845.14134 | GU98: =GU95-GU83 -> 19845.14134 | GV98: 19845.14134 | GW98: 19845.14134 | GX98: 19845.14134 | GY98: 19845.14134 | GZ98: 19845.14134 | HA98: 19845.14134
D99: Annual Commitment Fee | F99: % p.a. | G99: =G28 -> 0.015 | J99: =($G$99/12)*J8 -> 0.00125 | K99: 0.00125 | L99: 0.00125 | M99: 0.00125 | N99: 0.00125 | O99: 0.00125 | P99: 0.00125 | Q99: 0.00125 | R99: 0.00125 | S99: 0.00125 | T99: 0.00125 | U99: 0.00125 | V99: 0.00125 | W99: 0.00125 | X99: 0.00125 | Y99: 0.00125 | Z99: 0.00125 | AA99: 0.00125 | AB99: 0.00125 | AC99: 0.00125 | AD99: 0.00125 | AE99: 0.00125 | AF99: 0.00125 | AG99: 0.00125 | AH99: 0.00125 | AI99: 0.00125 | AJ99: 0.00125 | AK99: 0.00125 | AL99: 0.00125 | AM99: 0.00125 | AN99: 0.015 | AO99: 0.015 | AP99: =($G$99/12)*AP8 -> 0.015 | AQ99: 0.015 | AR99: 0.015 | AS99: 0.015 | AT99: 0.015 | AU99: 0.015 | AV99: 0.015 | AW99: 0.015 | AX99: 0.015 | AY99: 0.015 | AZ99: 0.015 | BA99: 0.015 | BB99: 0.015 | BC99: 0.015 | BD99: 0.015 | BE99: 0.015 | BF99: 0.015 | BG99: 0.015 | BH99: 0.015 | BI99: 0.015 | BJ99: 0.015 | BK99: 0.015 | BL99: 0.015 | BM99: 0.015 | BN99: 0.015 | BO99: 0.015 | BP99: 0.015 | BQ99: 0.015 | BR99: 0.015 | BS99: 0.015 | BT99: 0.015 | BU99: 0.015 | BV99: =($G$99/12)*BV8 -> 0.015 | BW99: 0.015 | BX99: 0.015 | BY99: 0.015 | BZ99: 0.015 | CA99: 0.015 | CB99: 0.015 | CC99: 0.015 | CD99: 0.015 | CE99: 0.015 | CF99: 0.015 | CG99: 0.015 | CH99: 0.015 | CI99: 0.015 | CJ99: 0.015 | CK99: 0.015 | CL99: 0.015 | CM99: 0.015 | CN99: 0.015 | CO99: 0.015 | CP99: 0.015 | CQ99: 0.015 | CR99: 0.015 | CS99: 0.015 | CT99: 0.015 | CU99: 0.015 | CV99: 0.015 | CW99: 0.015 | CX99: 0.015 | CY99: 0.015 | CZ99: 0.015 | DA99: 0.015 | DB99: =($G$99/12)*DB8 -> 0.015 | DC99: 0.015 | DD99: 0.015 | DE99: 0.015 | DF99: 0.015 | DG99: 0.015 | DH99: 0.015 | DI99: 0.015 | DJ99: 0.015 | DK99: 0.015 | DL99: 0.015 | DM99: 0.015 | DN99: 0.015 | DO99: 0.015 | DP99: 0.015 | DQ99: 0.015 | DR99: 0.015 | DS99: 0.015 | DT99: 0.015 | DU99: 0.015 | DV99: 0.015 | DW99: 0.015 | DX99: 0.015 | DY99: 0.015 | DZ99: 0.015 | EA99: 0.015 | EB99: 0.015 | EC99: 0.015 | ED99: 0.015 | EE99: 0.015 | EF99: 0.015 | EG99: 0.015 | EH99: =($G$99/12)*EH8 -> 0.015 | EI99: 0.015 | EJ99: 0.015 | EK99: 0.015 | EL99: 0.015 | EM99: 0.015 | EN99: 0.015 | EO99: 0.015 | EP99: 0.015 | EQ99: 0.015 | ER99: 0.015 | ES99: 0.015 | ET99: 0.015 | EU99: 0.015 | EV99: 0.015 | EW99: 0.015 | EX99: 0.015 | EY99: 0.015 | EZ99: 0.015 | FA99: 0.015 | FB99: 0.015 | FC99: 0.015 | FD99: 0.015 | FE99: 0.015 | FF99: 0.015 | FG99: 0.015 | FH99: 0.015 | FI99: 0.015 | FJ99: 0.015 | FK99: 0.015 | FL99: 0.015 | FM99: 0.015 | FN99: =($G$99/12)*FN8 -> 0.015 | FO99: 0.015 | FP99: 0.015 | FQ99: 0.015 | FR99: 0.015 | FS99: 0.015 | FT99: 0.015 | FU99: 0.015 | FV99: 0.015 | FW99: 0.015 | FX99: 0.015 | FY99: 0.015 | FZ99: 0.015 | GA99: 0.015 | GB99: 0.015 | GC99: 0.015 | GD99: 0.015 | GE99: 0.015 | GF99: 0.015 | GG99: 0.015 | GH99: 0.015 | GI99: 0.015 | GJ99: 0.015 | GK99: 0.015 | GL99: 0.015 | GM99: 0.015 | GN99: 0.015 | GO99: 0.015 | GP99: 0.015 | GQ99: 0.015 | GR99: 0.015 | GS99: 0.015 | GT99: =($G$99/12)*GT8 -> 0.015 | GU99: 0.015 | GV99: 0.015 | GW99: 0.015 | GX99: 0.015 | GY99: 0.015 | GZ99: 0.015 | HA99: 0.015
D100: Total Commitment Fee | F100: MZN | J100: =J98*J99*J5 -> 24.80642668 | K100: 23.70826441 | L100: 22.95515004 | M100: 22.20049806 | N100: 21.44430533 | O100: 20.68656871 | P100: 19.92728505 | Q100: 19.16645117 | R100: 18.40406393 | S100: 17.64012015 | T100: 16.87461666 | U100: 16.10755025 | V100: 15.33891776 | W100: 14.56871597 | X100: 13.79694169 | Y100: 13.0235917 | Z100: 12.24866279 | AA100: 11.47215173 | AB100: 10.69405529 | AC100: 9.914370246 | AD100: 9.133093341 | AE100: 8.350221329 | AF100: 7.565750953 | AG100: 6.77967895 | AH100: 5.99200205 | AI100: 5.202716976 | AJ100: 4.411820445 | AK100: 3.619309168 | AL100: 2.825179846 | AM100: 2.029429177 | AN100: 0 | AO100: 0 | AP100: =AP98*AP99*AP5 -> 0 | AQ100: 0 | AR100: 0 | AS100: 0 | AT100: 0 | AU100: 0 | AV100: 0 | AW100: 0 | AX100: 0 | AY100: 0 | AZ100: 0 | BA100: 0 | BB100: 0 | BC100: 0 | BD100: 0 | BE100: 0 | BF100: 0 | BG100: 0 | BH100: 0 | BI100: 0 | BJ100: 0 | BK100: 0 | BL100: 0 | BM100: 0 | BN100: 0 | BO100: 0 | BP100: 0 | BQ100: 0 | BR100: 0 | BS100: 0 | BT100: 0 | BU100: 0 | BV100: =BV98*BV99*BV5 -> 0 | BW100: 0 | BX100: 0 | BY100: 0 | BZ100: 0 | CA100: 0 | CB100: 0 | CC100: 0 | CD100: 0 | CE100: 0 | CF100: 0 | CG100: 0 | CH100: 0 | CI100: 0 | CJ100: 0 | CK100: 0 | CL100: 0 | CM100: 0 | CN100: 0 | CO100: 0 | CP100: 0 | CQ100: 0 | CR100: 0 | CS100: 0 | CT100: 0 | CU100: 0 | CV100: 0 | CW100: 0 | CX100: 0 | CY100: 0 | CZ100: 0 | DA100: 0 | DB100: =DB98*DB99*DB5 -> 0 | DC100: 0 | DD100: 0 | DE100: 0 | DF100: 0 | DG100: 0 | DH100: 0 | DI100: 0 | DJ100: 0 | DK100: 0 | DL100: 0 | DM100: 0 | DN100: 0 | DO100: 0 | DP100: 0 | DQ100: 0 | DR100: 0 | DS100: 0 | DT100: 0 | DU100: 0 | DV100: 0 | DW100: 0 | DX100: 0 | DY100: 0 | DZ100: 0 | EA100: 0 | EB100: 0 | EC100: 0 | ED100: 0 | EE100: 0 | EF100: 0 | EG100: 0 | EH100: =EH98*EH99*EH5 -> 0 | EI100: 0 | EJ100: 0 | EK100: 0 | EL100: 0 | EM100: 0 | EN100: 0 | EO100: 0 | EP100: 0 | EQ100: 0 | ER100: 0 | ES100: 0 | ET100: 0 | EU100: 0 | EV100: 0 | EW100: 0 | EX100: 0 | EY100: 0 | EZ100: 0 | FA100: 0 | FB100: 0 | FC100: 0 | FD100: 0 | FE100: 0 | FF100: 0 | FG100: 0 | FH100: 0 | FI100: 0 | FJ100: 0 | FK100: 0 | FL100: 0 | FM100: 0 | FN100: =FN98*FN99*FN5 -> 0 | FO100: 0 | FP100: 0 | FQ100: 0 | FR100: 0 | FS100: 0 | FT100: 0 | FU100: 0 | FV100: 0 | FW100: 0 | FX100: 0 | FY100: 0 | FZ100: 0 | GA100: 0 | GB100: 0 | GC100: 0 | GD100: 0 | GE100: 0 | GF100: 0 | GG100: 0 | GH100: 0 | GI100: 0 | GJ100: 0 | GK100: 0 | GL100: 0 | GM100: 0 | GN100: 0 | GO100: 0 | GP100: 0 | GQ100: 0 | GR100: 0 | GS100: 0 | GT100: =GT98*GT99*GT5 -> 0 | GU100: 0 | GV100: 0 | GW100: 0 | GX100: 0 | GY100: 0 | GZ100: 0 | HA100: 0
B102: DSRA
C103: DSRA Funding
D104: Total Debt Service | J104: =J93+J85 -> 0 | K104: 0 | L104: 0 | M104: 0 | N104: 0 | O104: 0 | P104: 0 | Q104: 0 | R104: 0 | S104: 0 | T104: 0 | U104: 0 | V104: 0 | W104: 0 | X104: 0 | Y104: 0 | Z104: 0 | AA104: 0 | AB104: 0 | AC104: 0 | AD104: 0 | AE104: 0 | AF104: 0 | AG104: 0 | AH104: 0 | AI104: 0 | AJ104: 0 | AK104: 0 | AL104: 0 | AM104: 0 | AN104: 1408.061544 | AO104: 1408.061544 | AP104: =AP93+AP85 -> 1408.061544 | AQ104: 1408.061544 | AR104: 1408.061544 | AS104: 1408.061544 | AT104: 1408.061544 | AU104: 1408.061544 | AV104: 1408.061544 | AW104: 1408.061544 | AX104: 1408.061544 | AY104: 1408.061544 | AZ104: 1408.061544 | BA104: 1408.061544 | BB104: 1408.061544 | BC104: 1408.061544 | BD104: 1408.061544 | BE104: 1408.061544 | BF104: 1408.061544 | BG104: 1408.061544 | BH104: 1408.061544 | BI104: 1408.061544 | BJ104: 1408.061544 | BK104: 1408.061544 | BL104: 1408.061544 | BM104: 6.48014975e-13 | BN104: 6.48014975e-13 | BO104: 6.48014975e-13 | BP104: 6.48014975e-13 | BQ104: 6.48014975e-13 | BR104: 0 | BS104: 0 | BT104: 0 | BU104: 0 | BV104: =BV93+BV85 -> 0 | BW104: 0 | BX104: 0 | BY104: 0 | BZ104: 0 | CA104: 0 | CB104: 0 | CC104: 0 | CD104: 0 | CE104: 0 | CF104: 0 | CG104: 0 | CH104: 0 | CI104: 0 | CJ104: 0 | CK104: 0 | CL104: 0 | CM104: 0 | CN104: 0 | CO104: 0 | CP104: 0 | CQ104: 0 | CR104: 0 | CS104: 0 | CT104: 0 | CU104: 0 | CV104: 0 | CW104: 0 | CX104: 0 | CY104: 0 | CZ104: 0 | DA104: 0 | DB104: =DB93+DB85 -> 0 | DC104: 0 | DD104: 0 | DE104: 0 | DF104: 0 | DG104: 0 | DH104: 0 | DI104: 0 | DJ104: 0 | DK104: 0 | DL104: 0 | DM104: 0 | DN104: 0 | DO104: 0 | DP104: 0 | DQ104: 0 | DR104: 0 | DS104: 0 | DT104: 0 | DU104: 0 | DV104: 0 | DW104: 0 | DX104: 0 | DY104: 0 | DZ104: 0 | EA104: 0 | EB104: 0 | EC104: 0 | ED104: 0 | EE104: 0 | EF104: 0 | EG104: 0 | EH104: =EH93+EH85 -> 0 | EI104: 0 | EJ104: 0 | EK104: 0 | EL104: 0 | EM104: 0 | EN104: 0 | EO104: 0 | EP104: 0 | EQ104: 0 | ER104: 0 | ES104: 0 | ET104: 0 | EU104: 0 | EV104: 0 | EW104: 0 | EX104: 0 | EY104: 0 | EZ104: 0 | FA104: 0 | FB104: 0 | FC104: 0 | FD104: 0 | FE104: 0 | FF104: 0 | FG104: 0 | FH104: 0 | FI104: 0 | FJ104: 0 | FK104: 0 | FL104: 0 | FM104: 0 | FN104: =FN93+FN85 -> 0 | FO104: 0 | FP104: 0 | FQ104: 0 | FR104: 0 | FS104: 0 | FT104: 0 | FU104: 0 | FV104: 0 | FW104: 0 | FX104: 0 | FY104: 0 | FZ104: 0 | GA104: 0 | GB104: 0 | GC104: 0 | GD104: 0 | GE104: 0 | GF104: 0 | GG104: 0 | GH104: 0 | GI104: 0 | GJ104: 0 | GK104: 0 | GL104: 0 | GM104: 0 | GN104: 0 | GO104: 0 | GP104: 0 | GQ104: 0 | GR104: 0 | GS104: 0 | GT104: =GT93+GT85 -> 0 | GU104: 0 | GV104: 0 | GW104: 0 | GX104: 0 | GY104: 0 | GZ104: 0 | HA104: 0
D105: Prospective Debt Service | G105: 1 | J105: =SUM(OFFSET(J104,0,1,1,$G$105)) -> 0 | K105: =SUM(OFFSET(K104,0,1,1,$G$105)) -> 0 | L105: 0 | M105: 0 | N105: 0 | O105: 0 | P105: 0 | Q105: 0 | R105: 0 | S105: 0 | T105: 0 | U105: 0 | V105: 0 | W105: 0 | X105: 0 | Y105: 0 | Z105: 0 | AA105: 0 | AB105: 0 | AC105: 0 | AD105: 0 | AE105: 0 | AF105: 0 | AG105: 0 | AH105: 0 | AI105: 0 | AJ105: 0 | AK105: 0 | AL105: 0 | AM105: 1408.061544 | AN105: 1408.061544 | AO105: 1408.061544 | AP105: 1408.061544 | AQ105: 1408.061544 | AR105: 1408.061544 | AS105: 1408.061544 | AT105: 1408.061544 | AU105: 1408.061544 | AV105: 1408.061544 | AW105: 1408.061544 | AX105: 1408.061544 | AY105: 1408.061544 | AZ105: 1408.061544 | BA105: 1408.061544 | BB105: 1408.061544 | BC105: 1408.061544 | BD105: 1408.061544 | BE105: 1408.061544 | BF105: 1408.061544 | BG105: 1408.061544 | BH105: 1408.061544 | BI105: 1408.061544 | BJ105: 1408.061544 | BK105: 1408.061544 | BL105: 6.48014975e-13 | BM105: 6.48014975e-13 | BN105: 6.48014975e-13 | BO105: 6.48014975e-13 | BP105: 6.48014975e-13 | BQ105: 0 | BR105: 0 | BS105: 0 | BT105: 0 | BU105: 0 | BV105: 0 | BW105: =SUM(OFFSET(BW104,0,1,1,$G$105)) -> 0 | BX105: 0 | BY105: 0 | BZ105: 0 | CA105: 0 | CB105: 0 | CC105: 0 | CD105: 0 | CE105: 0 | CF105: 0 | CG105: 0 | CH105: 0 | CI105: 0 | CJ105: 0 | CK105: 0 | CL105: 0 | CM105: 0 | CN105: 0 | CO105: 0 | CP105: 0 | CQ105: 0 | CR105: 0 | CS105: 0 | CT105: 0 | CU105: 0 | CV105: 0 | CW105: 0 | CX105: 0 | CY105: 0 | CZ105: 0 | DA105: 0 | DB105: 0 | DC105: 0 | DD105: 0 | DE105: 0 | DF105: 0 | DG105: 0 | DH105: 0 | DI105: 0 | DJ105: 0 | DK105: 0 | DL105: 0 | DM105: 0 | DN105: 0 | DO105: 0 | DP105: 0 | DQ105: 0 | DR105: 0 | DS105: 0 | DT105: 0 | DU105: 0 | DV105: 0 | DW105: 0 | DX105: 0 | DY105: 0 | DZ105: 0 | EA105: 0 | EB105: 0 | EC105: 0 | ED105: 0 | EE105: 0 | EF105: 0 | EG105: 0 | EH105: 0 | EI105: =SUM(OFFSET(EI104,0,1,1,$G$105)) -> 0 | EJ105: 0 | EK105: 0 | EL105: 0 | EM105: 0 | EN105: 0 | EO105: 0 | EP105: 0 | EQ105: 0 | ER105: 0 | ES105: 0 | ET105: 0 | EU105: 0 | EV105: 0 | EW105: 0 | EX105: 0 | EY105: 0 | EZ105: 0 | FA105: 0 | FB105: 0 | FC105: 0 | FD105: 0 | FE105: 0 | FF105: 0 | FG105: 0 | FH105: 0 | FI105: 0 | FJ105: 0 | FK105: 0 | FL105: 0 | FM105: 0 | FN105: 0 | FO105: 0 | FP105: 0 | FQ105: 0 | FR105: 0 | FS105: 0 | FT105: 0 | FU105: 0 | FV105: 0 | FW105: 0 | FX105: 0 | FY105: 0 | FZ105: 0 | GA105: 0 | GB105: 0 | GC105: 0 | GD105: 0 | GE105: 0 | GF105: 0 | GG105: 0 | GH105: 0 | GI105: 0 | GJ105: 0 | GK105: 0 | GL105: 0 | GM105: 0 | GN105: 0 | GO105: 0 | GP105: 0 | GQ105: 0 | GR105: 0 | GS105: 0 | GT105: 0 | GU105: =SUM(OFFSET(GU104,0,1,1,$G$105)) -> 0 | GV105: 0 | GW105: 0 | GX105: 0 | GY105: 0 | GZ105: 0 | HA105: 0
D106: DSRA Requirement | J106: =J105 -> 0 | K106: =K105 -> 0 | L106: 0 | M106: 0 | N106: 0 | O106: 0 | P106: 0 | Q106: 0 | R106: 0 | S106: 0 | T106: 0 | U106: 0 | V106: 0 | W106: 0 | X106: 0 | Y106: 0 | Z106: 0 | AA106: 0 | AB106: 0 | AC106: 0 | AD106: 0 | AE106: 0 | AF106: 0 | AG106: 0 | AH106: 0 | AI106: 0 | AJ106: 0 | AK106: 0 | AL106: 0 | AM106: 1408.061544 | AN106: 1408.061544 | AO106: 1408.061544 | AP106: 1408.061544 | AQ106: 1408.061544 | AR106: 1408.061544 | AS106: 1408.061544 | AT106: 1408.061544 | AU106: 1408.061544 | AV106: 1408.061544 | AW106: 1408.061544 | AX106: 1408.061544 | AY106: 1408.061544 | AZ106: 1408.061544 | BA106: 1408.061544 | BB106: 1408.061544 | BC106: 1408.061544 | BD106: 1408.061544 | BE106: 1408.061544 | BF106: 1408.061544 | BG106: 1408.061544 | BH106: 1408.061544 | BI106: 1408.061544 | BJ106: 1408.061544 | BK106: 1408.061544 | BL106: 6.48014975e-13 | BM106: 6.48014975e-13 | BN106: 6.48014975e-13 | BO106: 6.48014975e-13 | BP106: 6.48014975e-13 | BQ106: 0 | BR106: 0 | BS106: 0 | BT106: 0 | BU106: 0 | BV106: 0 | BW106: =BW105 -> 0 | BX106: 0 | BY106: 0 | BZ106: 0 | CA106: 0 | CB106: 0 | CC106: 0 | CD106: 0 | CE106: 0 | CF106: 0 | CG106: 0 | CH106: 0 | CI106: 0 | CJ106: 0 | CK106: 0 | CL106: 0 | CM106: 0 | CN106: 0 | CO106: 0 | CP106: 0 | CQ106: 0 | CR106: 0 | CS106: 0 | CT106: 0 | CU106: 0 | CV106: 0 | CW106: 0 | CX106: 0 | CY106: 0 | CZ106: 0 | DA106: 0 | DB106: 0 | DC106: 0 | DD106: 0 | DE106: 0 | DF106: 0 | DG106: 0 | DH106: 0 | DI106: 0 | DJ106: 0 | DK106: 0 | DL106: 0 | DM106: 0 | DN106: 0 | DO106: 0 | DP106: 0 | DQ106: 0 | DR106: 0 | DS106: 0 | DT106: 0 | DU106: 0 | DV106: 0 | DW106: 0 | DX106: 0 | DY106: 0 | DZ106: 0 | EA106: 0 | EB106: 0 | EC106: 0 | ED106: 0 | EE106: 0 | EF106: 0 | EG106: 0 | EH106: 0 | EI106: =EI105 -> 0 | EJ106: 0 | EK106: 0 | EL106: 0 | EM106: 0 | EN106: 0 | EO106: 0 | EP106: 0 | EQ106: 0 | ER106: 0 | ES106: 0 | ET106: 0 | EU106: 0 | EV106: 0 | EW106: 0 | EX106: 0 | EY106: 0 | EZ106: 0 | FA106: 0 | FB106: 0 | FC106: 0 | FD106: 0 | FE106: 0 | FF106: 0 | FG106: 0 | FH106: 0 | FI106: 0 | FJ106: 0 | FK106: 0 | FL106: 0 | FM106: 0 | FN106: 0 | FO106: 0 | FP106: 0 | FQ106: 0 | FR106: 0 | FS106: 0 | FT106: 0 | FU106: 0 | FV106: 0 | FW106: 0 | FX106: 0 | FY106: 0 | FZ106: 0 | GA106: 0 | GB106: 0 | GC106: 0 | GD106: 0 | GE106: 0 | GF106: 0 | GG106: 0 | GH106: 0 | GI106: 0 | GJ106: 0 | GK106: 0 | GL106: 0 | GM106: 0 | GN106: 0 | GO106: 0 | GP106: 0 | GQ106: 0 | GR106: 0 | GS106: 0 | GT106: 0 | GU106: =GU105 -> 0 | GV106: 0 | GW106: 0 | GX106: 0 | GY106: 0 | GZ106: 0 | HA106: 0
D107: Less: Opening Balance | J107: =J111 -> 0 | K107: =K111 -> 0 | L107: 0 | M107: 0 | N107: 0 | O107: 0 | P107: 0 | Q107: 0 | R107: 0 | S107: 0 | T107: 0 | U107: 0 | V107: 0 | W107: 0 | X107: 0 | Y107: 0 | Z107: 0 | AA107: 0 | AB107: 0 | AC107: 0 | AD107: 0 | AE107: 0 | AF107: 0 | AG107: 0 | AH107: 0 | AI107: 0 | AJ107: 0 | AK107: 0 | AL107: 0 | AM107: 0 | AN107: 1408.061544 | AO107: 1408.061544 | AP107: 1408.061544 | AQ107: 1408.061544 | AR107: 1408.061544 | AS107: 1408.061544 | AT107: 1408.061544 | AU107: 1408.061544 | AV107: 1408.061544 | AW107: 1408.061544 | AX107: 1408.061544 | AY107: 1408.061544 | AZ107: 1408.061544 | BA107: 1408.061544 | BB107: 1408.061544 | BC107: 1408.061544 | BD107: 1408.061544 | BE107: 1408.061544 | BF107: 1408.061544 | BG107: 1408.061544 | BH107: 1408.061544 | BI107: 1408.061544 | BJ107: 1408.061544 | BK107: 1408.061544 | BL107: 1408.061544 | BM107: 0 | BN107: 6.48014975e-13 | BO107: 6.48014975e-13 | BP107: 6.48014975e-13 | BQ107: 6.48014975e-13 | BR107: 0 | BS107: 0 | BT107: 0 | BU107: 0 | BV107: 0 | BW107: =BW111 -> 0 | BX107: 0 | BY107: 0 | BZ107: 0 | CA107: 0 | CB107: 0 | CC107: 0 | CD107: 0 | CE107: 0 | CF107: 0 | CG107: 0 | CH107: 0 | CI107: 0 | CJ107: 0 | CK107: 0 | CL107: 0 | CM107: 0 | CN107: 0 | CO107: 0 | CP107: 0 | CQ107: 0 | CR107: 0 | CS107: 0 | CT107: 0 | CU107: 0 | CV107: 0 | CW107: 0 | CX107: 0 | CY107: 0 | CZ107: 0 | DA107: 0 | DB107: 0 | DC107: 0 | DD107: 0 | DE107: 0 | DF107: 0 | DG107: 0 | DH107: 0 | DI107: 0 | DJ107: 0 | DK107: 0 | DL107: 0 | DM107: 0 | DN107: 0 | DO107: 0 | DP107: 0 | DQ107: 0 | DR107: 0 | DS107: 0 | DT107: 0 | DU107: 0 | DV107: 0 | DW107: 0 | DX107: 0 | DY107: 0 | DZ107: 0 | EA107: 0 | EB107: 0 | EC107: 0 | ED107: 0 | EE107: 0 | EF107: 0 | EG107: 0 | EH107: 0 | EI107: =EI111 -> 0 | EJ107: 0 | EK107: 0 | EL107: 0 | EM107: 0 | EN107: 0 | EO107: 0 | EP107: 0 | EQ107: 0 | ER107: 0 | ES107: 0 | ET107: 0 | EU107: 0 | EV107: 0 | EW107: 0 | EX107: 0 | EY107: 0 | EZ107: 0 | FA107: 0 | FB107: 0 | FC107: 0 | FD107: 0 | FE107: 0 | FF107: 0 | FG107: 0 | FH107: 0 | FI107: 0 | FJ107: 0 | FK107: 0 | FL107: 0 | FM107: 0 | FN107: 0 | FO107: 0 | FP107: 0 | FQ107: 0 | FR107: 0 | FS107: 0 | FT107: 0 | FU107: 0 | FV107: 0 | FW107: 0 | FX107: 0 | FY107: 0 | FZ107: 0 | GA107: 0 | GB107: 0 | GC107: 0 | GD107: 0 | GE107: 0 | GF107: 0 | GG107: 0 | GH107: 0 | GI107: 0 | GJ107: 0 | GK107: 0 | GL107: 0 | GM107: 0 | GN107: 0 | GO107: 0 | GP107: 0 | GQ107: 0 | GR107: 0 | GS107: 0 | GT107: 0 | GU107: =GU111 -> 0 | GV107: 0 | GW107: 0 | GX107: 0 | GY107: 0 | GZ107: 0 | HA107: 0
D108: DSRA Funding (Withdrawl) | J108: =J106-J107 -> 0 | K108: =K106-K107 -> 0 | L108: 0 | M108: 0 | N108: 0 | O108: 0 | P108: 0 | Q108: 0 | R108: 0 | S108: 0 | T108: 0 | U108: 0 | V108: 0 | W108: 0 | X108: 0 | Y108: 0 | Z108: 0 | AA108: 0 | AB108: 0 | AC108: 0 | AD108: 0 | AE108: 0 | AF108: 0 | AG108: 0 | AH108: 0 | AI108: 0 | AJ108: 0 | AK108: 0 | AL108: 0 | AM108: 1408.061544 | AN108: 0 | AO108: 0 | AP108: 0 | AQ108: 0 | AR108: 0 | AS108: 0 | AT108: 0 | AU108: 0 | AV108: 0 | AW108: 0 | AX108: 0 | AY108: 0 | AZ108: 0 | BA108: 0 | BB108: 0 | BC108: 0 | BD108: 0 | BE108: 0 | BF108: 0 | BG108: 0 | BH108: 0 | BI108: 0 | BJ108: 0 | BK108: 0 | BL108: -1408.061544 | BM108: 6.48014975e-13 | BN108: 0 | BO108: 0 | BP108: 0 | BQ108: -6.48014975e-13 | BR108: 0 | BS108: 0 | BT108: 0 | BU108: 0 | BV108: 0 | BW108: =BW106-BW107 -> 0 | BX108: 0 | BY108: 0 | BZ108: 0 | CA108: 0 | CB108: 0 | CC108: 0 | CD108: 0 | CE108: 0 | CF108: 0 | CG108: 0 | CH108: 0 | CI108: 0 | CJ108: 0 | CK108: 0 | CL108: 0 | CM108: 0 | CN108: 0 | CO108: 0 | CP108: 0 | CQ108: 0 | CR108: 0 | CS108: 0 | CT108: 0 | CU108: 0 | CV108: 0 | CW108: 0 | CX108: 0 | CY108: 0 | CZ108: 0 | DA108: 0 | DB108: 0 | DC108: 0 | DD108: 0 | DE108: 0 | DF108: 0 | DG108: 0 | DH108: 0 | DI108: 0 | DJ108: 0 | DK108: 0 | DL108: 0 | DM108: 0 | DN108: 0 | DO108: 0 | DP108: 0 | DQ108: 0 | DR108: 0 | DS108: 0 | DT108: 0 | DU108: 0 | DV108: 0 | DW108: 0 | DX108: 0 | DY108: 0 | DZ108: 0 | EA108: 0 | EB108: 0 | EC108: 0 | ED108: 0 | EE108: 0 | EF108: 0 | EG108: 0 | EH108: 0 | EI108: =EI106-EI107 -> 0 | EJ108: 0 | EK108: 0 | EL108: 0 | EM108: 0 | EN108: 0 | EO108: 0 | EP108: 0 | EQ108: 0 | ER108: 0 | ES108: 0 | ET108: 0 | EU108: 0 | EV108: 0 | EW108: 0 | EX108: 0 | EY108: 0 | EZ108: 0 | FA108: 0 | FB108: 0 | FC108: 0 | FD108: 0 | FE108: 0 | FF108: 0 | FG108: 0 | FH108: 0 | FI108: 0 | FJ108: 0 | FK108: 0 | FL108: 0 | FM108: 0 | FN108: 0 | FO108: 0 | FP108: 0 | FQ108: 0 | FR108: 0 | FS108: 0 | FT108: 0 | FU108: 0 | FV108: 0 | FW108: 0 | FX108: 0 | FY108: 0 | FZ108: 0 | GA108: 0 | GB108: 0 | GC108: 0 | GD108: 0 | GE108: 0 | GF108: 0 | GG108: 0 | GH108: 0 | GI108: 0 | GJ108: 0 | GK108: 0 | GL108: 0 | GM108: 0 | GN108: 0 | GO108: 0 | GP108: 0 | GQ108: 0 | GR108: 0 | GS108: 0 | GT108: 0 | GU108: =GU106-GU107 -> 0 | GV108: 0 | GW108: 0 | GX108: 0 | GY108: 0 | GZ108: 0 | HA108: 0
C110: Balance
D111: Opening Balance | J111: =I114 -> 0 | K111: =J114 -> 0 | L111: 0 | M111: 0 | N111: 0 | O111: 0 | P111: 0 | Q111: 0 | R111: 0 | S111: 0 | T111: 0 | U111: 0 | V111: 0 | W111: 0 | X111: 0 | Y111: 0 | Z111: 0 | AA111: 0 | AB111: 0 | AC111: 0 | AD111: 0 | AE111: 0 | AF111: 0 | AG111: 0 | AH111: 0 | AI111: 0 | AJ111: 0 | AK111: 0 | AL111: 0 | AM111: 0 | AN111: 1408.061544 | AO111: 1408.061544 | AP111: 1408.061544 | AQ111: 1408.061544 | AR111: 1408.061544 | AS111: 1408.061544 | AT111: 1408.061544 | AU111: 1408.061544 | AV111: 1408.061544 | AW111: 1408.061544 | AX111: 1408.061544 | AY111: 1408.061544 | AZ111: 1408.061544 | BA111: 1408.061544 | BB111: 1408.061544 | BC111: 1408.061544 | BD111: 1408.061544 | BE111: 1408.061544 | BF111: 1408.061544 | BG111: 1408.061544 | BH111: 1408.061544 | BI111: 1408.061544 | BJ111: 1408.061544 | BK111: 1408.061544 | BL111: 1408.061544 | BM111: 0 | BN111: 6.48014975e-13 | BO111: 6.48014975e-13 | BP111: 6.48014975e-13 | BQ111: 6.48014975e-13 | BR111: 0 | BS111: 0 | BT111: 0 | BU111: 0 | BV111: 0 | BW111: =BV114 -> 0 | BX111: 0 | BY111: 0 | BZ111: 0 | CA111: 0 | CB111: 0 | CC111: 0 | CD111: 0 | CE111: 0 | CF111: 0 | CG111: 0 | CH111: 0 | CI111: 0 | CJ111: 0 | CK111: 0 | CL111: 0 | CM111: 0 | CN111: 0 | CO111: 0 | CP111: 0 | CQ111: 0 | CR111: 0 | CS111: 0 | CT111: 0 | CU111: 0 | CV111: 0 | CW111: 0 | CX111: 0 | CY111: 0 | CZ111: 0 | DA111: 0 | DB111: 0 | DC111: 0 | DD111: 0 | DE111: 0 | DF111: 0 | DG111: 0 | DH111: 0 | DI111: 0 | DJ111: 0 | DK111: 0 | DL111: 0 | DM111: 0 | DN111: 0 | DO111: 0 | DP111: 0 | DQ111: 0 | DR111: 0 | DS111: 0 | DT111: 0 | DU111: 0 | DV111: 0 | DW111: 0 | DX111: 0 | DY111: 0 | DZ111: 0 | EA111: 0 | EB111: 0 | EC111: 0 | ED111: 0 | EE111: 0 | EF111: 0 | EG111: 0 | EH111: 0 | EI111: =EH114 -> 0 | EJ111: 0 | EK111: 0 | EL111: 0 | EM111: 0 | EN111: 0 | EO111: 0 | EP111: 0 | EQ111: 0 | ER111: 0 | ES111: 0 | ET111: 0 | EU111: 0 | EV111: 0 | EW111: 0 | EX111: 0 | EY111: 0 | EZ111: 0 | FA111: 0 | FB111: 0 | FC111: 0 | FD111: 0 | FE111: 0 | FF111: 0 | FG111: 0 | FH111: 0 | FI111: 0 | FJ111: 0 | FK111: 0 | FL111: 0 | FM111: 0 | FN111: 0 | FO111: 0 | FP111: 0 | FQ111: 0 | FR111: 0 | FS111: 0 | FT111: 0 | FU111: 0 | FV111: 0 | FW111: 0 | FX111: 0 | FY111: 0 | FZ111: 0 | GA111: 0 | GB111: 0 | GC111: 0 | GD111: 0 | GE111: 0 | GF111: 0 | GG111: 0 | GH111: 0 | GI111: 0 | GJ111: 0 | GK111: 0 | GL111: 0 | GM111: 0 | GN111: 0 | GO111: 0 | GP111: 0 | GQ111: 0 | GR111: 0 | GS111: 0 | GT111: 0 | GU111: =GT114 -> 0 | GV111: 0 | GW111: 0 | GX111: 0 | GY111: 0 | GZ111: 0 | HA111: 0
D112: Funding Pre-COD | J112: =J108*J5 -> 0 | K112: 0 | L112: 0 | M112: 0 | N112: 0 | O112: 0 | P112: 0 | Q112: 0 | R112: 0 | S112: 0 | T112: 0 | U112: 0 | V112: 0 | W112: 0 | X112: 0 | Y112: 0 | Z112: 0 | AA112: 0 | AB112: 0 | AC112: 0 | AD112: 0 | AE112: 0 | AF112: 0 | AG112: 0 | AH112: 0 | AI112: 0 | AJ112: 0 | AK112: 0 | AL112: 0 | AM112: 1408.061544 | AN112: 0 | AO112: 0 | AP112: =AP108*AP5 -> 0 | AQ112: 0 | AR112: 0 | AS112: 0 | AT112: 0 | AU112: 0 | AV112: 0 | AW112: 0 | AX112: 0 | AY112: 0 | AZ112: 0 | BA112: 0 | BB112: 0 | BC112: 0 | BD112: 0 | BE112: 0 | BF112: 0 | BG112: 0 | BH112: 0 | BI112: 0 | BJ112: 0 | BK112: 0 | BL112: 0 | BM112: 0 | BN112: 0 | BO112: 0 | BP112: 0 | BQ112: 0 | BR112: 0 | BS112: 0 | BT112: 0 | BU112: 0 | BV112: =BV108*BV5 -> 0 | BW112: 0 | BX112: 0 | BY112: 0 | BZ112: 0 | CA112: 0 | CB112: 0 | CC112: 0 | CD112: 0 | CE112: 0 | CF112: 0 | CG112: 0 | CH112: 0 | CI112: 0 | CJ112: 0 | CK112: 0 | CL112: 0 | CM112: 0 | CN112: 0 | CO112: 0 | CP112: 0 | CQ112: 0 | CR112: 0 | CS112: 0 | CT112: 0 | CU112: 0 | CV112: 0 | CW112: 0 | CX112: 0 | CY112: 0 | CZ112: 0 | DA112: 0 | DB112: =DB108*DB5 -> 0 | DC112: 0 | DD112: 0 | DE112: 0 | DF112: 0 | DG112: 0 | DH112: 0 | DI112: 0 | DJ112: 0 | DK112: 0 | DL112: 0 | DM112: 0 | DN112: 0 | DO112: 0 | DP112: 0 | DQ112: 0 | DR112: 0 | DS112: 0 | DT112: 0 | DU112: 0 | DV112: 0 | DW112: 0 | DX112: 0 | DY112: 0 | DZ112: 0 | EA112: 0 | EB112: 0 | EC112: 0 | ED112: 0 | EE112: 0 | EF112: 0 | EG112: 0 | EH112: =EH108*EH5 -> 0 | EI112: 0 | EJ112: 0 | EK112: 0 | EL112: 0 | EM112: 0 | EN112: 0 | EO112: 0 | EP112: 0 | EQ112: 0 | ER112: 0 | ES112: 0 | ET112: 0 | EU112: 0 | EV112: 0 | EW112: 0 | EX112: 0 | EY112: 0 | EZ112: 0 | FA112: 0 | FB112: 0 | FC112: 0 | FD112: 0 | FE112: 0 | FF112: 0 | FG112: 0 | FH112: 0 | FI112: 0 | FJ112: 0 | FK112: 0 | FL112: 0 | FM112: 0 | FN112: =FN108*FN5 -> 0 | FO112: 0 | FP112: 0 | FQ112: 0 | FR112: 0 | FS112: 0 | FT112: 0 | FU112: 0 | FV112: 0 | FW112: 0 | FX112: 0 | FY112: 0 | FZ112: 0 | GA112: 0 | GB112: 0 | GC112: 0 | GD112: 0 | GE112: 0 | GF112: 0 | GG112: 0 | GH112: 0 | GI112: 0 | GJ112: 0 | GK112: 0 | GL112: 0 | GM112: 0 | GN112: 0 | GO112: 0 | GP112: 0 | GQ112: 0 | GR112: 0 | GS112: 0 | GT112: =GT108*GT5 -> 0 | GU112: 0 | GV112: 0 | GW112: 0 | GX112: 0 | GY112: 0 | GZ112: 0 | HA112: 0
D113: Funding Post-COD | J113: =J108*J9 -> 0 | K113: 0 | L113: 0 | M113: 0 | N113: 0 | O113: 0 | P113: 0 | Q113: 0 | R113: 0 | S113: 0 | T113: 0 | U113: 0 | V113: 0 | W113: 0 | X113: 0 | Y113: 0 | Z113: 0 | AA113: 0 | AB113: 0 | AC113: 0 | AD113: 0 | AE113: 0 | AF113: 0 | AG113: 0 | AH113: 0 | AI113: 0 | AJ113: 0 | AK113: 0 | AL113: 0 | AM113: 0 | AN113: 0 | AO113: 0 | AP113: =AP108*AP9 -> 0 | AQ113: 0 | AR113: 0 | AS113: 0 | AT113: 0 | AU113: 0 | AV113: 0 | AW113: 0 | AX113: 0 | AY113: 0 | AZ113: 0 | BA113: 0 | BB113: 0 | BC113: 0 | BD113: 0 | BE113: 0 | BF113: 0 | BG113: 0 | BH113: 0 | BI113: 0 | BJ113: 0 | BK113: 0 | BL113: -1408.061544 | BM113: 6.48014975e-13 | BN113: 0 | BO113: 0 | BP113: 0 | BQ113: -6.48014975e-13 | BR113: 0 | BS113: 0 | BT113: 0 | BU113: 0 | BV113: =BV108*BV9 -> 0 | BW113: 0 | BX113: 0 | BY113: 0 | BZ113: 0 | CA113: 0 | CB113: 0 | CC113: 0 | CD113: 0 | CE113: 0 | CF113: 0 | CG113: 0 | CH113: 0 | CI113: 0 | CJ113: 0 | CK113: 0 | CL113: 0 | CM113: 0 | CN113: 0 | CO113: 0 | CP113: 0 | CQ113: 0 | CR113: 0 | CS113: 0 | CT113: 0 | CU113: 0 | CV113: 0 | CW113: 0 | CX113: 0 | CY113: 0 | CZ113: 0 | DA113: 0 | DB113: =DB108*DB9 -> 0 | DC113: 0 | DD113: 0 | DE113: 0 | DF113: 0 | DG113: 0 | DH113: 0 | DI113: 0 | DJ113: 0 | DK113: 0 | DL113: 0 | DM113: 0 | DN113: 0 | DO113: 0 | DP113: 0 | DQ113: 0 | DR113: 0 | DS113: 0 | DT113: 0 | DU113: 0 | DV113: 0 | DW113: 0 | DX113: 0 | DY113: 0 | DZ113: 0 | EA113: 0 | EB113: 0 | EC113: 0 | ED113: 0 | EE113: 0 | EF113: 0 | EG113: 0 | EH113: =EH108*EH9 -> 0 | EI113: 0 | EJ113: 0 | EK113: 0 | EL113: 0 | EM113: 0 | EN113: 0 | EO113: 0 | EP113: 0 | EQ113: 0 | ER113: 0 | ES113: 0 | ET113: 0 | EU113: 0 | EV113: 0 | EW113: 0 | EX113: 0 | EY113: 0 | EZ113: 0 | FA113: 0 | FB113: 0 | FC113: 0 | FD113: 0 | FE113: 0 | FF113: 0 | FG113: 0 | FH113: 0 | FI113: 0 | FJ113: 0 | FK113: 0 | FL113: 0 | FM113: 0 | FN113: =FN108*FN9 -> 0 | FO113: 0 | FP113: 0 | FQ113: 0 | FR113: 0 | FS113: 0 | FT113: 0 | FU113: 0 | FV113: 0 | FW113: 0 | FX113: 0 | FY113: 0 | FZ113: 0 | GA113: 0 | GB113: 0 | GC113: 0 | GD113: 0 | GE113: 0 | GF113: 0 | GG113: 0 | GH113: 0 | GI113: 0 | GJ113: 0 | GK113: 0 | GL113: 0 | GM113: 0 | GN113: 0 | GO113: 0 | GP113: 0 | GQ113: 0 | GR113: 0 | GS113: 0 | GT113: =GT108*GT9 -> 0 | GU113: 0 | GV113: 0 | GW113: 0 | GX113: 0 | GY113: 0 | GZ113: 0 | HA113: 0
D114: Closing | J114: =J111+J112+J113 -> 0 | K114: =K111+K112+K113 -> 0 | L114: 0 | M114: 0 | N114: 0 | O114: 0 | P114: 0 | Q114: 0 | R114: 0 | S114: 0 | T114: 0 | U114: 0 | V114: 0 | W114: 0 | X114: 0 | Y114: 0 | Z114: 0 | AA114: 0 | AB114: 0 | AC114: 0 | AD114: 0 | AE114: 0 | AF114: 0 | AG114: 0 | AH114: 0 | AI114: 0 | AJ114: 0 | AK114: 0 | AL114: 0 | AM114: 1408.061544 | AN114: 1408.061544 | AO114: 1408.061544 | AP114: 1408.061544 | AQ114: 1408.061544 | AR114: 1408.061544 | AS114: 1408.061544 | AT114: 1408.061544 | AU114: 1408.061544 | AV114: 1408.061544 | AW114: 1408.061544 | AX114: 1408.061544 | AY114: 1408.061544 | AZ114: 1408.061544 | BA114: 1408.061544 | BB114: 1408.061544 | BC114: 1408.061544 | BD114: 1408.061544 | BE114: 1408.061544 | BF114: 1408.061544 | BG114: 1408.061544 | BH114: 1408.061544 | BI114: 1408.061544 | BJ114: 1408.061544 | BK114: 1408.061544 | BL114: 0 | BM114: 6.48014975e-13 | BN114: 6.48014975e-13 | BO114: 6.48014975e-13 | BP114: 6.48014975e-13 | BQ114: 0 | BR114: 0 | BS114: 0 | BT114: 0 | BU114: 0 | BV114: 0 | BW114: =BW111+BW112+BW113 -> 0 | BX114: 0 | BY114: 0 | BZ114: 0 | CA114: 0 | CB114: 0 | CC114: 0 | CD114: 0 | CE114: 0 | CF114: 0 | CG114: 0 | CH114: 0 | CI114: 0 | CJ114: 0 | CK114: 0 | CL114: 0 | CM114: 0 | CN114: 0 | CO114: 0 | CP114: 0 | CQ114: 0 | CR114: 0 | CS114: 0 | CT114: 0 | CU114: 0 | CV114: 0 | CW114: 0 | CX114: 0 | CY114: 0 | CZ114: 0 | DA114: 0 | DB114: 0 | DC114: 0 | DD114: 0 | DE114: 0 | DF114: 0 | DG114: 0 | DH114: 0 | DI114: 0 | DJ114: 0 | DK114: 0 | DL114: 0 | DM114: 0 | DN114: 0 | DO114: 0 | DP114: 0 | DQ114: 0 | DR114: 0 | DS114: 0 | DT114: 0 | DU114: 0 | DV114: 0 | DW114: 0 | DX114: 0 | DY114: 0 | DZ114: 0 | EA114: 0 | EB114: 0 | EC114: 0 | ED114: 0 | EE114: 0 | EF114: 0 | EG114: 0 | EH114: 0 | EI114: =EI111+EI112+EI113 -> 0 | EJ114: 0 | EK114: 0 | EL114: 0 | EM114: 0 | EN114: 0 | EO114: 0 | EP114: 0 | EQ114: 0 | ER114: 0 | ES114: 0 | ET114: 0 | EU114: 0 | EV114: 0 | EW114: 0 | EX114: 0 | EY114: 0 | EZ114: 0 | FA114: 0 | FB114: 0 | FC114: 0 | FD114: 0 | FE114: 0 | FF114: 0 | FG114: 0 | FH114: 0 | FI114: 0 | FJ114: 0 | FK114: 0 | FL114: 0 | FM114: 0 | FN114: 0 | FO114: 0 | FP114: 0 | FQ114: 0 | FR114: 0 | FS114: 0 | FT114: 0 | FU114: 0 | FV114: 0 | FW114: 0 | FX114: 0 | FY114: 0 | FZ114: 0 | GA114: 0 | GB114: 0 | GC114: 0 | GD114: 0 | GE114: 0 | GF114: 0 | GG114: 0 | GH114: 0 | GI114: 0 | GJ114: 0 | GK114: 0 | GL114: 0 | GM114: 0 | GN114: 0 | GO114: 0 | GP114: 0 | GQ114: 0 | GR114: 0 | GS114: 0 | GT114: 0 | GU114: =GU111+GU112+GU113 -> 0 | GV114: 0 | GW114: 0 | GX114: 0 | GY114: 0 | GZ114: 0 | HA114: 0
B116: Cash Flow
C117: Operating Cash Flow
D118: EBITDA | J118: =J43 -> 0 | K118: 0 | L118: 0 | M118: 0 | N118: 0 | O118: 0 | P118: 0 | Q118: 0 | R118: 0 | S118: 0 | T118: 0 | U118: 0 | V118: 0 | W118: 0 | X118: 0 | Y118: 0 | Z118: 0 | AA118: 0 | AB118: 0 | AC118: 0 | AD118: 0 | AE118: 0 | AF118: 0 | AG118: 0 | AH118: 0 | AI118: 0 | AJ118: 0 | AK118: 0 | AL118: 0 | AM118: 0 | AN118: 1836 | AO118: 1872.72 | AP118: =AP43 -> 1910.1744 | AQ118: 1948.377888 | AR118: 1987.345446 | AS118: 2027.092355 | AT118: 2067.634202 | AU118: 2108.986886 | AV118: 2151.166624 | AW118: 2194.189956 | AX118: 2238.073755 | AY118: 2282.83523 | AZ118: 2328.491935 | BA118: 2375.061774 | BB118: 2422.563009 | BC118: 2471.014269 | BD118: 2520.434555 | BE118: 2570.843246 | BF118: 2622.260111 | BG118: 2674.705313 | BH118: 2728.199419 | BI118: 2782.763407 | BJ118: 2838.418676 | BK118: 2895.187049 | BL118: 2953.09079 | BM118: 3012.152606 | BN118: 3072.395658 | BO118: 3133.843571 | BP118: 3196.520443 | BQ118: 3260.450851 | BR118: 0 | BS118: 0 | BT118: 0 | BU118: 0 | BV118: =BV43 -> 0 | BW118: 0 | BX118: 0 | BY118: 0 | BZ118: 0 | CA118: 0 | CB118: 0 | CC118: 0 | CD118: 0 | CE118: 0 | CF118: 0 | CG118: 0 | CH118: 0 | CI118: 0 | CJ118: 0 | CK118: 0 | CL118: 0 | CM118: 0 | CN118: 0 | CO118: 0 | CP118: 0 | CQ118: 0 | CR118: 0 | CS118: 0 | CT118: 0 | CU118: 0 | CV118: 0 | CW118: 0 | CX118: 0 | CY118: 0 | CZ118: 0 | DA118: 0 | DB118: =DB43 -> 0 | DC118: 0 | DD118: 0 | DE118: 0 | DF118: 0 | DG118: 0 | DH118: 0 | DI118: 0 | DJ118: 0 | DK118: 0 | DL118: 0 | DM118: 0 | DN118: 0 | DO118: 0 | DP118: 0 | DQ118: 0 | DR118: 0 | DS118: 0 | DT118: 0 | DU118: 0 | DV118: 0 | DW118: 0 | DX118: 0 | DY118: 0 | DZ118: 0 | EA118: 0 | EB118: 0 | EC118: 0 | ED118: 0 | EE118: 0 | EF118: 0 | EG118: 0 | EH118: =EH43 -> 0 | EI118: 0 | EJ118: 0 | EK118: 0 | EL118: 0 | EM118: 0 | EN118: 0 | EO118: 0 | EP118: 0 | EQ118: 0 | ER118: 0 | ES118: 0 | ET118: 0 | EU118: 0 | EV118: 0 | EW118: 0 | EX118: 0 | EY118: 0 | EZ118: 0 | FA118: 0 | FB118: 0 | FC118: 0 | FD118: 0 | FE118: 0 | FF118: 0 | FG118: 0 | FH118: 0 | FI118: 0 | FJ118: 0 | FK118: 0 | FL118: 0 | FM118: 0 | FN118: =FN43 -> 0 | FO118: 0 | FP118: 0 | FQ118: 0 | FR118: 0 | FS118: 0 | FT118: 0 | FU118: 0 | FV118: 0 | FW118: 0 | FX118: 0 | FY118: 0 | FZ118: 0 | GA118: 0 | GB118: 0 | GC118: 0 | GD118: 0 | GE118: 0 | GF118: 0 | GG118: 0 | GH118: 0 | GI118: 0 | GJ118: 0 | GK118: 0 | GL118: 0 | GM118: 0 | GN118: 0 | GO118: 0 | GP118: 0 | GQ118: 0 | GR118: 0 | GS118: 0 | GT118: =GT43 -> 0 | GU118: 0 | GV118: 0 | GW118: 0 | GX118: 0 | GY118: 0 | GZ118: 0 | HA118: 0
D119: Less: Cap Exp | J119: =J38 -> 833.3333333 | K119: 833.3333333 | L119: 833.3333333 | M119: 833.3333333 | N119: 833.3333333 | O119: 833.3333333 | P119: 833.3333333 | Q119: 833.3333333 | R119: 833.3333333 | S119: 833.3333333 | T119: 833.3333333 | U119: 833.3333333 | V119: 833.3333333 | W119: 833.3333333 | X119: 833.3333333 | Y119: 833.3333333 | Z119: 833.3333333 | AA119: 833.3333333 | AB119: 833.3333333 | AC119: 833.3333333 | AD119: 833.3333333 | AE119: 833.3333333 | AF119: 833.3333333 | AG119: 833.3333333 | AH119: 833.3333333 | AI119: 833.3333333 | AJ119: 833.3333333 | AK119: 833.3333333 | AL119: 833.3333333 | AM119: 833.3333333 | AN119: 0 | AO119: 0 | AP119: =AP38 -> 0 | AQ119: 0 | AR119: 0 | AS119: 0 | AT119: 0 | AU119: 0 | AV119: 0 | AW119: 0 | AX119: 0 | AY119: 0 | AZ119: 0 | BA119: 0 | BB119: 0 | BC119: 0 | BD119: 0 | BE119: 0 | BF119: 0 | BG119: 0 | BH119: 0 | BI119: 0 | BJ119: 0 | BK119: 0 | BL119: 0 | BM119: 0 | BN119: 0 | BO119: 0 | BP119: 0 | BQ119: 0 | BR119: 0 | BS119: 0 | BT119: 0 | BU119: 0 | BV119: =BV38 -> 0 | BW119: 0 | BX119: 0 | BY119: 0 | BZ119: 0 | CA119: 0 | CB119: 0 | CC119: 0 | CD119: 0 | CE119: 0 | CF119: 0 | CG119: 0 | CH119: 0 | CI119: 0 | CJ119: 0 | CK119: 0 | CL119: 0 | CM119: 0 | CN119: 0 | CO119: 0 | CP119: 0 | CQ119: 0 | CR119: 0 | CS119: 0 | CT119: 0 | CU119: 0 | CV119: 0 | CW119: 0 | CX119: 0 | CY119: 0 | CZ119: 0 | DA119: 0 | DB119: =DB38 -> 0 | DC119: 0 | DD119: 0 | DE119: 0 | DF119: 0 | DG119: 0 | DH119: 0 | DI119: 0 | DJ119: 0 | DK119: 0 | DL119: 0 | DM119: 0 | DN119: 0 | DO119: 0 | DP119: 0 | DQ119: 0 | DR119: 0 | DS119: 0 | DT119: 0 | DU119: 0 | DV119: 0 | DW119: 0 | DX119: 0 | DY119: 0 | DZ119: 0 | EA119: 0 | EB119: 0 | EC119: 0 | ED119: 0 | EE119: 0 | EF119: 0 | EG119: 0 | EH119: =EH38 -> 0 | EI119: 0 | EJ119: 0 | EK119: 0 | EL119: 0 | EM119: 0 | EN119: 0 | EO119: 0 | EP119: 0 | EQ119: 0 | ER119: 0 | ES119: 0 | ET119: 0 | EU119: 0 | EV119: 0 | EW119: 0 | EX119: 0 | EY119: 0 | EZ119: 0 | FA119: 0 | FB119: 0 | FC119: 0 | FD119: 0 | FE119: 0 | FF119: 0 | FG119: 0 | FH119: 0 | FI119: 0 | FJ119: 0 | FK119: 0 | FL119: 0 | FM119: 0 | FN119: =FN38 -> 0 | FO119: 0 | FP119: 0 | FQ119: 0 | FR119: 0 | FS119: 0 | FT119: 0 | FU119: 0 | FV119: 0 | FW119: 0 | FX119: 0 | FY119: 0 | FZ119: 0 | GA119: 0 | GB119: 0 | GC119: 0 | GD119: 0 | GE119: 0 | GF119: 0 | GG119: 0 | GH119: 0 | GI119: 0 | GJ119: 0 | GK119: 0 | GL119: 0 | GM119: 0 | GN119: 0 | GO119: 0 | GP119: 0 | GQ119: 0 | GR119: 0 | GS119: 0 | GT119: =GT38 -> 0 | GU119: 0 | GV119: 0 | GW119: 0 | GX119: 0 | GY119: 0 | GZ119: 0 | HA119: 0
D120: Operating Cash | J120: =J118-J119 -> -833.3333333 | K120: =K118-K119 -> -833.3333333 | L120: -833.3333333 | M120: -833.3333333 | N120: -833.3333333 | O120: -833.3333333 | P120: -833.3333333 | Q120: -833.3333333 | R120: -833.3333333 | S120: -833.3333333 | T120: -833.3333333 | U120: -833.3333333 | V120: -833.3333333 | W120: -833.3333333 | X120: -833.3333333 | Y120: -833.3333333 | Z120: -833.3333333 | AA120: -833.3333333 | AB120: -833.3333333 | AC120: -833.3333333 | AD120: -833.3333333 | AE120: -833.3333333 | AF120: -833.3333333 | AG120: -833.3333333 | AH120: -833.3333333 | AI120: -833.3333333 | AJ120: -833.3333333 | AK120: -833.3333333 | AL120: -833.3333333 | AM120: -833.3333333 | AN120: 1836 | AO120: 1872.72 | AP120: 1910.1744 | AQ120: 1948.377888 | AR120: 1987.345446 | AS120: 2027.092355 | AT120: 2067.634202 | AU120: 2108.986886 | AV120: 2151.166624 | AW120: 2194.189956 | AX120: 2238.073755 | AY120: 2282.83523 | AZ120: 2328.491935 | BA120: 2375.061774 | BB120: 2422.563009 | BC120: 2471.014269 | BD120: 2520.434555 | BE120: 2570.843246 | BF120: 2622.260111 | BG120: 2674.705313 | BH120: 2728.199419 | BI120: 2782.763407 | BJ120: 2838.418676 | BK120: 2895.187049 | BL120: 2953.09079 | BM120: 3012.152606 | BN120: 3072.395658 | BO120: 3133.843571 | BP120: 3196.520443 | BQ120: 3260.450851 | BR120: 0 | BS120: 0 | BT120: 0 | BU120: 0 | BV120: 0 | BW120: =BW118-BW119 -> 0 | BX120: 0 | BY120: 0 | BZ120: 0 | CA120: 0 | CB120: 0 | CC120: 0 | CD120: 0 | CE120: 0 | CF120: 0 | CG120: 0 | CH120: 0 | CI120: 0 | CJ120: 0 | CK120: 0 | CL120: 0 | CM120: 0 | CN120: 0 | CO120: 0 | CP120: 0 | CQ120: 0 | CR120: 0 | CS120: 0 | CT120: 0 | CU120: 0 | CV120: 0 | CW120: 0 | CX120: 0 | CY120: 0 | CZ120: 0 | DA120: 0 | DB120: 0 | DC120: 0 | DD120: 0 | DE120: 0 | DF120: 0 | DG120: 0 | DH120: 0 | DI120: 0 | DJ120: 0 | DK120: 0 | DL120: 0 | DM120: 0 | DN120: 0 | DO120: 0 | DP120: 0 | DQ120: 0 | DR120: 0 | DS120: 0 | DT120: 0 | DU120: 0 | DV120: 0 | DW120: 0 | DX120: 0 | DY120: 0 | DZ120: 0 | EA120: 0 | EB120: 0 | EC120: 0 | ED120: 0 | EE120: 0 | EF120: 0 | EG120: 0 | EH120: 0 | EI120: =EI118-EI119 -> 0 | EJ120: 0 | EK120: 0 | EL120: 0 | EM120: 0 | EN120: 0 | EO120: 0 | EP120: 0 | EQ120: 0 | ER120: 0 | ES120: 0 | ET120: 0 | EU120: 0 | EV120: 0 | EW120: 0 | EX120: 0 | EY120: 0 | EZ120: 0 | FA120: 0 | FB120: 0 | FC120: 0 | FD120: 0 | FE120: 0 | FF120: 0 | FG120: 0 | FH120: 0 | FI120: 0 | FJ120: 0 | FK120: 0 | FL120: 0 | FM120: 0 | FN120: 0 | FO120: 0 | FP120: 0 | FQ120: 0 | FR120: 0 | FS120: 0 | FT120: 0 | FU120: 0 | FV120: 0 | FW120: 0 | FX120: 0 | FY120: 0 | FZ120: 0 | GA120: 0 | GB120: 0 | GC120: 0 | GD120: 0 | GE120: 0 | GF120: 0 | GG120: 0 | GH120: 0 | GI120: 0 | GJ120: 0 | GK120: 0 | GL120: 0 | GM120: 0 | GN120: 0 | GO120: 0 | GP120: 0 | GQ120: 0 | GR120: 0 | GS120: 0 | GT120: 0 | GU120: =GU118-GU119 -> 0 | GV120: 0 | GW120: 0 | GX120: 0 | GY120: 0 | GZ120: 0 | HA120: 0
D122: Add: Debt Financing | J122: =J84 -> 878.5298108 | K122: =K84 -> 602.491497 | L122: 603.7215838 | M122: 604.9541821 | N122: 606.1892969 | O122: 607.4269333 | P122: 608.6670967 | Q122: 609.909792 | R122: 611.1550245 | S122: 612.4027993 | T122: 613.6531217 | U122: 614.9059968 | V122: 616.1614299 | W122: 617.4194262 | X122: 618.6799908 | Y122: 619.9431291 | Z122: 621.2088464 | AA122: 622.4771478 | AB122: 623.7480386 | AC122: 625.0215242 | AD122: 626.2976098 | AE122: 627.5763007 | AF122: 628.8576024 | AG122: 630.14152 | AH122: 631.4280589 | AI122: 632.7172245 | AJ122: 634.0090222 | AK122: 635.3034573 | AL122: 636.6005352 | AM122: 1623.543342 | AN122: 0 | AO122: 0 | AP122: 0 | AQ122: 0 | AR122: 0 | AS122: 0 | AT122: 0 | AU122: 0 | AV122: 0 | AW122: 0 | AX122: 0 | AY122: 0 | AZ122: 0 | BA122: 0 | BB122: 0 | BC122: 0 | BD122: 0 | BE122: 0 | BF122: 0 | BG122: 0 | BH122: 0 | BI122: 0 | BJ122: 0 | BK122: 0 | BL122: 0 | BM122: 0 | BN122: 0 | BO122: 0 | BP122: 0 | BQ122: 0 | BR122: 0 | BS122: 0 | BT122: 0 | BU122: 0 | BV122: 0 | BW122: =BW84 -> 0 | BX122: 0 | BY122: 0 | BZ122: 0 | CA122: 0 | CB122: 0 | CC122: 0 | CD122: 0 | CE122: 0 | CF122: 0 | CG122: 0 | CH122: 0 | CI122: 0 | CJ122: 0 | CK122: 0 | CL122: 0 | CM122: 0 | CN122: 0 | CO122: 0 | CP122: 0 | CQ122: 0 | CR122: 0 | CS122: 0 | CT122: 0 | CU122: 0 | CV122: 0 | CW122: 0 | CX122: 0 | CY122: 0 | CZ122: 0 | DA122: 0 | DB122: 0 | DC122: 0 | DD122: 0 | DE122: 0 | DF122: 0 | DG122: 0 | DH122: 0 | DI122: 0 | DJ122: 0 | DK122: 0 | DL122: 0 | DM122: 0 | DN122: 0 | DO122: 0 | DP122: 0 | DQ122: 0 | DR122: 0 | DS122: 0 | DT122: 0 | DU122: 0 | DV122: 0 | DW122: 0 | DX122: 0 | DY122: 0 | DZ122: 0 | EA122: 0 | EB122: 0 | EC122: 0 | ED122: 0 | EE122: 0 | EF122: 0 | EG122: 0 | EH122: 0 | EI122: =EI84 -> 0 | EJ122: 0 | EK122: 0 | EL122: 0 | EM122: 0 | EN122: 0 | EO122: 0 | EP122: 0 | EQ122: 0 | ER122: 0 | ES122: 0 | ET122: 0 | EU122: 0 | EV122: 0 | EW122: 0 | EX122: 0 | EY122: 0 | EZ122: 0 | FA122: 0 | FB122: 0 | FC122: 0 | FD122: 0 | FE122: 0 | FF122: 0 | FG122: 0 | FH122: 0 | FI122: 0 | FJ122: 0 | FK122: 0 | FL122: 0 | FM122: 0 | FN122: 0 | FO122: 0 | FP122: 0 | FQ122: 0 | FR122: 0 | FS122: 0 | FT122: 0 | FU122: 0 | FV122: 0 | FW122: 0 | FX122: 0 | FY122: 0 | FZ122: 0 | GA122: 0 | GB122: 0 | GC122: 0 | GD122: 0 | GE122: 0 | GF122: 0 | GG122: 0 | GH122: 0 | GI122: 0 | GJ122: 0 | GK122: 0 | GL122: 0 | GM122: 0 | GN122: 0 | GO122: 0 | GP122: 0 | GQ122: 0 | GR122: 0 | GS122: 0 | GT122: 0 | GU122: =GU84 -> 0 | GV122: 0 | GW122: 0 | GX122: 0 | GY122: 0 | GZ122: 0 | HA122: 0
D123: Less: Debt Repayment | J123: =J85 -> 0 | K123: =K85 -> 0 | L123: 0 | M123: 0 | N123: 0 | O123: 0 | P123: 0 | Q123: 0 | R123: 0 | S123: 0 | T123: 0 | U123: 0 | V123: 0 | W123: 0 | X123: 0 | Y123: 0 | Z123: 0 | AA123: 0 | AB123: 0 | AC123: 0 | AD123: 0 | AE123: 0 | AF123: 0 | AG123: 0 | AH123: 0 | AI123: 0 | AJ123: 0 | AK123: 0 | AL123: 0 | AM123: 0 | AN123: 415.8044765 | AO123: 436.5947004 | AP123: 458.4244354 | AQ123: 481.3456571 | AR123: 505.41294 | AS123: 530.683587 | AT123: 557.2177664 | AU123: 585.0786547 | AV123: 614.3325874 | AW123: 645.0492168 | AX123: 677.3016776 | AY123: 711.1667615 | AZ123: 746.7250996 | BA123: 784.0613545 | BB123: 823.2644223 | BC123: 864.4276434 | BD123: 907.6490256 | BE123: 953.0314768 | BF123: 1000.683051 | BG123: 1050.717203 | BH123: 1103.253063 | BI123: 1158.415717 | BJ123: 1216.336502 | BK123: 1277.153327 | BL123: 1341.010994 | BM123: 0 | BN123: 0 | BO123: 0 | BP123: 0 | BQ123: 0 | BR123: 0 | BS123: 0 | BT123: 0 | BU123: 0 | BV123: 0 | BW123: =BW85 -> 0 | BX123: 0 | BY123: 0 | BZ123: 0 | CA123: 0 | CB123: 0 | CC123: 0 | CD123: 0 | CE123: 0 | CF123: 0 | CG123: 0 | CH123: 0 | CI123: 0 | CJ123: 0 | CK123: 0 | CL123: 0 | CM123: 0 | CN123: 0 | CO123: 0 | CP123: 0 | CQ123: 0 | CR123: 0 | CS123: 0 | CT123: 0 | CU123: 0 | CV123: 0 | CW123: 0 | CX123: 0 | CY123: 0 | CZ123: 0 | DA123: 0 | DB123: 0 | DC123: 0 | DD123: 0 | DE123: 0 | DF123: 0 | DG123: 0 | DH123: 0 | DI123: 0 | DJ123: 0 | DK123: 0 | DL123: 0 | DM123: 0 | DN123: 0 | DO123: 0 | DP123: 0 | DQ123: 0 | DR123: 0 | DS123: 0 | DT123: 0 | DU123: 0 | DV123: 0 | DW123: 0 | DX123: 0 | DY123: 0 | DZ123: 0 | EA123: 0 | EB123: 0 | EC123: 0 | ED123: 0 | EE123: 0 | EF123: 0 | EG123: 0 | EH123: 0 | EI123: =EI85 -> 0 | EJ123: 0 | EK123: 0 | EL123: 0 | EM123: 0 | EN123: 0 | EO123: 0 | EP123: 0 | EQ123: 0 | ER123: 0 | ES123: 0 | ET123: 0 | EU123: 0 | EV123: 0 | EW123: 0 | EX123: 0 | EY123: 0 | EZ123: 0 | FA123: 0 | FB123: 0 | FC123: 0 | FD123: 0 | FE123: 0 | FF123: 0 | FG123: 0 | FH123: 0 | FI123: 0 | FJ123: 0 | FK123: 0 | FL123: 0 | FM123: 0 | FN123: 0 | FO123: 0 | FP123: 0 | FQ123: 0 | FR123: 0 | FS123: 0 | FT123: 0 | FU123: 0 | FV123: 0 | FW123: 0 | FX123: 0 | FY123: 0 | FZ123: 0 | GA123: 0 | GB123: 0 | GC123: 0 | GD123: 0 | GE123: 0 | GF123: 0 | GG123: 0 | GH123: 0 | GI123: 0 | GJ123: 0 | GK123: 0 | GL123: 0 | GM123: 0 | GN123: 0 | GO123: 0 | GP123: 0 | GQ123: 0 | GR123: 0 | GS123: 0 | GT123: 0 | GU123: =GU85 -> 0 | GV123: 0 | GW123: 0 | GX123: 0 | GY123: 0 | GZ123: 0 | HA123: 0
D124: Less: Interest and Fees | J124: =J90+J96+J100 -> 421.7092535 | K124: =K90+K96+K100 -> 27.36880529 | L124: 29.12607216 | M124: 30.88692678 | N124: 32.65137647 | O124: 34.41942859 | P124: 36.19109048 | Q124: 37.96636951 | R124: 39.74527307 | S124: 41.52780856 | T124: 43.31398339 | U124: 45.103805 | V124: 46.89728082 | W124: 48.69441832 | X124: 50.49522498 | Y124: 52.29970829 | Z124: 54.10787575 | AA124: 55.91973488 | AB124: 57.73529323 | AC124: 59.55455834 | AD124: 61.37753779 | AE124: 63.20423915 | AF124: 65.03467003 | AG124: 66.86883804 | AH124: 68.7067508 | AI124: 70.54841597 | AJ124: 72.39384121 | AK124: 74.24303419 | AL124: 76.09600261 | AM124: 77.95275417 | AN124: 992.257067 | AO124: 971.4668432 | AP124: 949.6371082 | AQ124: 926.7158864 | AR124: 902.6486036 | AS124: 877.3779566 | AT124: 850.8437772 | AU124: 822.9828889 | AV124: 793.7289561 | AW124: 763.0123268 | AX124: 730.7598659 | AY124: 696.8947821 | AZ124: 661.336444 | BA124: 624.000189 | BB124: 584.7971213 | BC124: 543.6339002 | BD124: 500.412518 | BE124: 455.0300667 | BF124: 407.3784929 | BG124: 357.3443403 | BH124: 304.8084802 | BI124: 249.645827 | BJ124: 191.7250412 | BK124: 130.9082161 | BL124: 67.05054969 | BM124: 6.48014975e-13 | BN124: 6.48014975e-13 | BO124: 6.48014975e-13 | BP124: 6.48014975e-13 | BQ124: 6.48014975e-13 | BR124: 6.48014975e-13 | BS124: 6.48014975e-13 | BT124: 6.48014975e-13 | BU124: 6.48014975e-13 | BV124: 6.48014975e-13 | BW124: =BW90+BW96+BW100 -> 6.48014975e-13 | BX124: 6.48014975e-13 | BY124: 6.48014975e-13 | BZ124: 6.48014975e-13 | CA124: 6.48014975e-13 | CB124: 6.48014975e-13 | CC124: 6.48014975e-13 | CD124: 6.48014975e-13 | CE124: 6.48014975e-13 | CF124: 6.48014975e-13 | CG124: 6.48014975e-13 | CH124: 6.48014975e-13 | CI124: 6.48014975e-13 | CJ124: 6.48014975e-13 | CK124: 6.48014975e-13 | CL124: 6.48014975e-13 | CM124: 6.48014975e-13 | CN124: 6.48014975e-13 | CO124: 6.48014975e-13 | CP124: 6.48014975e-13 | CQ124: 6.48014975e-13 | CR124: 6.48014975e-13 | CS124: 6.48014975e-13 | CT124: 6.48014975e-13 | CU124: 6.48014975e-13 | CV124: 6.48014975e-13 | CW124: 6.48014975e-13 | CX124: 6.48014975e-13 | CY124: 6.48014975e-13 | CZ124: 6.48014975e-13 | DA124: 6.48014975e-13 | DB124: 6.48014975e-13 | DC124: 6.48014975e-13 | DD124: 6.48014975e-13 | DE124: 6.48014975e-13 | DF124: 6.48014975e-13 | DG124: 6.48014975e-13 | DH124: 6.48014975e-13 | DI124: 6.48014975e-13 | DJ124: 6.48014975e-13 | DK124: 6.48014975e-13 | DL124: 6.48014975e-13 | DM124: 6.48014975e-13 | DN124: 6.48014975e-13 | DO124: 6.48014975e-13 | DP124: 6.48014975e-13 | DQ124: 6.48014975e-13 | DR124: 6.48014975e-13 | DS124: 6.48014975e-13 | DT124: 6.48014975e-13 | DU124: 6.48014975e-13 | DV124: 6.48014975e-13 | DW124: 6.48014975e-13 | DX124: 6.48014975e-13 | DY124: 6.48014975e-13 | DZ124: 6.48014975e-13 | EA124: 6.48014975e-13 | EB124: 6.48014975e-13 | EC124: 6.48014975e-13 | ED124: 6.48014975e-13 | EE124: 6.48014975e-13 | EF124: 6.48014975e-13 | EG124: 6.48014975e-13 | EH124: 6.48014975e-13 | EI124: =EI90+EI96+EI100 -> 6.48014975e-13 | EJ124: 6.48014975e-13 | EK124: 6.48014975e-13 | EL124: 6.48014975e-13 | EM124: 6.48014975e-13 | EN124: 6.48014975e-13 | EO124: 6.48014975e-13 | EP124: 6.48014975e-13 | EQ124: 6.48014975e-13 | ER124: 6.48014975e-13 | ES124: 6.48014975e-13 | ET124: 6.48014975e-13 | EU124: 6.48014975e-13 | EV124: 6.48014975e-13 | EW124: 6.48014975e-13 | EX124: 6.48014975e-13 | EY124: 6.48014975e-13 | EZ124: 6.48014975e-13 | FA124: 6.48014975e-13 | FB124: 6.48014975e-13 | FC124: 6.48014975e-13 | FD124: 6.48014975e-13 | FE124: 6.48014975e-13 | FF124: 6.48014975e-13 | FG124: 6.48014975e-13 | FH124: 6.48014975e-13 | FI124: 6.48014975e-13 | FJ124: 6.48014975e-13 | FK124: 6.48014975e-13 | FL124: 6.48014975e-13 | FM124: 6.48014975e-13 | FN124: 6.48014975e-13 | FO124: 6.48014975e-13 | FP124: 6.48014975e-13 | FQ124: 6.48014975e-13 | FR124: 6.48014975e-13 | FS124: 6.48014975e-13 | FT124: 6.48014975e-13 | FU124: 6.48014975e-13 | FV124: 6.48014975e-13 | FW124: 6.48014975e-13 | FX124: 6.48014975e-13 | FY124: 6.48014975e-13 | FZ124: 6.48014975e-13 | GA124: 6.48014975e-13 | GB124: 6.48014975e-13 | GC124: 6.48014975e-13 | GD124: 6.48014975e-13 | GE124: 6.48014975e-13 | GF124: 6.48014975e-13 | GG124: 6.48014975e-13 | GH124: 6.48014975e-13 | GI124: 6.48014975e-13 | GJ124: 6.48014975e-13 | GK124: 6.48014975e-13 | GL124: 6.48014975e-13 | GM124: 6.48014975e-13 | GN124: 6.48014975e-13 | GO124: 6.48014975e-13 | GP124: 6.48014975e-13 | GQ124: 6.48014975e-13 | GR124: 6.48014975e-13 | GS124: 6.48014975e-13 | GT124: 6.48014975e-13 | GU124: =GU90+GU96+GU100 -> 6.48014975e-13 | GV124: 6.48014975e-13 | GW124: 6.48014975e-13 | GX124: 6.48014975e-13 | GY124: 6.48014975e-13 | GZ124: 6.48014975e-13 | HA124: 6.48014975e-13
D125: Cash Flow to Equity | J125: =J120+J122-J123-J124 -> -376.512776 | K125: =K120+K122-K123-K124 -> -258.2106416 | L125: -258.7378216 | M125: -259.266078 | N125: -259.7954129 | O125: -260.3258286 | P125: -260.8573271 | Q125: -261.3899109 | R125: -261.9235819 | S125: -262.4583426 | T125: -262.994195 | U125: -263.5311415 | V125: -264.0691842 | W125: -264.6083255 | X125: -265.1485675 | Y125: -265.6899125 | Z125: -266.2323627 | AA125: -266.7759205 | AB125: -267.320588 | AC125: -267.8663675 | AD125: -268.4132613 | AE125: -268.9612717 | AF125: -269.510401 | AG125: -270.0606514 | AH125: -270.6120252 | AI125: -271.1645248 | AJ125: -271.7181524 | AK125: -272.2729103 | AL125: -272.8288008 | AM125: 712.2572542 | AN125: 427.9384564 | AO125: 464.6584564 | AP125: 502.1128564 | AQ125: 540.3163444 | AR125: 579.2839022 | AS125: 619.0308111 | AT125: 659.5726582 | AU125: 700.9253422 | AV125: 743.10508 | AW125: 786.1284124 | AX125: 830.0122116 | AY125: 874.7736867 | AZ125: 920.4303913 | BA125: 967.00023 | BB125: 1014.501465 | BC125: 1062.952726 | BD125: 1112.373011 | BE125: 1162.781702 | BF125: 1214.198567 | BG125: 1266.643769 | BH125: 1320.137875 | BI125: 1374.701864 | BJ125: 1430.357132 | BK125: 1487.125505 | BL125: 1545.029246 | BM125: 3012.152606 | BN125: 3072.395658 | BO125: 3133.843571 | BP125: 3196.520443 | BQ125: 3260.450851 | BR125: -6.48014975e-13 | BS125: -6.48014975e-13 | BT125: -6.48014975e-13 | BU125: -6.48014975e-13 | BV125: -6.48014975e-13 | BW125: =BW120+BW122-BW123-BW124 -> -6.48014975e-13 | BX125: -6.48014975e-13 | BY125: -6.48014975e-13 | BZ125: -6.48014975e-13 | CA125: -6.48014975e-13 | CB125: -6.48014975e-13 | CC125: -6.48014975e-13 | CD125: -6.48014975e-13 | CE125: -6.48014975e-13 | CF125: -6.48014975e-13 | CG125: -6.48014975e-13 | CH125: -6.48014975e-13 | CI125: -6.48014975e-13 | CJ125: -6.48014975e-13 | CK125: -6.48014975e-13 | CL125: -6.48014975e-13 | CM125: -6.48014975e-13 | CN125: -6.48014975e-13 | CO125: -6.48014975e-13 | CP125: -6.48014975e-13 | CQ125: -6.48014975e-13 | CR125: -6.48014975e-13 | CS125: -6.48014975e-13 | CT125: -6.48014975e-13 | CU125: -6.48014975e-13 | CV125: -6.48014975e-13 | CW125: -6.48014975e-13 | CX125: -6.48014975e-13 | CY125: -6.48014975e-13 | CZ125: -6.48014975e-13 | DA125: -6.48014975e-13 | DB125: -6.48014975e-13 | DC125: -6.48014975e-13 | DD125: -6.48014975e-13 | DE125: -6.48014975e-13 | DF125: -6.48014975e-13 | DG125: -6.48014975e-13 | DH125: -6.48014975e-13 | DI125: -6.48014975e-13 | DJ125: -6.48014975e-13 | DK125: -6.48014975e-13 | DL125: -6.48014975e-13 | DM125: -6.48014975e-13 | DN125: -6.48014975e-13 | DO125: -6.48014975e-13 | DP125: -6.48014975e-13 | DQ125: -6.48014975e-13 | DR125: -6.48014975e-13 | DS125: -6.48014975e-13 | DT125: -6.48014975e-13 | DU125: -6.48014975e-13 | DV125: -6.48014975e-13 | DW125: -6.48014975e-13 | DX125: -6.48014975e-13 | DY125: -6.48014975e-13 | DZ125: -6.48014975e-13 | EA125: -6.48014975e-13 | EB125: -6.48014975e-13 | EC125: -6.48014975e-13 | ED125: -6.48014975e-13 | EE125: -6.48014975e-13 | EF125: -6.48014975e-13 | EG125: -6.48014975e-13 | EH125: -6.48014975e-13 | EI125: =EI120+EI122-EI123-EI124 -> -6.48014975e-13 | EJ125: -6.48014975e-13 | EK125: -6.48014975e-13 | EL125: -6.48014975e-13 | EM125: -6.48014975e-13 | EN125: -6.48014975e-13 | EO125: -6.48014975e-13 | EP125: -6.48014975e-13 | EQ125: -6.48014975e-13 | ER125: -6.48014975e-13 | ES125: -6.48014975e-13 | ET125: -6.48014975e-13 | EU125: -6.48014975e-13 | EV125: -6.48014975e-13 | EW125: -6.48014975e-13 | EX125: -6.48014975e-13 | EY125: -6.48014975e-13 | EZ125: -6.48014975e-13 | FA125: -6.48014975e-13 | FB125: -6.48014975e-13 | FC125: -6.48014975e-13 | FD125: -6.48014975e-13 | FE125: -6.48014975e-13 | FF125: -6.48014975e-13 | FG125: -6.48014975e-13 | FH125: -6.48014975e-13 | FI125: -6.48014975e-13 | FJ125: -6.48014975e-13 | FK125: -6.48014975e-13 | FL125: -6.48014975e-13 | FM125: -6.48014975e-13 | FN125: -6.48014975e-13 | FO125: -6.48014975e-13 | FP125: -6.48014975e-13 | FQ125: -6.48014975e-13 | FR125: -6.48014975e-13 | FS125: -6.48014975e-13 | FT125: -6.48014975e-13 | FU125: -6.48014975e-13 | FV125: -6.48014975e-13 | FW125: -6.48014975e-13 | FX125: -6.48014975e-13 | FY125: -6.48014975e-13 | FZ125: -6.48014975e-13 | GA125: -6.48014975e-13 | GB125: -6.48014975e-13 | GC125: -6.48014975e-13 | GD125: -6.48014975e-13 | GE125: -6.48014975e-13 | GF125: -6.48014975e-13 | GG125: -6.48014975e-13 | GH125: -6.48014975e-13 | GI125: -6.48014975e-13 | GJ125: -6.48014975e-13 | GK125: -6.48014975e-13 | GL125: -6.48014975e-13 | GM125: -6.48014975e-13 | GN125: -6.48014975e-13 | GO125: -6.48014975e-13 | GP125: -6.48014975e-13 | GQ125: -6.48014975e-13 | GR125: -6.48014975e-13 | GS125: -6.48014975e-13 | GT125: -6.48014975e-13 | GU125: =GU120+GU122-GU123-GU124 -> -6.48014975e-13 | GV125: -6.48014975e-13 | GW125: -6.48014975e-13 | GX125: -6.48014975e-13 | GY125: -6.48014975e-13 | GZ125: -6.48014975e-13 | HA125: -6.48014975e-13
J126: =J75 -> 376.512776
D127: Equity IRR | F127: =XIRR(J125:HA125,J46:HA46) -> 0.096922189
J129: =IF(J9,J46,NA()) ->  | AN129: 2023-07-01 | AO129: 2024-07-01 | AP129: =IF(AP9,AP46,NA()) -> 2025-07-01 | AQ129: 2026-07-01 | AR129: 2027-07-01 | AS129: 2028-07-01 | AT129: 2029-07-01 | AU129: 2030-07-01 | AV129: 2031-07-01 | AW129: 2032-07-01 | AX129: 2033-07-01 | AY129: 2034-07-01 | AZ129: 2035-07-01 | BA129: 2036-07-01 | BB129: 2037-07-01 | BC129: 2038-07-01 | BD129: 2039-07-01 | BE129: 2040-07-01 | BF129: 2041-07-01 | BG129: 2042-07-01 | BH129: 2043-07-01 | BI129: 2044-07-01 | BJ129: 2045-07-01 | BK129: 2046-07-01 | BL129: 2047-07-01 | BM129: 2048-07-01 | BN129: 2049-07-01 | BO129: 2050-07-01 | BP129: 2051-07-01 | BQ129: 2052-07-01 | BV129: =IF(BV9,BV46,NA()) ->  | DB129: =IF(DB9,DB46,NA()) ->  | EH129: =IF(EH9,EH46,NA()) ->  | FN129: =IF(FN9,FN46,NA()) ->  | GT129: =IF(GT9,GT46,NA()) -> 
D130: CFADS | J130: =J118 -> 0 | K130: =K118 -> 0 | L130: 0 | M130: 0 | N130: 0 | O130: 0 | P130: 0 | Q130: 0 | R130: 0 | S130: 0 | T130: 0 | U130: 0 | V130: 0 | W130: 0 | X130: 0 | Y130: 0 | Z130: 0 | AA130: 0 | AB130: 0 | AC130: 0 | AD130: 0 | AE130: 0 | AF130: 0 | AG130: 0 | AH130: 0 | AI130: 0 | AJ130: 0 | AK130: 0 | AL130: 0 | AM130: 0 | AN130: 1836 | AO130: 1872.72 | AP130: 1910.1744 | AQ130: 1948.377888 | AR130: 1987.345446 | AS130: 2027.092355 | AT130: 2067.634202 | AU130: 2108.986886 | AV130: 2151.166624 | AW130: 2194.189956 | AX130: 2238.073755 | AY130: 2282.83523 | AZ130: 2328.491935 | BA130: 2375.061774 | BB130: 2422.563009 | BC130: 2471.014269 | BD130: 2520.434555 | BE130: 2570.843246 | BF130: 2622.260111 | BG130: 2674.705313 | BH130: 2728.199419 | BI130: 2782.763407 | BJ130: 2838.418676 | BK130: 2895.187049 | BL130: 2953.09079 | BM130: 3012.152606 | BN130: 3072.395658 | BO130: 3133.843571 | BP130: 3196.520443 | BQ130: 3260.450851 | BR130: 0 | BS130: 0 | BT130: 0 | BU130: 0 | BV130: 0 | BW130: =BW118 -> 0 | BX130: 0 | BY130: 0 | BZ130: 0 | CA130: 0 | CB130: 0 | CC130: 0 | CD130: 0 | CE130: 0 | CF130: 0 | CG130: 0 | CH130: 0 | CI130: 0 | CJ130: 0 | CK130: 0 | CL130: 0 | CM130: 0 | CN130: 0 | CO130: 0 | CP130: 0 | CQ130: 0 | CR130: 0 | CS130: 0 | CT130: 0 | CU130: 0 | CV130: 0 | CW130: 0 | CX130: 0 | CY130: 0 | CZ130: 0 | DA130: 0 | DB130: 0 | DC130: 0 | DD130: 0 | DE130: 0 | DF130: 0 | DG130: 0 | DH130: 0 | DI130: 0 | DJ130: 0 | DK130: 0 | DL130: 0 | DM130: 0 | DN130: 0 | DO130: 0 | DP130: 0 | DQ130: 0 | DR130: 0 | DS130: 0 | DT130: 0 | DU130: 0 | DV130: 0 | DW130: 0 | DX130: 0 | DY130: 0 | DZ130: 0 | EA130: 0 | EB130: 0 | EC130: 0 | ED130: 0 | EE130: 0 | EF130: 0 | EG130: 0 | EH130: 0 | EI130: =EI118 -> 0 | EJ130: 0 | EK130: 0 | EL130: 0 | EM130: 0 | EN130: 0 | EO130: 0 | EP130: 0 | EQ130: 0 | ER130: 0 | ES130: 0 | ET130: 0 | EU130: 0 | EV130: 0 | EW130: 0 | EX130: 0 | EY130: 0 | EZ130: 0 | FA130: 0 | FB130: 0 | FC130: 0 | FD130: 0 | FE130: 0 | FF130: 0 | FG130: 0 | FH130: 0 | FI130: 0 | FJ130: 0 | FK130: 0 | FL130: 0 | FM130: 0 | FN130: 0 | FO130: 0 | FP130: 0 | FQ130: 0 | FR130: 0 | FS130: 0 | FT130: 0 | FU130: 0 | FV130: 0 | FW130: 0 | FX130: 0 | FY130: 0 | FZ130: 0 | GA130: 0 | GB130: 0 | GC130: 0 | GD130: 0 | GE130: 0 | GF130: 0 | GG130: 0 | GH130: 0 | GI130: 0 | GJ130: 0 | GK130: 0 | GL130: 0 | GM130: 0 | GN130: 0 | GO130: 0 | GP130: 0 | GQ130: 0 | GR130: 0 | GS130: 0 | GT130: 0 | GU130: =GU118 -> 0 | GV130: 0 | GW130: 0 | GX130: 0 | GY130: 0 | GZ130: 0 | HA130: 0
D131: Debt Service | J131: =J104 -> 0 | K131: =K104 -> 0 | L131: 0 | M131: 0 | N131: 0 | O131: 0 | P131: 0 | Q131: 0 | R131: 0 | S131: 0 | T131: 0 | U131: 0 | V131: 0 | W131: 0 | X131: 0 | Y131: 0 | Z131: 0 | AA131: 0 | AB131: 0 | AC131: 0 | AD131: 0 | AE131: 0 | AF131: 0 | AG131: 0 | AH131: 0 | AI131: 0 | AJ131: 0 | AK131: 0 | AL131: 0 | AM131: 0 | AN131: 1408.061544 | AO131: 1408.061544 | AP131: 1408.061544 | AQ131: 1408.061544 | AR131: 1408.061544 | AS131: 1408.061544 | AT131: 1408.061544 | AU131: 1408.061544 | AV131: 1408.061544 | AW131: 1408.061544 | AX131: 1408.061544 | AY131: 1408.061544 | AZ131: 1408.061544 | BA131: 1408.061544 | BB131: 1408.061544 | BC131: 1408.061544 | BD131: 1408.061544 | BE131: 1408.061544 | BF131: 1408.061544 | BG131: 1408.061544 | BH131: 1408.061544 | BI131: 1408.061544 | BJ131: 1408.061544 | BK131: 1408.061544 | BL131: 1408.061544 | BM131: 6.48014975e-13 | BN131: 6.48014975e-13 | BO131: 6.48014975e-13 | BP131: 6.48014975e-13 | BQ131: 6.48014975e-13 | BR131: 0 | BS131: 0 | BT131: 0 | BU131: 0 | BV131: 0 | BW131: =BW104 -> 0 | BX131: 0 | BY131: 0 | BZ131: 0 | CA131: 0 | CB131: 0 | CC131: 0 | CD131: 0 | CE131: 0 | CF131: 0 | CG131: 0 | CH131: 0 | CI131: 0 | CJ131: 0 | CK131: 0 | CL131: 0 | CM131: 0 | CN131: 0 | CO131: 0 | CP131: 0 | CQ131: 0 | CR131: 0 | CS131: 0 | CT131: 0 | CU131: 0 | CV131: 0 | CW131: 0 | CX131: 0 | CY131: 0 | CZ131: 0 | DA131: 0 | DB131: 0 | DC131: 0 | DD131: 0 | DE131: 0 | DF131: 0 | DG131: 0 | DH131: 0 | DI131: 0 | DJ131: 0 | DK131: 0 | DL131: 0 | DM131: 0 | DN131: 0 | DO131: 0 | DP131: 0 | DQ131: 0 | DR131: 0 | DS131: 0 | DT131: 0 | DU131: 0 | DV131: 0 | DW131: 0 | DX131: 0 | DY131: 0 | DZ131: 0 | EA131: 0 | EB131: 0 | EC131: 0 | ED131: 0 | EE131: 0 | EF131: 0 | EG131: 0 | EH131: 0 | EI131: =EI104 -> 0 | EJ131: 0 | EK131: 0 | EL131: 0 | EM131: 0 | EN131: 0 | EO131: 0 | EP131: 0 | EQ131: 0 | ER131: 0 | ES131: 0 | ET131: 0 | EU131: 0 | EV131: 0 | EW131: 0 | EX131: 0 | EY131: 0 | EZ131: 0 | FA131: 0 | FB131: 0 | FC131: 0 | FD131: 0 | FE131: 0 | FF131: 0 | FG131: 0 | FH131: 0 | FI131: 0 | FJ131: 0 | FK131: 0 | FL131: 0 | FM131: 0 | FN131: 0 | FO131: 0 | FP131: 0 | FQ131: 0 | FR131: 0 | FS131: 0 | FT131: 0 | FU131: 0 | FV131: 0 | FW131: 0 | FX131: 0 | FY131: 0 | FZ131: 0 | GA131: 0 | GB131: 0 | GC131: 0 | GD131: 0 | GE131: 0 | GF131: 0 | GG131: 0 | GH131: 0 | GI131: 0 | GJ131: 0 | GK131: 0 | GL131: 0 | GM131: 0 | GN131: 0 | GO131: 0 | GP131: 0 | GQ131: 0 | GR131: 0 | GS131: 0 | GT131: 0 | GU131: =GU104 -> 0 | GV131: 0 | GW131: 0 | GX131: 0 | GY131: 0 | GZ131: 0 | HA131: 0
